Workbook

Sheet ProjectInfo
D2: Project Information
C4: Project information
C5: Project Name:
C6: Project Number:
C7: Project Address: | D7: =IF(ProjectLotID="","",VLOOKUP(ProjectLotID,[1]!LotDB,4,FALSE)) -> 
C8: City: | D8: =IF(ProjectLotID="","",VLOOKUP(ProjectLotID,[1]!LotDB,6,FALSE)) -> 
C9: State: | D9: =IF(ProjectLotID="","",VLOOKUP(ProjectLotID,[1]!LotDB,7,FALSE)) -> 
C10: Zip: | D10: =IF(ProjectLotID="","",VLOOKUP(ProjectLotID,[1]!LotDB,8,FALSE)) -> 
C11: Lot Number.: | D11: =IF(ProjectLotID="","",VLOOKUP(ProjectLotID,[1]!LotDB,2,FALSE)) -> 
C12: Lot ID:
C13: Lot SF: | D13: =IF(D12="","",VLOOKUP(ProjectLotID,[1]!LotDB,10,FALSE)) -> 
C14: Community/Subdivision: | D14: =IF(ProjectLotID="","",VLOOKUP(ProjectLotID,[1]!LotDB,3,FALSE)) -> 
C15: Permit Number:
C16: Supervisor:
C18: Customer Info
C19: Name:
C21: Address:
C23: City:
C24: State:
C25: Zip:
C26: Home Number:
C27: Business Number:
C28: Fax:
C29: Mobile:
C30: Email:
C33: Contractor Information
C34: Company Name:
C35: Company Address:
C36: City, State, Zip:
C37: Contact Name:
C38: Business Number:
C39: Fax:
C40: Mobile:
C41: Email:
C42: License Number:
C45: Lender Information
C46: Company:
C47: Loan #:
C48: Address:
C49: Contact:
C50: Business Number:
C51: Mobile:
C52: Fax:
C53: Email:
C56: Architect/Engineer
C57: Company:
C58: Contact:
C59: Address:
C60: Business Number:
C61: Mobile:
C62: Fax:
C63: Email:

Sheet KeyInfo
H2: Key Information
C4: SF of Building | D4: --SF-- | F4: Tax Rate
C5: Main Floor SF | F5: Local Sales Tax Rate: | G5: 0.0625
C6: 2nd Floor SF
C7: 3rd Floor SF | F7: Exterior Walls | G7: --Length'-- | H7: --Height '--
C8: Bonus Room SF | F8: Basement
C9: Finished Basement SF | F9: Main Floor
C10: Total Finished SF | D10: =SUM(D5:D9) -> 0 | F10: 2nd Floor
F11: 3rd Floor
C12: Unfinished SF of Building | D12: --SF-- | F12: Garage
C13: Unfinished Basement SF | G13: --SF--
C14: Garage SF | F14: SF of Gable Area
C15: Covered Porch SF
C16: Deck SF
C19: Construction Loan | F19: Interior Walls | G19: --Length '-- | H19: --Height'--
C20: Expected Duration of Project (months) | F20: Basement
C21: Interest Rate | F21: Main Floor
F22: 2nd Floor
F23: 3rd Floor
C24: Footings | F24: Garage
C25: LF of Footings
C26: LF of Footings for 4' FDN
C27: LF of Footings for 8' FDN | F27: Foundation | G27: --Length '-- | H27: --Height'--
F28: LF of Foundation
F29: LF of Foundation 4'
C30: Flatwork | F30: LF of Foundation 8'
C31: Driveway SF | F31: Setback
C32: Drive Approach Apron SF
C33: Sidewalk Labor SF
C34: Sidewalk Gravel SF | F34: Cabinets/Tops | G34: --Base '-- | H34: --Upper--
C35: Theater Slab SF | F35: LF Cabinets
F36: LF Countertops
C38: Roofing | F38: LF Countertops Laminate
C39: Plan View SF of Roofing (incl. overhang) | F39: LF Countertops Solid Surface
C40: Slope (Rise/12) | F40: LF Countertops 12x12 Granite
C41: LF Fascia | F41: LF Countertops Solid Granite
C42: LF Starter Strip
C43: LF Hip & Ridge
F44: Room Description | G44: --LF Wall'-- | H44: --Height'--
F45: Kitchen
F46: Laundry
C47: Profit & OH | D47: --% of Sale $-- | F47: Dinning
C48: Supervision Rate | D48: 0.015 | F48: Main Bath
C49: Builder's Margin (Profit) | D49: 0.1 | F49: Master Bath
C50: Company Overhead | D50: 0.08 | F50: 1/2 Bath
C51: Contingency | D51: 0.02 | F51: Carpet
C52: Real Estate | D52: 0.06
C53: Liability Insurance | D53: 0.03
C56: Labor | F56: Room Description | G56: --Length '-- | H56: --Width'--
C57: Labor Base | D57: 25
C58: Labor Burden | D58: 0.05
C59: Total Labor Rate | D59: =D57*(1+D58) -> 26.25
C63: Floor Coverings | F63: Custom 3
C70: Custom 2 | F70: Custom 4
AB91: CostBreakdownSummary | AC91: CustomerSummary | AD91: ExecutiveSummary | AE91: ChangeOrderSummary | AF91: CustomerBidForm | AG91: KeyInfo | AH91: SubSelect | AI91: Lot | AJ91: Permit | AK91: PlansEngineering | AL91: ConstructionLoan | AM91: TemporaryUtilities | AN91: SupervisionProfitOHCont | AO91: Demolition | AP91: Earthwork | AQ91: Footings | AR91: WindowWell | AS91: Foundation | AT91: CMUFoundation | AU91: Flatwork | AV91: MiscSteel | AW91: Damproofing | AX91: UtilityLaterals | AY91: SepticSystem | AZ91: PotableWaterWell | BA91: FramingMaterial | BB91: FramingLabor | BC91: EntryDoor | BD91: GarageDoor | BE91: Windows | BF91: Plumbing | BG91: Heating | BH91: AirConditioning | BI91: Electrical | BJ91: LightFixtures | BK91: Roofing | BL91: Insulation | BM91: Drywall | BN91: FinishCarpentry | BO91: FinishCarpentryLabor | BP91: Painting | BQ91: TileMarble | BR91: Fireplace | BS91: FloorCoverings | BT91: Cabinets | BU91: Countertops | BV91: Appliances | BW91: HardwareMirror | BX91: Siding | BY91: SoffitFascia | BZ91: Gutter | CA91: Deck | CB91: ExtRailing | CC91: FDNPlaster | CD91: Cleanup | CE91: Landscaping | CF91: ZCustom1 | CG91: ZCustom2 | CH91: ZCustom3 | CI91: ZCustom4 | CJ91: ZCustom5 | CK91: ZCustom6 | CL91: ZCustom7 | CM91: ZCustom8 | CN91: ZCustom9 | CO91: ZCustom10 | CP91: ZCustom11 | CQ91: ZCustom12 | CR91: ZCustom13 | CS91: ZCustom14 | CT91: ZCustom15 | CU91: ZCustom16 | CV91: ZCustom17 | CW91: ZCustom18 | CX91: ZCustom19 | CY91: ZCustom20 | CZ91: ZCustom21 | DA91: ZCustom22 | DB91: ZCustom23 | DC91: ZCustom24 | DD91: ZCustom25 | DE91: ZCustom26 | DF91: ZCustom27 | DG91: ZCustom28 | DH91: ZCustom29 | DI91: ZCustom30 | DJ91: DatabaseLinks
AB92: SectionProfit | AC92: SectionProfit | AD92: SectionProfit | AE92: SectionSFBuilding | AF92: SectionSFBuilding | AG92: SectionProfit | AH92: SectionSFBuilding | AI92: SectionSFBuilding | AJ92: SectionSFBuilding | AK92: SectionSFBuilding | AL92: SectionConstructionLoan | AM92: SectionConstructionLoan | AN92: SectionProfit | AO92: SectionSFBuilding | AP92: SectionSFBuilding | AQ92: SectionFTG | AR92: SectionSFBuilding | AS92: SectionFTG | AT92: SectionFTG | AU92: SectionFlatwork | AV92: SectionSFBuilding | AW92: SectionFDN | AX92: SectionFDN | AY92: SectionSFBuilding | AZ92: SectionSFBuilding | BA92: SectionSFBuilding | BB92: SectionSFBuilding | BC92: SectionSFBuilding | BD92: SectionSFBuilding | BE92: SectionSFBuilding | BF92: SectionSFBuilding | BG92: SectionSFBuilding | BH92: SectionSFBuilding | BI92: SectionSFBuilding | BJ92: SectionSFBuilding | BK92: SectionSFBuilding | BL92: SectionSFBuilding | BM92: SectionSFBuilding | BN92: SectionSFBuilding | BO92: SectionSFBuilding | BP92: SectionSFBuilding | BQ92: SectionSFBuilding | BR92: SectionSFBuilding | BS92: SectionCustom1 | BT92: SectionCabinets | BU92: SectionCabinets | BV92: SectionSFBuilding | BW92: SectionSFBuilding | BX92: SectionExteriorWalls | BY92: SectionRoofing | BZ92: SectionRoofing | CA92: SectionSFBuilding | CB92: SectionSFBuilding | CC92: SectionFDN | CD92: SectionSFBuilding | CE92: SectionSFBuilding | CF92: SectionSFBuilding | CG92: SectionSFBuilding | CH92: SectionSFBuilding | CI92: SectionSFBuilding | CJ92: SectionSFBuilding | CK92: SectionSFBuilding | CL92: SectionSFBuilding | CM92: SectionSFBuilding | CN92: SectionSFBuilding | CO92: SectionSFBuilding | CP92: SectionSFBuilding | CQ92: SectionSFBuilding | CR92: SectionSFBuilding | CS92: SectionSFBuilding | CT92: SectionSFBuilding | CU92: SectionSFBuilding | CV92: SectionSFBuilding | CW92: SectionSFBuilding | CX92: SectionSFBuilding | CY92: SectionSFBuilding | CZ92: SectionSFBuilding | DA92: SectionSFBuilding | DB92: SectionSFBuilding | DC92: SectionSFBuilding | DD92: SectionSFBuilding | DE92: SectionSFBuilding | DF92: SectionSFBuilding | DG92: SectionSFBuilding | DH92: SectionSFBuilding | DI92: SectionSFBuilding | DJ92: SectionSFBuilding
AB93: SectionTax | AC93: SectionTax | AD93: SectionTax | AE93: SectionSFBuilding1 | AF93: SectionSFBuilding1 | AG93: SectionTax | AH93: SectionSFBuilding1 | AI93: SectionSFBuilding1 | AJ93: SectionSFBuilding1 | AK93: SectionSFBuilding1 | AL93: SectionSFBuilding | AM93: SectionSFBuilding | AN93: SectionSFBuilding | AO93: SectionSFBuilding1 | AP93: SectionSFBuilding1 | AQ93: SectionFDN | AR93: SectionSFBuilding1 | AS93: SectionFDN | AT93: SectionFDN | AU93: SectionSFBuilding | AV93: SectionSFBuilding1 | AW93: SectionSFBuilding | AX93: SectionSFBuilding | AY93: SectionSFBuilding1 | AZ93: SectionSFBuilding1 | BA93: SectionSFBuilding1 | BB93: SectionSFBuilding1 | BC93: SectionSFBuilding1 | BD93: SectionSFBuilding1 | BE93: SectionSFBuilding1 | BF93: SectionSFBuilding1 | BG93: SectionSFBuilding1 | BH93: SectionSFBuilding1 | BI93: SectionSFBuilding1 | BJ93: SectionSFBuilding1 | BK93: SectionSFBuilding1 | BL93: SectionSFBuilding1 | BM93: SectionSFBuilding1 | BN93: SectionSFBuilding1 | BO93: SectionSFBuilding2 | BP93: SectionSFBuilding1 | BQ93: SectionSFBuilding1 | BR93: SectionSFBuilding1 | BS93: SectionSFBuilding | BT93: SectionSFBuilding | BU93: SectionSFBuilding | BV93: SectionSFBuilding1 | BW93: SectionSFBuilding1 | BX93: SectionSFBuilding | BY93: SectionExteriorWalls | BZ93: SectionExteriorWalls | CA93: SectionSFBuilding1 | CB93: SectionSFBuilding1 | CC93: SectionExteriorWalls | CD93: SectionSFBuilding1 | CE93: SectionSFBuilding1 | CF93: SectionSFBuilding1 | CG93: SectionSFBuilding1 | CH93: SectionSFBuilding1 | CI93: SectionSFBuilding1 | CJ93: SectionSFBuilding1 | CK93: SectionSFBuilding1 | CL93: SectionSFBuilding1 | CM93: SectionSFBuilding1 | CN93: SectionSFBuilding1 | CO93: SectionSFBuilding1 | CP93: SectionSFBuilding1 | CQ93: SectionSFBuilding1 | CR93: SectionSFBuilding1 | CS93: SectionSFBuilding1 | CT93: SectionSFBuilding1 | CU93: SectionSFBuilding1 | CV93: SectionSFBuilding1 | CW93: SectionSFBuilding1 | CX93: SectionSFBuilding1 | CY93: SectionSFBuilding1 | CZ93: SectionSFBuilding1 | DA93: SectionSFBuilding1 | DB93: SectionSFBuilding1 | DC93: SectionSFBuilding1 | DD93: SectionSFBuilding1 | DE93: SectionSFBuilding1 | DF93: SectionSFBuilding1 | DG93: SectionSFBuilding1 | DH93: SectionSFBuilding1 | DI93: SectionSFBuilding1 | DJ93: SectionSFBuilding1
Y94: The SheetName is in row 3. The | AB94: SectionConstructionLoan | AE94: SectionExteriorWalls | AF94: SectionLabor | AG94: SectionConstructionLoan | AH94: SectionLabor | AI94: SectionLabor | AK94: SectionLabor | AL94: SectionSFBuilding1 | AM94: SectionSFBuilding1 | AN94: SectionSFBuilding1 | AO94: SectionLabor | AP94: SectionLabor | AQ94: SectionSFBuilding | AR94: SectionLabor | AS94: SectionSFBuilding | AT94: SectionSFBuilding | AU94: SectionSFBuilding1 | AV94: SectionFTG | AW94: SectionSFBuilding1 | AX94: SectionSFBuilding1 | AY94: SectionLabor | AZ94: SectionRoom1 | BA94: SectionExteriorWalls | BB94: SectionLabor | BC94: SectionLabor | BD94: SectionLabor | BE94: SectionLabor | BF94: SectionLabor | BG94: SectionLabor | BH94: SectionLabor | BI94: SectionExteriorWalls | BJ94: SectionLabor | BK94: SectionRoofing | BL94: SectionExteriorWalls | BM94: SectionExteriorWalls | BN94: SectionExteriorWalls | BO94: SectionExteriorWalls | BP94: SectionExteriorWalls | BQ94: SectionLabor | BR94: SectionLabor | BS94: SectionSFBuilding1 | BT94: SectionSFBuilding1 | BU94: SectionSFBuilding1 | BV94: SectionLabor | BW94: SectionLabor | BX94: SectionSFBuilding1 | BY94: SectionSFBuilding | BZ94: SectionSFBuilding | CA94: SectionRoom1 | CB94: SectionLabor | CC94: SectionSFBuilding | CD94: SectionLabor | CE94: SectionLabor | CF94: SectionLabor | CG94: SectionLabor | CH94: SectionLabor | CI94: SectionLabor | CJ94: SectionLabor | CK94: SectionLabor | CL94: SectionLabor | CM94: SectionLabor | CN94: SectionLabor | CO94: SectionLabor | CP94: SectionLabor | CQ94: SectionLabor | CR94: SectionLabor | CS94: SectionLabor | CT94: SectionLabor | CU94: SectionLabor | CV94: SectionLabor | CW94: SectionLabor | CX94: SectionLabor | CY94: SectionLabor | CZ94: SectionLabor | DA94: SectionLabor | DB94: SectionLabor | DC94: SectionLabor | DD94: SectionLabor | DE94: SectionLabor | DF94: SectionLabor | DG94: SectionLabor | DH94: SectionLabor | DI94: SectionLabor | DJ94: SectionLabor
Y95: name ranges that are listed | AB95: SectionSFBuilding | AE95: SectionInteriorWalls | AG95: SectionSFBuilding | AK95: SectionRoom1 | AL95: SectionRoom1 | AM95: SectionLabor | AN95: SectionTax | AO95: SectionRoom1 | AP95: SectionRoom1 | AQ95: SectionSFBuilding1 | AR95: SectionRoom1 | AS95: SectionSFBuilding1 | AT95: SectionSFBuilding1 | AU95: SectionLabor | AV95: SectionFDN | AW95: SectionLabor | AX95: SectionLabor | AY95: SectionRoom1 | AZ95: SectionRoom2 | BA95: SectionInteriorWalls | BB95: SectionRoom1 | BC95: SectionRoom1 | BD95: SectionRoom1 | BE95: SectionRoom1 | BF95: SectionRoom1 | BG95: SectionRoom1 | BH95: SectionRoom1 | BI95: SectionInteriorWalls | BJ95: SectionRoom1 | BK95: SectionLabor | BL95: SectionInteriorWalls | BM95: SectionInteriorWalls | BN95: SectionInteriorWalls | BO95: SectionInteriorWalls | BP95: SectionInteriorWalls | BQ95: SectionRoom1 | BR95: SectionRoom1 | BS95: SectionLabor | BT95: SectionLabor | BU95: SectionLabor | BV95: SectionRoom1 | BW95: SectionRoom1 | BX95: SectionLabor | BY95: SectionSFBuilding1 | BZ95: SectionSFBuilding1 | CA95: SectionRoom2 | CB95: SectionRoom1 | CC95: SectionSFBuilding1 | CD95: SectionRoom1 | CE95: SectionRoom1 | CF95: SectionRoom1 | CG95: SectionRoom1 | CH95: SectionRoom1 | CI95: SectionRoom1 | CJ95: SectionRoom1 | CK95: SectionRoom1 | CL95: SectionRoom1 | CM95: SectionRoom1 | CN95: SectionRoom1 | CO95: SectionRoom1 | CP95: SectionRoom1 | CQ95: SectionRoom1 | CR95: SectionRoom1 | CS95: SectionRoom1 | CT95: SectionRoom1 | CU95: SectionRoom1 | CV95: SectionRoom1 | CW95: SectionRoom1 | CX95: SectionRoom1 | CY95: SectionRoom1 | CZ95: SectionRoom1 | DA95: SectionRoom1 | DB95: SectionRoom1 | DC95: SectionRoom1 | DD95: SectionRoom1 | DE95: SectionRoom1 | DF95: SectionRoom1 | DG95: SectionRoom1 | DH95: SectionRoom1 | DI95: SectionRoom1 | DJ95: SectionRoom1
Y96: below each sheetname are the ones | AB96: SectionSFBuilding1 | AG96: SectionSFBuilding1 | AK96: SectionRoom2 | AL96: SectionRoom2 | AM96: SectionRoom1 | AN96: SectionRoom1 | AO96: SectionRoom2 | AP96: SectionRoom2 | AQ96: SectionExteriorWalls | AR96: SectionRoom2 | AS96: SectionExteriorWalls | AT96: SectionExteriorWalls | AU96: SectionRoom1 | AV96: SectionExteriorWalls | AW96: SectionRoom1 | AX96: SectionRoom1 | AY96: SectionRoom2 | BA96: SectionRoofing | BB96: SectionRoom2 | BC96: SectionRoom2 | BD96: SectionRoom2 | BE96: SectionRoom2 | BF96: SectionRoom2 | BG96: SectionRoom2 | BH96: SectionRoom2 | BI96: SectionLabor | BJ96: SectionRoom2 | BK96: SectionRoom1 | BL96: SectionLabor | BM96: SectionLabor | BN96: SectionLabor | BO96: SectionLabor | BP96: SectionLabor | BQ96: SectionRoom2 | BR96: SectionRoom2 | BS96: SectionRoom1 | BT96: SectionRoom1 | BU96: SectionRoom1 | BV96: SectionRoom2 | BW96: SectionRoom2 | BX96: SectionRoom1 | BY96: SectionLabor | BZ96: SectionLabor | CB96: SectionRoom2 | CC96: SectionLabor | CD96: SectionRoom2 | CE96: SectionRoom2 | CF96: SectionRoom2 | CG96: SectionRoom2 | CH96: SectionRoom2 | CI96: SectionRoom2 | CJ96: SectionRoom2 | CK96: SectionRoom2 | CL96: SectionRoom2 | CM96: SectionRoom2 | CN96: SectionRoom2 | CO96: SectionRoom2 | CP96: SectionRoom2 | CQ96: SectionRoom2 | CR96: SectionRoom2 | CS96: SectionRoom2 | CT96: SectionRoom2 | CU96: SectionRoom2 | CV96: SectionRoom2 | CW96: SectionRoom2 | CX96: SectionRoom2 | CY96: SectionRoom2 | CZ96: SectionRoom2 | DA96: SectionRoom2 | DB96: SectionRoom2 | DC96: SectionRoom2 | DD96: SectionRoom2 | DE96: SectionRoom2 | DF96: SectionRoom2 | DG96: SectionRoom2 | DH96: SectionRoom2 | DI96: SectionRoom2 | DJ96: SectionRoom2
Y97: that will appear in the Key Info box. | AB97: SectionExteriorWalls | AG97: SectionExteriorWalls | AM97: SectionRoom2 | AN97: SectionRoom2 | AQ97: SectionLabor | AS97: SectionLabor | AT97: SectionLabor | AU97: SectionRoom2 | AV97: SectionLabor | AW97: SectionRoom2 | AX97: SectionRoom2 | BA97: SectionLabor | BI97: SectionRoom1 | BK97: SectionRoom2 | BL97: SectionRoom1 | BM97: SectionRoom1 | BN97: SectionRoom1 | BO97: SectionRoom1 | BP97: SectionRoom1 | BS97: SectionRoom2 | BT97: SectionRoom2 | BU97: SectionRoom2 | BX97: SectionRoom2 | BY97: SectionRoom1 | BZ97: SectionRoom1 | CC97: SectionRoom1
AB98: SectionInteriorWalls | AG98: SectionInteriorWalls | AQ98: SectionRoom1 | AS98: SectionRoom1 | AT98: SectionRoom1 | AV98: SectionRoom1 | BA98: SectionRoom1 | BI98: SectionRoom2 | BL98: SectionRoom2 | BM98: SectionRoom2 | BN98: SectionRoom2 | BO98: SectionRoom2 | BP98: SectionRoom2 | BY98: SectionRoom2 | BZ98: SectionRoom2 | CC98: SectionRoom2
AB99: SectionFTG | AG99: SectionFTG | AQ99: SectionRoom2 | AS99: SectionRoom2 | AT99: SectionRoom2 | AV99: SectionRoom2 | BA99: SectionRoom2
AB100: SectionFDN | AG100: SectionFDN
AB101: SectionRoofing | AG101: SectionRoofing
AB102: SectionCabinets | AG102: SectionCabinets
AB103: SectionLabor | AG103: SectionLabor
AG104: SectionRoom1
AG105: SectionRoom2

Sheet CostBreakdownSummary
A1: +
P2: Estimator Pro
E3: =TODAY() -> 2008-07-11 | M3: Estimate Number: | P3: =EstimateNumber -> EP88817
E4: Customer's Names: | F4: =CustomerName1 -> 0 | L4: Project Name: | M4: =ProjectName -> 0
F5: =CustomerName2 -> 0 | L5: Project Address: | M5: =ProjectAddress -> 
E6: Home Phone: | F6: =CustomerHomePhone -> 0 | M6: =ProjectCity -> 
E7: Business Phone: | F7: =CustomerBusinessPhone -> 0 | L7: Lot Number: | M7: =ProjectLotNumber -> 
L8: Subdivision: | M8: =ProjectSubdivision -> 
E9: Total Sales Price: | F9: =F111 -> 9186.142509 | T9: FALSE
C11: Code | E11: Project Overhead & Lot | F11: Est. Cost or Bid | G11: % of Total | H11: $ / SF | I11: Change Orders | J11: Actual Bid | K11: 1 | L11: 2 | M11: 3 | O11: Total Draws | P11: Variance
A12: lot | B12: Lot!A1 | C12: 1000 | E12: Lot | F12: =TotalLot -> 0 | G12: =F12/(IF(TotalSalesPrice=0,1,TotalSalesPrice)) -> 0 | H12: =IF(TotalFinishedSF>0,F12/TotalFinishedSF,0) -> 0 | I12: =ChangeOrderSummary!J6 -> 0 | O12: =SUM(K12:N12) -> 0 | P12: =F12-O12 + IF(IncludeChanges = TRUE,I12,0) -> 0
A13: permit | B13: Permit!A1 | E13: Permit and Fees | F13: =TotalPermit -> 0 | G13: 0 | H13: 0 | I13: =ChangeOrderSummary!J7 -> 0 | O13: =SUM(K13:N13) -> 0 | P13: 0
A14: archengineering | B14: PlansEngineering!A1 | E14: Architecture & Engineering | F14: =TotalArchEngineering -> 0 | G14: 0 | H14: 0 | I14: =ChangeOrderSummary!J8 -> 0 | O14: 0 | P14: 0
A15: temporaryutilities | B15: TemporaryUtilities!A1 | E15: Temporary Utilities | F15: =TotalTempUtil -> 0 | G15: 0 | H15: 0 | I15: =ChangeOrderSummary!J9 -> 0 | O15: 0 | P15: 0
A16: constructionloan | B16: ConstructionLoan!A1 | E16: Construction Loan | F16: =TotalLoan -> 0 | G16: 0 | H16: 0 | I16: =ChangeOrderSummary!J10 -> 0 | O16: 0 | P16: 0
A17: SupervisionProfitOHCont | B17: SupervisionProfitOHCont!E12 | E17: Supervision | F17: =Supervision -> 129.5246122 | G17: 0.01410000031 | H17: 0 | I17: =ChangeOrderSummary!J11 -> 0 | O17: 0 | P17: 129.5246122
A18: SupervisionProfitOHCont | B18: SupervisionProfitOHCont!E23 | E18: Contingency | F18: =Contingency -> 172.6994829 | G18: 0.01880000041 | H18: 0 | I18: =ChangeOrderSummary!J12 -> 0 | O18: 0 | P18: 172.6994829
A19: SupervisionProfitOHCont | B19: SupervisionProfitOHCont!f23 | E19: Liability Insurance | F19: =LiabilityInsurance -> 0 | G19: 0 | H19: =IF(TotalFinishedSF>0,F19/TotalFinishedSF,0) -> 0 | I19: =ChangeOrderSummary!J13 -> 0 | O19: =SUM(K19:N19) -> 0 | P19: =F19-O19 + IF(IncludeChanges = TRUE,I19,0) -> 0
A20: SupervisionProfitOHCont | B20: SupervisionProfitOHCont!I23 | E20: Real Estate Commission | F20: =RealEstateComm -> 551.168561 | G20: 0.06000000113 | H20: 0 | I20: =ChangeOrderSummary!J14 -> 0 | O20: 0 | P20: 551.168561
A21: =findcustomname(Custom1Name) -> ZCustom1 | B21: Custom1Name | E21: =LEFT(Custom1Name,LEN(Custom1Name)-6) -> Custom 1 | F21: =TotalCustom1 -> 0 | G21: 0 | H21: 0 | I21: =ChangeOrderSummary!J15 -> 0 | O21: 0 | P21: 0
A22: =findcustomname(Custom2Name) -> ZCustom2 | B22: Custom2Name | E22: =LEFT(Custom2Name,LEN(Custom2Name)-6) -> Custom 2 | F22: =TotalCustom2 -> 0 | G22: 0 | H22: 0 | I22: =ChangeOrderSummary!J16 -> 0 | O22: 0 | P22: 0
A23: =findcustomname(Custom3Name) -> ZCustom3 | B23: Custom3Name | E23: =LEFT(Custom3Name,LEN(Custom3Name)-6) -> Custom 3 | F23: =TotalCustom3 -> 0 | G23: 0 | H23: 0 | I23: =ChangeOrderSummary!J17 -> 0 | O23: 0 | P23: 0
A24: =findcustomname(Custom4Name) -> ZCustom4 | B24: Custom4Name | E24: =LEFT(Custom4Name,LEN(Custom4Name)-6) -> Custom 4 | F24: =TotalCustom4 -> 0 | G24: 0 | H24: 0 | I24: =ChangeOrderSummary!J18 -> 0 | O24: 0 | P24: 0
E26: Subtotal - Project OH & Lot | F26: =SUM(F12:F25) -> 853.3926561 | G26: 0.09290000184 | H26: 0 | I26: 0 | J26: 0 | K26: 0 | L26: 0 | M26: 0 | O26: =SUM(O12:O25) -> 0 | P26: =SUM(P12:P25) -> 853.3926561
C28: Code | E28: Hard Costs | F28: Est. Cost or Bid | G28: % of Total | H28: $ / SF | I28: Change Order | J28: Actual Bid | K28: 1 | L28: 2 | M28: 3 | O28: Total Draws | P28: Variance
A29: demolition | B29: Demolition!A1 | E29: Demolition | F29: =TotalDemo -> 0 | G29: =F29/(IF(TotalSalesPrice=0,1,TotalSalesPrice)) -> 0 | H29: =IF(TotalFinishedSF>0,F29/TotalFinishedSF,0) -> 0 | I29: =ChangeOrderSummary!J23 -> 0 | O29: =SUM(K29:N29) -> 0 | P29: =F29-O29 + IF(IncludeChanges = TRUE,I29,0) -> 0
A30: earthwork | B30: Earthwork!A1 | E30: Earthwork | F30: =TotalEarthWork -> 0 | G30: =F30/(IF(TotalSalesPrice=0,1,TotalSalesPrice)) -> 0 | H30: 0 | I30: =ChangeOrderSummary!J24 -> 0 | O30: =SUM(K30:N30) -> 0 | P30: 0
A31: footings | B31: Footings!A1 | C31: 300 | E31: Footings | F31: =TotalFooting -> 2554.2615 | G31: 0.278055941 | H31: 0 | I31: =ChangeOrderSummary!J25 -> 0 | K31: 550 | L31: 1854 | M31: 400 | O31: 2804 | P31: -249.7385
A32: foundation | B32: Foundation!A1 | E32: Foundation | F32: =TotalFoundation -> 0 | G32: 0 | H32: 0 | I32: =ChangeOrderSummary!J26 -> 0 | O32: 0 | P32: 0
A33: cmufoundation | B33: CMUFoundation!A1 | E33: CMU Foundation | F33: =TotalCMU -> 0 | G33: 0 | H33: 0 | I33: =ChangeOrderSummary!J27 -> 0 | O33: 0 | P33: 0
A34: flatwork | B34: Flatwork!A1 | E34: Flatwork | F34: =TotalFlatwork -> 0 | G34: 0 | H34: 0 | I34: =ChangeOrderSummary!J28 -> 0 | O34: 0 | P34: 0
A35: miscsteel | B35: TotalMiscSteel | E35: Miscellaneous Steel | F35: =TotalMiscSteel -> 0 | G35: 0 | H35: 0 | I35: =ChangeOrderSummary!J29 -> 0 | O35: 0 | P35: 0
A36: windowwell | B36: WindowWell!A1 | E36: Window Wells | F36: =TotalWindowWell -> 0 | G36: 0 | H36: 0 | I36: =ChangeOrderSummary!J30 -> 0 | O36: 0 | P36: 0
A37: damproofing | B37: Damproofing!A1 | E37: Damproofing | F37: =TotalDamp -> 0 | G37: 0 | H37: 0 | I37: =ChangeOrderSummary!J31 -> 0 | O37: 0 | P37: 0
A38: utilitylaterals | B38: UtilityLaterals!A1 | E38: Utility Laterals | F38: =TotalUtilLat -> 0 | G38: 0 | H38: 0 | I38: =ChangeOrderSummary!J32 -> 0 | O38: 0 | P38: 0
A39: septicsystem | B39: SepticSystem!A1 | E39: Septic System | F39: =TotalSeptic -> 0 | G39: 0 | H39: 0 | I39: =ChangeOrderSummary!J33 -> 0 | O39: 0 | P39: 0
A40: potablewaterwell | B40: PotableWaterWell!A1 | E40: Potable Water Well Allow. | F40: =TotalWell -> 0 | G40: 0 | H40: 0 | I40: =ChangeOrderSummary!J34 -> 0 | O40: 0 | P40: 0
A41: framingmaterial | B41: FramingMaterial!A1 | E41: Framing Material | F41: =TotalFraming -> 0 | G41: 0 | H41: 0 | I41: =ChangeOrderSummary!J35 -> 0 | O41: 0 | P41: 0
A42: framinglabor | B42: FramingLabor!A1 | E42: Framing Labor | F42: =TotalFramingLabor -> 0 | G42: 0 | H42: 0 | I42: =ChangeOrderSummary!J36 -> 0 | O42: 0 | P42: 0
A43: entrydoor | B43: EntryDoor!A1 | E43: Entry Doors | F43: =TotalEntryDoor -> 0 | G43: 0 | H43: 0 | I43: =ChangeOrderSummary!J37 -> 0 | O43: 0 | P43: 0
A44: garagedoor | B44: GarageDoor!A1 | E44: Garage Doors | F44: =TotalGarageDoor -> 0 | G44: 0 | H44: 0 | I44: =ChangeOrderSummary!J38 -> 0 | O44: 0 | P44: 0
A45: windows | B45: Windows!A1 | E45: Windows | F45: =TotalWindows -> 0 | G45: 0 | H45: 0 | I45: =ChangeOrderSummary!J39 -> 0 | O45: 0 | P45: 0
A46: plumbing | B46: Plumbing!A1 | E46: Plumbing | F46: =TotalPlumbing -> 0 | G46: 0 | H46: 0 | I46: =ChangeOrderSummary!J40 -> 0 | O46: 0 | P46: 0
A47: heating | B47: Heating!A1 | E47: Heating | F47: =TotalHeating -> 0 | G47: 0 | H47: 0 | I47: =ChangeOrderSummary!J41 -> 0 | O47: 0 | P47: 0
A48: airconditioning | B48: AirConditioning!A1 | E48: Air Conditioning | F48: =TotalAirCond -> 0 | G48: 0 | H48: 0 | I48: =ChangeOrderSummary!J42 -> 0 | O48: 0 | P48: 0 | AS48: ``
A49: eletrical | B49: Electrical!A1 | E49: Electrical | F49: =TotalElectrical -> 0 | G49: 0 | H49: 0 | I49: =ChangeOrderSummary!J43 -> 0 | O49: 0 | P49: 0
A50: lightfixtures | B50: LightFixtures!A1 | E50: Light Fixture Allowance | F50: =TotalLightAllow -> 0 | G50: 0 | H50: 0 | I50: =ChangeOrderSummary!J44 -> 0 | O50: 0 | P50: 0
A51: roofing | B51: Roofing!A1 | E51: Roofing | F51: =TotalRoof -> 4224.193125 | G51: 0.4598440663 | H51: 0 | I51: =ChangeOrderSummary!J45 -> 0 | O51: 0 | P51: 4224.193125
A52: insulation | B52: Insulation!A1 | E52: Insulation | F52: =TotalInsulation -> 0 | G52: 0 | H52: 0 | I52: =ChangeOrderSummary!J46 -> 0 | O52: 0 | P52: 0
A53: drywall | B53: Drywall!A1 | E53: Drywall | F53: =TotalDryWall -> 0 | G53: 0 | H53: 0 | I53: =ChangeOrderSummary!J47 -> 0 | O53: 0 | P53: 0
A54: finishcarpentry | B54: FinishCarpentry!A1 | E54: Finish Carpentry | F54: =TotalFinishCar -> 0 | G54: 0 | H54: 0 | I54: =ChangeOrderSummary!J48 -> 0 | O54: 0 | P54: 0
B55: FinishCarpentryLabor!A1 | E55: Finish Carpentry Labor | F55: =TotalFinishLabor -> 0 | G55: 0 | H55: 0 | I55: =ChangeOrderSummary!J49 -> 0 | O55: 0 | P55: 0
A56: painting | B56: Painting!A1 | E56: Painting | F56: =TotalPainting -> 0 | G56: 0 | H56: 0 | I56: =ChangeOrderSummary!J50 -> 0 | O56: 0 | P56: 0
A57: tilemarble | B57: TileMarble!A1 | E57: Tile/Marble | F57: =TotalTileMarble -> 0 | G57: 0 | H57: 0 | I57: =ChangeOrderSummary!J51 -> 0 | O57: 0 | P57: 0
A58: fireplace | B58: Fireplace!A1 | E58: Fireplace Allowance | F58: =TotalFireplace -> 0 | G58: 0 | H58: 0 | I58: =ChangeOrderSummary!J52 -> 0 | O58: 0 | P58: 0
A59: floorcoverings | B59: FloorCoverings!A1 | E59: Floor Coverings | F59: =TotalFloorCover -> 0 | G59: 0 | H59: 0 | I59: =ChangeOrderSummary!J53 -> 0 | O59: 0 | P59: 0
A60: cabinets | B60: Cabinets!A1 | E60: Cabinets | F60: =TotalCabinet -> 0 | G60: 0 | H60: 0 | I60: =ChangeOrderSummary!J54 -> 0 | O60: 0 | P60: 0
A61: countertops | B61: Countertops!A1 | E61: Countertops | F61: =TotalCountertop -> 0 | G61: 0 | H61: =IF(TotalFinishedSF>0,F61/TotalFinishedSF,0) -> 0 | I61: =ChangeOrderSummary!J55 -> 0 | O61: 0 | P61: =F61-O61 + IF(IncludeChanges = TRUE,I61,0) -> 0
A62: appliances | B62: Appliances!A1 | E62: Appliances | F62: =TotalAppliance -> 0 | G62: =F62/(IF(TotalSalesPrice=0,1,TotalSalesPrice)) -> 0 | H62: 0 | I62: =ChangeOrderSummary!J56 -> 0 | O62: 0 | P62: 0
A63: hardwaremirror | B63: HardwareMirror!A1 | E63: Hardware & Mirrors | F63: =TotalHdwMirror -> 0 | G63: 0 | H63: 0 | I63: =ChangeOrderSummary!J57 -> 0 | O63: 0 | P63: 0
A64: Siding | B64: Siding!A1 | E64: Siding | F64: =TotalSidingLump -> 0 | G64: 0 | H64: 0 | I64: =ChangeOrderSummary!J58 -> 0 | O64: 0 | P64: 0
A65: Siding | E65: Vinyl / Alum. Siding | F65: =TotalAlumVinyl -> 0 | G65: 0 | H65: 0 | I65: =ChangeOrderSummary!J59 -> 0 | O65: 0 | P65: 0
A66: Siding | E66: Wood Siding | F66: =TotalWoodSiding -> 0 | G66: 0 | H66: 0 | I66: =ChangeOrderSummary!J60 -> 0 | O66: 0 | P66: 0
A67: Siding | E67: Brick | F67: =TotalBrickSiding -> 0 | G67: 0 | H67: 0 | I67: =ChangeOrderSummary!J61 -> 0 | O67: 0 | P67: 0
A68: Siding | E68: Stucco | F68: =TotalStuccoSiding -> 0 | G68: 0 | H68: 0 | I68: =ChangeOrderSummary!J62 -> 0 | O68: 0 | P68: 0
A69: Siding | E69: Stone | F69: =TotalStoneSiding -> 0 | G69: 0 | H69: 0 | I69: =ChangeOrderSummary!J63 -> 0 | O69: 0 | P69: 0
A70: Siding | E70: Other | F70: =TotalOtherSiding -> 0 | G70: 0 | H70: 0 | I70: =ChangeOrderSummary!J64 -> 0 | O70: 0 | P70: 0
A71: soffitfascia | B71: SoffitFascia!A1 | E71: Soffit & Fascia | F71: =TotalSoffitFascia -> 0 | G71: 0 | H71: 0 | I71: =ChangeOrderSummary!J65 -> 0 | O71: 0 | P71: 0
A72: butter | B72: Gutter!A1 | E72: Gutter | F72: =TotalGutter -> 0 | G72: 0 | H72: 0 | I72: =ChangeOrderSummary!J66 -> 0 | O72: 0 | P72: 0
A73: deck | B73: Deck!A1 | E73: Deck | F73: =TotalDeck -> 0 | G73: 0 | H73: 0 | I73: =ChangeOrderSummary!J67 -> 0 | O73: 0 | P73: 0
A74: extrailing | B74: ExtRailing!A1 | E74: Exterior Railing | F74: =TotalRailing -> 0 | G74: 0 | H74: 0 | I74: =ChangeOrderSummary!J68 -> 0 | O74: 0 | P74: 0
A75: fdnplaster | B75: FDNPlaster!A1 | E75: Foundation Plaster | F75: =TotalPlaster -> 0 | G75: 0 | H75: 0 | I75: =ChangeOrderSummary!J69 -> 0 | O75: 0 | P75: 0
A76: cleanup | B76: Cleanup!A1 | E76: Clean-up | F76: =TotalCleanup -> 0 | G76: 0 | H76: 0 | I76: =ChangeOrderSummary!J70 -> 0 | O76: 0 | P76: 0
A77: landscaping | B77: Landscaping!A1 | E77: Landscaping | F77: =TotalLandscaping -> 0 | G77: 0 | H77: 0 | I77: =ChangeOrderSummary!J71 -> 0 | O77: 0 | P77: 0
A78: =findcustomname(Custom5Name) -> ZCustom5 | B78: Custom5Name | E78: =LEFT(Custom5Name,LEN(Custom5Name)-6) -> Custom 5 | F78: =TotalCustom5 -> 0 | G78: 0 | H78: 0 | I78: =ChangeOrderSummary!J72 -> 0 | O78: 0 | P78: 0
A79: =findcustomname(Custom6Name) -> ZCustom6 | B79: Custom6Name | E79: =LEFT(Custom6Name,LEN(Custom6Name)-6) -> Custom 6 | F79: =TotalCustom6 -> 0 | G79: 0 | H79: 0 | I79: =ChangeOrderSummary!J73 -> 0 | O79: 0 | P79: 0
A80: =findcustomname(Custom7Name) -> ZCustom7 | B80: Custom7Name | E80: =LEFT(Custom7Name,LEN(Custom7Name)-6) -> Custom 7 | F80: =TotalCustom7 -> 0 | G80: 0 | H80: 0 | I80: =ChangeOrderSummary!J74 -> 0 | O80: 0 | P80: 0
A81: =findcustomname(Custom8Name) -> ZCustom8 | B81: Custom8Name | E81: =LEFT(Custom8Name,LEN(Custom8Name)-6) -> Custom 8 | F81: =TotalCustom8 -> 0 | G81: 0 | H81: 0 | I81: =ChangeOrderSummary!J75 -> 0 | O81: 0 | P81: 0
A82: =findcustomname(Custom9Name) -> ZCustom9 | B82: Custom9Name | E82: =LEFT(Custom9Name,LEN(Custom9Name)-6) -> Custom 9 | F82: =TotalZCustom9 -> 0 | G82: 0 | H82: 0 | I82: =ChangeOrderSummary!J76 -> 0 | O82: 0 | P82: 0
A83: =findcustomname(Custom10Name) -> ZCustom10 | B83: Custom10Name | E83: =LEFT(Custom10Name,LEN(Custom10Name)-6) -> Custom 10 | F83: =TotalCustom10 -> 0 | G83: 0 | H83: 0 | I83: =ChangeOrderSummary!J77 -> 0 | O83: 0 | P83: 0
A84: =findcustomname(Custom11Name) -> ZCustom11 | B84: Custom11Name | E84: =LEFT(Custom11Name,LEN(Custom11Name)-6) -> Custom 11 | F84: =TotalZCustom11 -> 0 | G84: 0 | H84: 0 | I84: =ChangeOrderSummary!J78 -> 0 | O84: 0 | P84: 0
A85: =findcustomname(Custom12Name) -> ZCustom12 | B85: Custom12Name | E85: =LEFT(Custom12Name,LEN(Custom12Name)-6) -> Custom 12 | F85: =TotalZCustom12 -> 0 | G85: 0 | H85: 0 | I85: =ChangeOrderSummary!J79 -> 0 | O85: 0 | P85: 0
A86: =findcustomname(Custom13Name) -> ZCustom13 | B86: Custom13Name | E86: =LEFT(Custom13Name,LEN(Custom13Name)-6) -> Custom 13 | F86: =TotalZCustom13 -> 0 | G86: 0 | H86: 0 | I86: =ChangeOrderSummary!J80 -> 0 | O86: 0 | P86: 0
A87: =findcustomname(Custom14Name) -> ZCustom14 | B87: Custom14Name | E87: =LEFT(Custom14Name,LEN(Custom14Name)-6) -> Custom 14 | F87: =TotalZCustom14 -> 0 | G87: 0 | H87: 0 | I87: =ChangeOrderSummary!J81 -> 0 | O87: 0 | P87: 0
A88: =findcustomname(Custom15Name) -> ZCustom15 | B88: Custom15Name | E88: =LEFT(Custom15Name,LEN(Custom15Name)-6) -> Custom 15 | F88: =TotalZCustom15 -> 0 | G88: 0 | H88: 0 | I88: =ChangeOrderSummary!J82 -> 0 | O88: 0 | P88: 0
A89: =findcustomname(Custom16Name) -> ZCustom16 | B89: Custom16Name | E89: =LEFT(Custom16Name,LEN(Custom16Name)-6) -> Custom 16 | F89: =TotalZCustom16 -> 0 | G89: 0 | H89: 0 | I89: =ChangeOrderSummary!J83 -> 0 | O89: 0 | P89: 0
A90: =findcustomname(Custom17Name) -> ZCustom17 | B90: Custom17Name | E90: =LEFT(Custom17Name,LEN(Custom17Name)-6) -> Custom 17 | F90: =TotalZCustom17 -> 0 | G90: 0 | H90: 0 | I90: =ChangeOrderSummary!J84 -> 0 | O90: 0 | P90: 0
A91: =findcustomname(Custom18Name) -> ZCustom18 | B91: Custom18Name | E91: =LEFT(Custom18Name,LEN(Custom18Name)-6) -> Custom 18 | F91: =TotalZCustom18 -> 0 | G91: 0 | H91: 0 | I91: =ChangeOrderSummary!J85 -> 0 | O91: 0 | P91: 0
A92: =findcustomname(Custom19Name) -> ZCustom19 | B92: Custom19Name | E92: =LEFT(Custom19Name,LEN(Custom19Name)-6) -> Custom 19 | F92: =TotalZCustom19 -> 0 | G92: 0 | H92: 0 | I92: =ChangeOrderSummary!J86 -> 0 | O92: 0 | P92: 0
A93: =findcustomname(Custom20Name) -> ZCustom20 | B93: Custom20Name | E93: =LEFT(Custom20Name,LEN(Custom20Name)-6) -> Custom 20 | F93: =TotalZCustom20 -> 0 | G93: 0 | H93: 0 | I93: =ChangeOrderSummary!J87 -> 0 | O93: 0 | P93: =F93-O93 + IF(IncludeChanges = TRUE,I93,0) -> 0
A94: =findcustomname(Custom21Name) -> ZCustom21 | E94: =LEFT(Custom21Name,LEN(Custom21Name)-6) -> Custom 21 | F94: =TotalCustom21 -> 0 | G94: 0 | H94: 0 | I94: =ChangeOrderSummary!J88 -> 0 | O94: 0 | P94: 0
A95: =findcustomname(Custom22Name) -> ZCustom22 | E95: =LEFT(Custom22Name,LEN(Custom22Name)-6) -> Custom 22 | F95: =TotalCustom22 -> 0 | G95: 0 | H95: 0 | I95: =ChangeOrderSummary!J89 -> 0 | O95: =SUM(K95:N95) -> 0 | P95: 0
A96: =findcustomname(Custom23Name) -> ZCustom23 | E96: =LEFT(Custom23Name,LEN(Custom23Name)-6) -> Custom 23 | F96: =TotalCustom23 -> 0 | G96: 0 | H96: 0 | I96: =ChangeOrderSummary!J90 -> 0 | O96: 0 | P96: 0
A97: =findcustomname(Custom24Name) -> ZCustom24 | E97: =LEFT(Custom24Name,LEN(Custom24Name)-6) -> Custom 24 | F97: =TotalCustom24 -> 0 | G97: 0 | H97: 0 | I97: =ChangeOrderSummary!J91 -> 0 | O97: 0 | P97: 0
A98: =findcustomname(Custom25Name) -> ZCustom25 | E98: =LEFT(Custom25Name,LEN(Custom25Name)-6) -> Custom 25 | F98: =TotalCustom25 -> 0 | G98: 0 | H98: 0 | I98: =ChangeOrderSummary!J92 -> 0 | O98: 0 | P98: 0
A99: =findcustomname(Custom26Name) -> ZCustom26 | E99: =LEFT(Custom26Name,LEN(Custom26Name)-6) -> Custom 26 | F99: =TotalCustom26 -> 0 | G99: 0 | H99: 0 | I99: =ChangeOrderSummary!J93 -> 0 | O99: 0 | P99: 0
A100: =findcustomname(Custom27Name) -> ZCustom27 | E100: =LEFT(Custom27Name,LEN(Custom27Name)-6) -> Custom 27 | F100: =TotalCustom27 -> 0 | G100: 0 | H100: 0 | I100: =ChangeOrderSummary!J94 -> 0 | O100: 0 | P100: 0
A101: =findcustomname(Custom28Name) -> ZCustom28 | E101: =LEFT(Custom28Name,LEN(Custom28Name)-6) -> Custom 28 | F101: =TotalCustom28 -> 0 | G101: 0 | H101: 0 | I101: =ChangeOrderSummary!J95 -> 0 | O101: 0 | P101: 0
A102: =findcustomname(Custom29Name) -> ZCustom29 | E102: =LEFT(Custom29Name,LEN(Custom29Name)-6) -> Custom 29 | F102: =TotalCustom29 -> 0 | G102: 0 | H102: 0 | I102: =ChangeOrderSummary!J96 -> 0 | O102: 0 | P102: 0
A103: =findcustomname(Custom30Name) -> ZCustom30 | E103: =LEFT(Custom30Name,LEN(Custom30Name)-6) -> Custom 30 | F103: =TotalCustom30 -> 0 | G103: 0 | H103: 0 | I103: =ChangeOrderSummary!J97 -> 0 | O103: 0 | P103: 0
E105: Subtotal of Hard Costs: | F105: =SUM(F29:F104) -> 6778.454625 | G105: 0.7379000073 | H105: 0 | I105: 0 | J105: 0 | K105: 550 | L105: 1854 | M105: 400 | O105: =SUM(O29:O104) -> 2804 | P105: =SUM(P29:P104) -> 3974.454625
E107: Tot. Hard Costs & Proj. OH | F107: =TotalHardCosts+TotalProjectOH -> 7631.847281 | G107: =TotalHardCosts+TotalProjectOH -> 7631.847281 | H107: =H105+H26 -> 0 | I107: 0 | J107: 0 | K107: 550 | L107: 1854 | M107: 400 | O107: =O105+O26 -> 2804 | P107: =P105+P26 -> 4827.847281
A109: SupervisionProfitOHCont | B109: SupervisionProfitOHCont!E19 | E109: Company Overhead (G&A) | F109: =CompanyOH -> 690.7979317 | G109: =F109/(IF(TotalSalesPrice=0,1,TotalSalesPrice)) -> 0.07520000163 | H109: =IF(TotalFinishedSF>0,F109/TotalFinishedSF,0) -> 0 | O109: =SUM(K109:N109) -> 0 | P109: =F109-O109 -> 690.7979317
A110: SupervisionProfitOHCont | B110: SupervisionProfitOHCont!E15 | E110: Builder's Margin | F110: =Profit -> 863.4974146 | G110: =F110/(IF(TotalSalesPrice=0,1,TotalSalesPrice)) -> 0.09400000204 | H110: =IF(TotalFinishedSF>0,F110/TotalFinishedSF,0) -> 0 | O110: =SUM(K110:N110) -> 0 | P110: =F110-O110 -> 863.4974146
E111: Total Sales Price: | F111: =F110+F109+F107 -> 9186.142627 | P111: =SUM(P109:P110,P107) -> 6382.142627

Sheet CustomerSummary
R1: =IF(TotalSalesPrice-Profit=0,-1,B111) -> 7469.252522 | S1: =IF(B111=0,0,IF(S2=TRUE,Profit*(S4),S6)) -> 1000
O2: Estimator Pro Customer Summary | S2: FALSE
E3: =EstimateDate -> 2008-07-11
E4: Customer's Names: | F4: =TEXT(CustomerName1,"") ->  | K4: Lot ID: | L4: =TEXT(ProjectLotNumber,"") ->  | S4: 0.5
F5: =TEXT(CustomerName2,"") ->  | K5: Subdivision: | L5: =TEXT(ProjectSubdivision,"") -> 
E6: Home Phone: | F6: =CustomerHomePhone -> 0 | K6: Project Address: | L6: =TEXT(ProjectAddress,"") ->  | S6: 1000
E7: Business Phone: | F7: =CustomerBusinessPhone -> 0 | L7: =TEXT(ProjectCity,"") -> 
E9: Total Sales Price: | F9: =TotalSalesPrice -> 9186.142509
C11: Code | E11: Project Overhead & Lot | F11: Est. Cost or Bid | G11: % of Total | H11: Actual Bid | I11: % of Total | J11: 1 | K11: 2 | L11: 3 | N11: Total Draws | O11: Variance
B12: =IF(D12="+",TotalLot,0) -> 0 | C12: =CostBreakdownSummary!C12 -> 1000 | E12: Lot | F12: =TotalLot*G12 -> 0 | G12: =IF(AND(D12="+",$R$1<>0),(1+($S$1/$R$1)),1) -> 1 | I12: =F12/(IF(TotalSalesPrice=0,1,TotalSalesPrice)) -> 0 | J12: =CostBreakdownSummary!K12 -> 0 | K12: =CostBreakdownSummary!L12 -> 0 | L12: =CostBreakdownSummary!M12 -> 0 | N12: =SUM(J12:M12) -> 0 | O12: =F12-N12 -> 0
B13: =IF(D13="+",TotalPermit,0) -> 0 | C13: =CostBreakdownSummary!C13 -> 0 | E13: Permit and Fees | F13: =TotalPermit*G13 -> 0 | G13: =IF(AND(D13="+",$R$1<>0),(1+($S$1/$R$1)),1) -> 1 | I13: =F13/(IF(TotalSalesPrice=0,1,TotalSalesPrice)) -> 0 | J13: =CostBreakdownSummary!K13 -> 0 | K13: =CostBreakdownSummary!L13 -> 0 | L13: =CostBreakdownSummary!M13 -> 0 | N13: =SUM(J13:M13) -> 0 | O13: 0
B14: =IF(D14="+",TotalArchEngineering,0) -> 0 | C14: =CostBreakdownSummary!C14 -> 0 | E14: Architecture & Engineering | F14: =TotalArchEngineering*G14 -> 0 | G14: =IF(AND(D14="+",$R$1<>0),(1+($S$1/$R$1)),1) -> 1 | I14: =F14/(IF(TotalSalesPrice=0,1,TotalSalesPrice)) -> 0 | J14: =CostBreakdownSummary!K14 -> 0 | K14: =CostBreakdownSummary!L14 -> 0 | L14: =CostBreakdownSummary!M14 -> 0 | N14: 0 | O14: 0
B15: =IF(D15="+",TotalTempUtil,0) -> 0 | C15: =CostBreakdownSummary!C15 -> 0 | D15: + | E15: Temporary Utilities | F15: =TotalTempUtil*G15 -> 0 | G15: 1.133882205 | I15: 0 | J15: =CostBreakdownSummary!K15 -> 0 | K15: =CostBreakdownSummary!L15 -> 0 | L15: =CostBreakdownSummary!M15 -> 0 | N15: 0 | O15: 0
B16: =IF(D16="+",TotalLoan,0) -> 0 | C16: =CostBreakdownSummary!C16 -> 0 | E16: Construction Loan | F16: =TotalLoan*G16 -> 0 | G16: 1 | I16: 0 | J16: =CostBreakdownSummary!K16 -> 0 | K16: =CostBreakdownSummary!L16 -> 0 | L16: =CostBreakdownSummary!M16 -> 0 | N16: 0 | O16: 0
B17: =IF(D17="+",Supervision,0) -> 0 | C17: =CostBreakdownSummary!C17 -> 0 | E17: Supervision | F17: =Supervision*G17 -> 129.5246122 | G17: 1 | I17: 0.01410000031 | J17: =CostBreakdownSummary!K17 -> 0 | K17: =CostBreakdownSummary!L17 -> 0 | L17: =CostBreakdownSummary!M17 -> 0 | N17: 0 | O17: 129.5246122
A18: 1 | B18: =IF(D18="+",Contingency,0) -> 0 | C18: =CostBreakdownSummary!C18 -> 0 | E18: Contingency | F18: =Contingency*G18 -> 172.6994829 | G18: 1 | I18: 0.01880000041 | J18: =CostBreakdownSummary!K18 -> 0 | K18: =CostBreakdownSummary!L18 -> 0 | L18: =CostBreakdownSummary!M18 -> 0 | N18: 0 | O18: 172.6994829
A19: 2 | B19: =IF(D19="+",Contingency,0) -> 0 | C19: =CostBreakdownSummary!C19 -> 0 | E19: Liability Insurance | F19: =LiabilityInsurance*G19 -> 0 | G19: =IF(AND(D19="+",$R$1<>0),(1+($S$1/$R$1)),1) -> 1 | I19: =F19/(IF(TotalSalesPrice=0,1,TotalSalesPrice)) -> 0 | J19: =CostBreakdownSummary!K19 -> 0 | K19: =CostBreakdownSummary!L19 -> 0 | L19: =CostBreakdownSummary!M19 -> 0 | N19: =SUM(J19:M19) -> 0 | O19: =F19-N19 -> 0
B20: =IF(D20="+",RealEstateComm,0) -> 0 | C20: =CostBreakdownSummary!C20 -> 0 | E20: Real Estate Commission | F20: =RealEstateComm*G20 -> 551.168561 | G20: 1 | I20: 0.06000000113 | J20: =CostBreakdownSummary!K20 -> 0 | K20: =CostBreakdownSummary!L20 -> 0 | L20: =CostBreakdownSummary!M20 -> 0 | N20: 0 | O20: 551.168561
B21: =IF(D21="+",TotalCustom1,0) -> 0 | C21: =CostBreakdownSummary!C21 -> 0 | D21: + | E21: =LEFT(Custom1Name,LEN(Custom1Name)-6) -> Custom 1 | F21: =TotalCustom1*G21 -> 0 | G21: 1.133882205 | I21: 0 | J21: =CostBreakdownSummary!K21 -> 0 | K21: =CostBreakdownSummary!L21 -> 0 | L21: =CostBreakdownSummary!M21 -> 0 | N21: 0 | O21: 0
B22: =IF(D22="+",TotalCustom2,0) -> 0 | C22: =CostBreakdownSummary!C22 -> 0 | D22: + | E22: =LEFT(Custom2Name,LEN(Custom2Name)-6) -> Custom 2 | F22: =TotalCustom2*G22 -> 0 | G22: 1.133882205 | I22: 0 | J22: =CostBreakdownSummary!K22 -> 0 | K22: =CostBreakdownSummary!L22 -> 0 | L22: =CostBreakdownSummary!M22 -> 0 | N22: 0 | O22: 0
B23: =IF(D23="+",TotalCustom3,0) -> 0 | C23: =CostBreakdownSummary!C23 -> 0 | D23: + | E23: =LEFT(Custom3Name,LEN(Custom3Name)-6) -> Custom 3 | F23: =TotalCustom3*G23 -> 0 | G23: 1.133882205 | I23: 0 | J23: =CostBreakdownSummary!K23 -> 0 | K23: =CostBreakdownSummary!L23 -> 0 | L23: =CostBreakdownSummary!M23 -> 0 | N23: 0 | O23: 0
B24: =IF(D24="+",TotalCustom4,0) -> 0 | C24: =CostBreakdownSummary!C24 -> 0 | D24: + | E24: =LEFT(Custom4Name,LEN(Custom4Name)-6) -> Custom 4 | F24: =TotalCustom4*G24 -> 0 | G24: 1.133882205 | I24: 0 | J24: =CostBreakdownSummary!K24 -> 0 | K24: =CostBreakdownSummary!L24 -> 0 | L24: =CostBreakdownSummary!M24 -> 0 | N24: 0 | O24: 0
E26: Subtotal - Project OH & Lot | F26: =SUM(F12:F25) -> 853.3926561 | H26: =SUM(H12:H18) -> 0 | I26: =F26/(IF(TotalSalesPrice=0,1,TotalSalesPrice)) -> 0.09290000184 | J26: =SUM(J12:J25) -> 0 | K26: 0 | L26: 0 | N26: 0 | O26: 853.3926561
C28: Code | E28: Hard Costs | F28: Est. Cost or Bid | G28: % of Total | H28: Actual Bid | I28: % of Total | J28: 1 | K28: 2 | L28: 3 | N28: Total Draws | O28: Variance
B29: =IF(D29="+",TotalDemo,0) -> 0 | C29: =CostBreakdownSummary!C29 -> 0 | D29: + | E29: Demolition | F29: =TotalDemo*G29 -> 0 | G29: =IF(AND(D29="+",$R$1<>0),(1+($S$1/$R$1)),1) -> 1.133882205 | I29: =F29/(IF(TotalSalesPrice=0,1,TotalSalesPrice)) -> 0 | J29: =CostBreakdownSummary!K29 -> 0 | K29: =CostBreakdownSummary!L29 -> 0 | L29: =CostBreakdownSummary!M29 -> 0 | N29: =SUM(J29:M29) -> 0 | O29: =F29-N29 -> 0
B30: =IF(D30="+",TotalEarthWork,0) -> 0 | C30: =CostBreakdownSummary!C30 -> 0 | D30: + | E30: Earthwork | F30: =TotalEarthWork*G30 -> 0 | G30: 1.133882205 | I30: =F30/(IF(TotalSalesPrice=0,1,TotalSalesPrice)) -> 0 | J30: =CostBreakdownSummary!K30 -> 0 | K30: =CostBreakdownSummary!L30 -> 0 | L30: =CostBreakdownSummary!M30 -> 0 | N30: 0 | O30: 0
B31: =IF(D31="+",TotalFooting,0) -> 2554.2615 | C31: =CostBreakdownSummary!C31 -> 300 | D31: + | E31: Footings | F31: =TotalFooting*G31 -> 2896.23166 | G31: 1.133882205 | I31: 0.3152826834 | J31: =CostBreakdownSummary!K31 -> 550 | K31: =CostBreakdownSummary!L31 -> 1854 | L31: =CostBreakdownSummary!M31 -> 400 | N31: 2804 | O31: 92.23166031
B32: =IF(D32="+",TotalFoundation,0) -> 0 | C32: =CostBreakdownSummary!C32 -> 0 | D32: + | E32: Foundation | F32: =TotalFoundation*G32 -> 0 | G32: 1.133882205 | I32: 0 | J32: =CostBreakdownSummary!K32 -> 0 | K32: =CostBreakdownSummary!L32 -> 0 | L32: =CostBreakdownSummary!M32 -> 0 | N32: 0 | O32: 0
B33: =IF(D33="+",TotalCMU,0) -> 0 | C33: =CostBreakdownSummary!C33 -> 0 | D33: + | E33: CMU Foundation | F33: =TotalCMU*G33 -> 0 | G33: 1.133882205 | I33: 0 | J33: =CostBreakdownSummary!K33 -> 0 | K33: =CostBreakdownSummary!L33 -> 0 | L33: =CostBreakdownSummary!M33 -> 0 | N33: 0 | O33: 0
B34: =IF(D34="+",TotalFlatwork,0) -> 0 | C34: =CostBreakdownSummary!C34 -> 0 | D34: + | E34: Flatwork | F34: =TotalFlatwork*G34 -> 0 | G34: 1.133882205 | I34: 0 | J34: =CostBreakdownSummary!K34 -> 0 | K34: =CostBreakdownSummary!L34 -> 0 | L34: =CostBreakdownSummary!M34 -> 0 | N34: 0 | O34: 0
B35: =IF(D35="+",TotalMiscSteel,0) -> 0 | C35: =CostBreakdownSummary!C35 -> 0 | D35: + | E35: Miscellaneous Steel | F35: =TotalMiscSteel*G35 -> 0 | G35: 1.133882205 | I35: 0 | J35: =CostBreakdownSummary!K35 -> 0 | K35: =CostBreakdownSummary!L35 -> 0 | L35: =CostBreakdownSummary!M35 -> 0 | N35: 0 | O35: 0
B36: =IF(D36="+",TotalWindowWell,0) -> 0 | C36: =CostBreakdownSummary!C36 -> 0 | D36: + | E36: Window Wells | F36: =TotalWindowWell*G36 -> 0 | G36: 1.133882205 | I36: 0 | J36: =CostBreakdownSummary!K36 -> 0 | K36: =CostBreakdownSummary!L36 -> 0 | L36: =CostBreakdownSummary!M36 -> 0 | N36: 0 | O36: 0
B37: =IF(D37="+",TotalDamp,0) -> 0 | C37: =CostBreakdownSummary!C37 -> 0 | D37: + | E37: Damproofing | F37: =TotalDamp*G37 -> 0 | G37: 1.133882205 | I37: 0 | J37: =CostBreakdownSummary!K37 -> 0 | K37: =CostBreakdownSummary!L37 -> 0 | L37: =CostBreakdownSummary!M37 -> 0 | N37: 0 | O37: 0
B38: =IF(D38="+",TotalUtilLat,0) -> 0 | C38: =CostBreakdownSummary!C38 -> 0 | D38: + | E38: Utility Laterals | F38: =TotalUtilLat*G38 -> 0 | G38: 1.133882205 | I38: 0 | J38: =CostBreakdownSummary!K38 -> 0 | K38: =CostBreakdownSummary!L38 -> 0 | L38: =CostBreakdownSummary!M38 -> 0 | N38: 0 | O38: 0
B39: =IF(D39="+",TotalSeptic,0) -> 0 | C39: =CostBreakdownSummary!C39 -> 0 | D39: + | E39: Septic System | F39: =TotalSeptic*G39 -> 0 | G39: 1.133882205 | I39: 0 | J39: =CostBreakdownSummary!K39 -> 0 | K39: =CostBreakdownSummary!L39 -> 0 | L39: =CostBreakdownSummary!M39 -> 0 | N39: 0 | O39: 0
B40: =IF(D40="+",TotalWell,0) -> 0 | C40: =CostBreakdownSummary!C40 -> 0 | E40: Potable Water Well Allow. | F40: =TotalWell*G40 -> 0 | G40: 1 | I40: 0 | J40: =CostBreakdownSummary!K40 -> 0 | K40: =CostBreakdownSummary!L40 -> 0 | L40: =CostBreakdownSummary!M40 -> 0 | N40: 0 | O40: 0
B41: =IF(D41="+",TotalFraming,0) -> 0 | C41: =CostBreakdownSummary!C41 -> 0 | D41: + | E41: Framing Material | F41: =TotalFraming*G41 -> 0 | G41: 1.133882205 | I41: 0 | J41: =CostBreakdownSummary!K41 -> 0 | K41: =CostBreakdownSummary!L41 -> 0 | L41: =CostBreakdownSummary!M41 -> 0 | N41: 0 | O41: 0
B42: =IF(D42="+",TotalFramingLabor,0) -> 0 | C42: =CostBreakdownSummary!C42 -> 0 | D42: + | E42: Framing Labor | F42: =TotalFramingLabor*G42 -> 0 | G42: 1.133882205 | I42: 0 | J42: =CostBreakdownSummary!K42 -> 0 | K42: =CostBreakdownSummary!L42 -> 0 | L42: =CostBreakdownSummary!M42 -> 0 | N42: 0 | O42: 0
B43: =IF(D43="+",TotalEntryDoor,0) -> 0 | C43: =CostBreakdownSummary!C43 -> 0 | D43: + | E43: Entry Doors | F43: =TotalEntryDoor*G43 -> 0 | G43: 1.133882205 | I43: 0 | J43: =CostBreakdownSummary!K43 -> 0 | K43: =CostBreakdownSummary!L43 -> 0 | L43: =CostBreakdownSummary!M43 -> 0 | N43: 0 | O43: 0
B44: =IF(D44="+",TotalGarageDoor,0) -> 0 | C44: =CostBreakdownSummary!C44 -> 0 | D44: + | E44: Garage Doors | F44: =TotalGarageDoor*G44 -> 0 | G44: 1.133882205 | I44: 0 | J44: =CostBreakdownSummary!K44 -> 0 | K44: =CostBreakdownSummary!L44 -> 0 | L44: =CostBreakdownSummary!M44 -> 0 | N44: 0 | O44: 0
B45: =IF(D45="+",TotalWindows,0) -> 0 | C45: =CostBreakdownSummary!C45 -> 0 | D45: + | E45: Windows | F45: =TotalWindows*G45 -> 0 | G45: 1.133882205 | I45: 0 | J45: =CostBreakdownSummary!K45 -> 0 | K45: =CostBreakdownSummary!L45 -> 0 | L45: =CostBreakdownSummary!M45 -> 0 | N45: 0 | O45: 0
B46: =IF(D46="+",TotalPlumbing,0) -> 0 | C46: =CostBreakdownSummary!C46 -> 0 | D46: + | E46: Plumbing | F46: =TotalPlumbing*G46 -> 0 | G46: 1.133882205 | I46: 0 | J46: =CostBreakdownSummary!K46 -> 0 | K46: =CostBreakdownSummary!L46 -> 0 | L46: =CostBreakdownSummary!M46 -> 0 | N46: 0 | O46: 0
B47: =IF(D47="+",TotalHeating,0) -> 0 | C47: =CostBreakdownSummary!C47 -> 0 | D47: + | E47: Heating | F47: =TotalHeating*G47 -> 0 | G47: 1.133882205 | I47: 0 | J47: =CostBreakdownSummary!K47 -> 0 | K47: =CostBreakdownSummary!L47 -> 0 | L47: =CostBreakdownSummary!M47 -> 0 | N47: 0 | O47: 0
B48: =IF(D48="+",TotalAirCond,0) -> 0 | C48: =CostBreakdownSummary!C48 -> 0 | D48: + | E48: Air Conditioning | F48: =TotalAirCond*G48 -> 0 | G48: 1.133882205 | I48: 0 | J48: =CostBreakdownSummary!K48 -> 0 | K48: =CostBreakdownSummary!L48 -> 0 | L48: =CostBreakdownSummary!M48 -> 0 | N48: 0 | O48: 0
B49: =IF(D49="+",TotalElectrical,0) -> 0 | C49: =CostBreakdownSummary!C49 -> 0 | D49: + | E49: Electrical | F49: =TotalElectrical*G49 -> 0 | G49: 1.133882205 | I49: 0 | J49: =CostBreakdownSummary!K49 -> 0 | K49: =CostBreakdownSummary!L49 -> 0 | L49: =CostBreakdownSummary!M49 -> 0 | N49: 0 | O49: 0
B50: =IF(D50="+",TotalLightAllow,0) -> 0 | C50: =CostBreakdownSummary!C50 -> 0 | E50: Light Fixture Allowance | F50: =TotalLightAllow*G50 -> 0 | G50: 1 | I50: 0 | J50: =CostBreakdownSummary!K50 -> 0 | K50: =CostBreakdownSummary!L50 -> 0 | L50: =CostBreakdownSummary!M50 -> 0 | N50: 0 | O50: 0
B51: =IF(D51="+",TotalRoof,0) -> 4224.193125 | C51: =CostBreakdownSummary!C51 -> 0 | D51: + | E51: Roofing | F51: =TotalRoof*G51 -> 4789.737413 | G51: 1.133882205 | I51: 0.5214090036 | J51: =CostBreakdownSummary!K51 -> 0 | K51: =CostBreakdownSummary!L51 -> 0 | L51: =CostBreakdownSummary!M51 -> 0 | N51: 0 | O51: 4789.737413
B52: =IF(D52="+",TotalInsulation,0) -> 0 | C52: =CostBreakdownSummary!C52 -> 0 | D52: + | E52: Insulation | F52: =TotalInsulation*G52 -> 0 | G52: 1.133882205 | I52: 0 | J52: =CostBreakdownSummary!K52 -> 0 | K52: =CostBreakdownSummary!L52 -> 0 | L52: =CostBreakdownSummary!M52 -> 0 | N52: 0 | O52: 0
B53: =IF(D53="+",TotalDryWall,0) -> 0 | C53: =CostBreakdownSummary!C53 -> 0 | D53: + | E53: Drywall | F53: =TotalDryWall*G53 -> 0 | G53: 1.133882205 | I53: 0 | J53: =CostBreakdownSummary!K53 -> 0 | K53: =CostBreakdownSummary!L53 -> 0 | L53: =CostBreakdownSummary!M53 -> 0 | N53: 0 | O53: 0
B54: =IF(D54="+",TotalFinishCar,0) -> 0 | C54: =CostBreakdownSummary!C54 -> 0 | D54: + | E54: Finish Carpentry | F54: =TotalFinishCar*G54 -> 0 | G54: 1.133882205 | I54: 0 | J54: =CostBreakdownSummary!K54 -> 0 | K54: =CostBreakdownSummary!L54 -> 0 | L54: =CostBreakdownSummary!M54 -> 0 | N54: 0 | O54: 0
B55: =IF(D55="+",TotalFinishLabor,0) -> 0 | C55: =CostBreakdownSummary!C55 -> 0 | D55: + | E55: Finish Carpentry Labor | F55: =TotalFinishLabor*G55 -> 0 | G55: =IF(AND(D55="+",$R$1<>0),(1+($S$1/$R$1)),1) -> 1.133882205 | I55: =F55/(IF(TotalSalesPrice=0,1,TotalSalesPrice)) -> 0 | J55: =CostBreakdownSummary!K55 -> 0 | K55: =CostBreakdownSummary!L55 -> 0 | L55: =CostBreakdownSummary!M55 -> 0 | N55: 0 | O55: 0
B56: =IF(D56="+",TotalPainting,0) -> 0 | C56: =CostBreakdownSummary!C56 -> 0 | D56: + | E56: Painting | F56: =TotalPainting*G56 -> 0 | G56: 1.133882205 | I56: 0 | J56: =CostBreakdownSummary!K56 -> 0 | K56: =CostBreakdownSummary!L56 -> 0 | L56: =CostBreakdownSummary!M56 -> 0 | N56: 0 | O56: 0
B57: =IF(D57="+",TotalTileMarble,0) -> 0 | C57: =CostBreakdownSummary!C57 -> 0 | D57: + | E57: Tile/Marble | F57: =TotalTileMarble*G57 -> 0 | G57: 1.133882205 | I57: 0 | J57: =CostBreakdownSummary!K57 -> 0 | K57: =CostBreakdownSummary!L57 -> 0 | L57: =CostBreakdownSummary!M57 -> 0 | N57: 0 | O57: 0
B58: =IF(D58="+",TotalFireplace,0) -> 0 | C58: =CostBreakdownSummary!C58 -> 0 | E58: Fireplace Allowance | F58: =TotalFireplace*G58 -> 0 | G58: 1 | I58: 0 | J58: =CostBreakdownSummary!K58 -> 0 | K58: =CostBreakdownSummary!L58 -> 0 | L58: =CostBreakdownSummary!M58 -> 0 | N58: 0 | O58: 0
B59: =IF(D59="+",TotalFloorCover,0) -> 0 | C59: =CostBreakdownSummary!C59 -> 0 | E59: Floor Coverings | F59: =TotalFloorCover*G59 -> 0 | G59: 1 | I59: 0 | J59: =CostBreakdownSummary!K59 -> 0 | K59: =CostBreakdownSummary!L59 -> 0 | L59: =CostBreakdownSummary!M59 -> 0 | N59: 0 | O59: 0
B60: =IF(D60="+",TotalCabinet,0) -> 0 | C60: =CostBreakdownSummary!C60 -> 0 | E60: Cabinets | F60: =TotalCabinet*G60 -> 0 | G60: 1 | I60: 0 | J60: =CostBreakdownSummary!K60 -> 0 | K60: =CostBreakdownSummary!L60 -> 0 | L60: =CostBreakdownSummary!M60 -> 0 | N60: 0 | O60: 0
B61: =IF(D61="+",TotalCountertop,0) -> 0 | C61: =CostBreakdownSummary!C61 -> 0 | E61: Countertops | F61: =TotalCountertop*G61 -> 0 | G61: 1 | I61: 0 | J61: =CostBreakdownSummary!K61 -> 0 | K61: =CostBreakdownSummary!L61 -> 0 | L61: =CostBreakdownSummary!M61 -> 0 | N61: 0 | O61: 0
B62: =IF(D62="+",TotalAppliance,0) -> 0 | C62: =CostBreakdownSummary!C62 -> 0 | D62: + | E62: Appliances | F62: =TotalAppliance*G62 -> 0 | G62: 1.133882205 | I62: 0 | J62: =CostBreakdownSummary!K62 -> 0 | K62: =CostBreakdownSummary!L62 -> 0 | L62: =CostBreakdownSummary!M62 -> 0 | N62: 0 | O62: 0
B63: =IF(D63="+",TotalHdwMirror,0) -> 0 | C63: =CostBreakdownSummary!C63 -> 0 | D63: + | E63: Hardware & Mirrors | F63: =TotalHdwMirror*G63 -> 0 | G63: 1.133882205 | I63: 0 | J63: =CostBreakdownSummary!K63 -> 0 | K63: =CostBreakdownSummary!L63 -> 0 | L63: =CostBreakdownSummary!M63 -> 0 | N63: 0 | O63: 0
B64: =IF(D64="+",TotalSidingLump,0) -> 0 | C64: =CostBreakdownSummary!C64 -> 0 | D64: + | E64: Siding | F64: =TotalSidingLump*G64 -> 0 | G64: 1.133882205 | I64: 0 | J64: =CostBreakdownSummary!K64 -> 0 | K64: =CostBreakdownSummary!L64 -> 0 | L64: =CostBreakdownSummary!M64 -> 0 | N64: 0 | O64: 0
B65: =IF(D65="+",TotalAlumVinyl,0) -> 0 | C65: =CostBreakdownSummary!C65 -> 0 | D65: + | E65: Vinyl / Alum. Siding | F65: =TotalAlumVinyl*G65 -> 0 | G65: 1.133882205 | I65: 0 | J65: =CostBreakdownSummary!K65 -> 0 | K65: =CostBreakdownSummary!L65 -> 0 | L65: =CostBreakdownSummary!M65 -> 0 | N65: 0 | O65: 0
B66: =IF(D66="+",TotalWoodSiding,0) -> 0 | C66: =CostBreakdownSummary!C66 -> 0 | D66: + | E66: Wood Siding | F66: =TotalWoodSiding*G66 -> 0 | G66: 1.133882205 | I66: 0 | J66: =CostBreakdownSummary!K66 -> 0 | K66: =CostBreakdownSummary!L66 -> 0 | L66: =CostBreakdownSummary!M66 -> 0 | N66: 0 | O66: 0
B67: =IF(D67="+",TotalBrickSiding,0) -> 0 | C67: =CostBreakdownSummary!C67 -> 0 | D67: + | E67: Brick | F67: =TotalBrickSiding*G67 -> 0 | G67: 1.133882205 | I67: 0 | J67: =CostBreakdownSummary!K67 -> 0 | K67: =CostBreakdownSummary!L67 -> 0 | L67: =CostBreakdownSummary!M67 -> 0 | N67: 0 | O67: 0
B68: =IF(D68="+",TotalStuccoSiding,0) -> 0 | C68: =CostBreakdownSummary!C68 -> 0 | D68: + | E68: Stucco | F68: =TotalStuccoSiding*G68 -> 0 | G68: 1.133882205 | I68: 0 | J68: =CostBreakdownSummary!K68 -> 0 | K68: =CostBreakdownSummary!L68 -> 0 | L68: =CostBreakdownSummary!M68 -> 0 | N68: 0 | O68: 0
B69: =IF(D69="+",TotalStoneSiding,0) -> 0 | C69: =CostBreakdownSummary!C69 -> 0 | D69: + | E69: Stone | F69: =TotalStoneSiding*G69 -> 0 | G69: 1.133882205 | I69: 0 | J69: =CostBreakdownSummary!K69 -> 0 | K69: =CostBreakdownSummary!L69 -> 0 | L69: =CostBreakdownSummary!M69 -> 0 | N69: 0 | O69: 0
B70: =IF(D70="+",TotalOtherSiding,0) -> 0 | C70: =CostBreakdownSummary!C70 -> 0 | D70: + | E70: Other | F70: =TotalOtherSiding*G70 -> 0 | G70: 1.133882205 | I70: 0 | J70: =CostBreakdownSummary!K70 -> 0 | K70: =CostBreakdownSummary!L70 -> 0 | L70: =CostBreakdownSummary!M70 -> 0 | N70: 0 | O70: 0
B71: =IF(D71="+",TotalSoffitFascia,0) -> 0 | C71: =CostBreakdownSummary!C71 -> 0 | D71: + | E71: Soffit & Fascia | F71: =TotalSoffitFascia*G71 -> 0 | G71: 1.133882205 | I71: 0 | J71: =CostBreakdownSummary!K71 -> 0 | K71: =CostBreakdownSummary!L71 -> 0 | L71: =CostBreakdownSummary!M71 -> 0 | N71: 0 | O71: 0
B72: =IF(D72="+",TotalGutter,0) -> 0 | C72: =CostBreakdownSummary!C72 -> 0 | D72: + | E72: Gutter | F72: =TotalGutter*G72 -> 0 | G72: 1.133882205 | I72: 0 | J72: =CostBreakdownSummary!K72 -> 0 | K72: =CostBreakdownSummary!L72 -> 0 | L72: =CostBreakdownSummary!M72 -> 0 | N72: 0 | O72: 0
B73: =IF(D73="+",TotalDeck,0) -> 0 | C73: =CostBreakdownSummary!C73 -> 0 | D73: + | E73: Deck | F73: =TotalDeck*G73 -> 0 | G73: 1.133882205 | I73: 0 | J73: =CostBreakdownSummary!K73 -> 0 | K73: =CostBreakdownSummary!L73 -> 0 | L73: =CostBreakdownSummary!M73 -> 0 | N73: 0 | O73: 0
B74: =IF(D74="+",TotalRailing,0) -> 0 | C74: =CostBreakdownSummary!C74 -> 0 | D74: + | E74: Exterior Railing | F74: =TotalRailing*G74 -> 0 | G74: 1.133882205 | I74: 0 | J74: =CostBreakdownSummary!K74 -> 0 | K74: =CostBreakdownSummary!L74 -> 0 | L74: =CostBreakdownSummary!M74 -> 0 | N74: 0 | O74: 0
B75: =IF(D75="+",TotalPlaster,0) -> 0 | C75: =CostBreakdownSummary!C75 -> 0 | D75: + | E75: Foundation Plaster | F75: =TotalPlaster*G75 -> 0 | G75: 1.133882205 | I75: 0 | J75: =CostBreakdownSummary!K75 -> 0 | K75: =CostBreakdownSummary!L75 -> 0 | L75: =CostBreakdownSummary!M75 -> 0 | N75: 0 | O75: 0
B76: =IF(D76="+",TotalCleanup,0) -> 0 | C76: =CostBreakdownSummary!C76 -> 0 | D76: + | E76: Clean-up | F76: =TotalCleanup*G76 -> 0 | G76: 1.133882205 | I76: 0 | J76: =CostBreakdownSummary!K76 -> 0 | K76: =CostBreakdownSummary!L76 -> 0 | L76: =CostBreakdownSummary!M76 -> 0 | N76: 0 | O76: 0
B77: =IF(D77="+",TotalLandscaping,0) -> 0 | C77: =CostBreakdownSummary!C77 -> 0 | D77: + | E77: Landscaping | F77: =TotalLandscaping*G77 -> 0 | G77: 1.133882205 | I77: 0 | J77: =CostBreakdownSummary!K77 -> 0 | K77: =CostBreakdownSummary!L77 -> 0 | L77: =CostBreakdownSummary!M77 -> 0 | N77: 0 | O77: 0
B78: =IF(D78="+",TotalCustom5,0) -> 0 | C78: =CostBreakdownSummary!C78 -> 0 | D78: + | E78: =LEFT(Custom5Name,LEN(Custom5Name)-6) -> Custom 5 | F78: =TotalCustom5*G78 -> 0 | G78: 1.133882205 | I78: 0 | J78: =CostBreakdownSummary!K78 -> 0 | K78: =CostBreakdownSummary!L78 -> 0 | L78: =CostBreakdownSummary!M78 -> 0 | N78: 0 | O78: 0
B79: =IF(D79="+",TotalCustom6,0) -> 0 | C79: =CostBreakdownSummary!C79 -> 0 | D79: + | E79: =LEFT(Custom6Name,LEN(Custom6Name)-6) -> Custom 6 | F79: =TotalCustom6*G79 -> 0 | G79: 1.133882205 | I79: 0 | J79: =CostBreakdownSummary!K79 -> 0 | K79: =CostBreakdownSummary!L79 -> 0 | L79: =CostBreakdownSummary!M79 -> 0 | N79: 0 | O79: 0
B80: =IF(D80="+",TotalCustom7,0) -> 0 | C80: =CostBreakdownSummary!C80 -> 0 | D80: + | E80: =LEFT(Custom7Name,LEN(Custom7Name)-6) -> Custom 7 | F80: =TotalCustom7*G80 -> 0 | G80: 1.133882205 | I80: 0 | J80: =CostBreakdownSummary!K80 -> 0 | K80: =CostBreakdownSummary!L80 -> 0 | L80: =CostBreakdownSummary!M80 -> 0 | N80: 0 | O80: 0
B81: =IF(D81="+",TotalCustom8,0) -> 0 | C81: =CostBreakdownSummary!C81 -> 0 | D81: + | E81: =LEFT(Custom8Name,LEN(Custom8Name)-6) -> Custom 8 | F81: =TotalCustom8*G81 -> 0 | G81: 1.133882205 | I81: 0 | J81: =CostBreakdownSummary!K81 -> 0 | K81: =CostBreakdownSummary!L81 -> 0 | L81: =CostBreakdownSummary!M81 -> 0 | N81: 0 | O81: 0
B82: =IF(D82="+",TotalZCustom9,0) -> 0 | C82: =CostBreakdownSummary!C82 -> 0 | D82: + | E82: =LEFT(Custom9Name,LEN(Custom9Name)-6) -> Custom 9 | F82: =TotalZCustom9*G82 -> 0 | G82: 1.133882205 | I82: 0 | J82: =CostBreakdownSummary!K82 -> 0 | K82: =CostBreakdownSummary!L82 -> 0 | L82: =CostBreakdownSummary!M82 -> 0 | N82: 0 | O82: 0
B83: =IF(D83="+",TotalCustom10,0) -> 0 | C83: =CostBreakdownSummary!C83 -> 0 | D83: + | E83: =LEFT(Custom10Name,LEN(Custom10Name)-6) -> Custom 10 | F83: =TotalCustom10*G83 -> 0 | G83: =IF(AND(D83="+",$R$1<>0),(1+($S$1/$R$1)),1) -> 1.133882205 | I83: =F83/(IF(TotalSalesPrice=0,1,TotalSalesPrice)) -> 0 | J83: =CostBreakdownSummary!K83 -> 0 | K83: =CostBreakdownSummary!L83 -> 0 | L83: =CostBreakdownSummary!M83 -> 0 | N83: 0 | O83: 0
B84: =IF(D84="+",TotalZCustom11,0) -> 0 | C84: =CostBreakdownSummary!C84 -> 0 | D84: + | E84: =LEFT(Custom11Name,LEN(Custom11Name)-6) -> Custom 11 | F84: =TotalZCustom11*G84 -> 0 | G84: =IF(AND(D84="+",$R$1<>0),(1+($S$1/$R$1)),1) -> 1.133882205 | I84: =F84/(IF(TotalSalesPrice=0,1,TotalSalesPrice)) -> 0 | J84: =CostBreakdownSummary!K84 -> 0 | K84: =CostBreakdownSummary!L84 -> 0 | L84: =CostBreakdownSummary!M84 -> 0 | N84: 0 | O84: 0
B85: =IF(D85="+",TotalZCustom12,0) -> 0 | C85: =CostBreakdownSummary!C85 -> 0 | D85: + | E85: =LEFT(Custom12Name,LEN(Custom12Name)-6) -> Custom 12 | F85: =TotalZCustom12*G85 -> 0 | G85: 1.133882205 | I85: 0 | J85: =CostBreakdownSummary!K85 -> 0 | K85: =CostBreakdownSummary!L85 -> 0 | L85: =CostBreakdownSummary!M85 -> 0 | N85: 0 | O85: 0
B86: =IF(D86="+",TotalZCustom13,0) -> 0 | C86: =CostBreakdownSummary!C86 -> 0 | D86: + | E86: =LEFT(Custom13Name,LEN(Custom13Name)-6) -> Custom 13 | F86: =TotalZCustom13*G86 -> 0 | G86: 1.133882205 | I86: 0 | J86: =CostBreakdownSummary!K86 -> 0 | K86: =CostBreakdownSummary!L86 -> 0 | L86: =CostBreakdownSummary!M86 -> 0 | N86: 0 | O86: 0
B87: =IF(D87="+",TotalZCustom14,0) -> 0 | C87: =CostBreakdownSummary!C87 -> 0 | D87: + | E87: =LEFT(Custom14Name,LEN(Custom14Name)-6) -> Custom 14 | F87: =TotalZCustom14*G87 -> 0 | G87: 1.133882205 | I87: 0 | J87: =CostBreakdownSummary!K87 -> 0 | K87: =CostBreakdownSummary!L87 -> 0 | L87: =CostBreakdownSummary!M87 -> 0 | N87: 0 | O87: 0
B88: =IF(D88="+",TotalZCustom15,0) -> 0 | C88: =CostBreakdownSummary!C88 -> 0 | D88: + | E88: =LEFT(Custom15Name,LEN(Custom15Name)-6) -> Custom 15 | F88: =TotalZCustom15*G88 -> 0 | G88: 1.133882205 | I88: 0 | J88: =CostBreakdownSummary!K88 -> 0 | K88: =CostBreakdownSummary!L88 -> 0 | L88: =CostBreakdownSummary!M88 -> 0 | N88: 0 | O88: 0
B89: =IF(D89="+",TotalZCustom16,0) -> 0 | C89: =CostBreakdownSummary!C89 -> 0 | D89: + | E89: =LEFT(Custom16Name,LEN(Custom16Name)-6) -> Custom 16 | F89: =TotalZCustom16*G89 -> 0 | G89: 1.133882205 | I89: 0 | J89: =CostBreakdownSummary!K89 -> 0 | K89: =CostBreakdownSummary!L89 -> 0 | L89: =CostBreakdownSummary!M89 -> 0 | N89: 0 | O89: 0
B90: =IF(D90="+",TotalZCustom17,0) -> 0 | C90: =CostBreakdownSummary!C90 -> 0 | D90: + | E90: =LEFT(Custom17Name,LEN(Custom17Name)-6) -> Custom 17 | F90: =TotalZCustom17*G90 -> 0 | G90: 1.133882205 | I90: 0 | J90: =CostBreakdownSummary!K90 -> 0 | K90: =CostBreakdownSummary!L90 -> 0 | L90: =CostBreakdownSummary!M90 -> 0 | N90: 0 | O90: 0
B91: =IF(D91="+",TotalZCustom18,0) -> 0 | C91: =CostBreakdownSummary!C91 -> 0 | D91: + | E91: =LEFT(Custom18Name,LEN(Custom18Name)-6) -> Custom 18 | F91: =TotalZCustom18*G91 -> 0 | G91: 1.133882205 | I91: 0 | J91: =CostBreakdownSummary!K91 -> 0 | K91: =CostBreakdownSummary!L91 -> 0 | L91: =CostBreakdownSummary!M91 -> 0 | N91: 0 | O91: 0
B92: =IF(D92="+",TotalZCustom19,0) -> 0 | C92: =CostBreakdownSummary!C92 -> 0 | D92: + | E92: =LEFT(Custom19Name,LEN(Custom19Name)-6) -> Custom 19 | F92: =TotalZCustom19*G92 -> 0 | G92: 1.133882205 | I92: 0 | J92: =CostBreakdownSummary!K92 -> 0 | K92: =CostBreakdownSummary!L92 -> 0 | L92: =CostBreakdownSummary!M92 -> 0 | N92: 0 | O92: 0
B93: =IF(D93="+",TotalZCustom20,0) -> 0 | C93: =CostBreakdownSummary!C93 -> 0 | D93: + | E93: =LEFT(Custom20Name,LEN(Custom20Name)-6) -> Custom 20 | F93: =TotalZCustom20*G93 -> 0 | G93: 1.133882205 | I93: 0 | J93: =CostBreakdownSummary!K93 -> 0 | K93: =CostBreakdownSummary!L93 -> 0 | L93: =CostBreakdownSummary!M93 -> 0 | N93: =SUM(J93:M93) -> 0 | O93: =F93-N93 -> 0
B94: =IF(D94="+",TotalCustom21,0) -> 0 | C94: =CostBreakdownSummary!C94 -> 0 | D94: + | E94: =LEFT(Custom21Name,LEN(Custom21Name)-6) -> Custom 21 | F94: =TotalCustom21*G94 -> 0 | G94: =IF(AND(D94="+",$R$1<>0),(1+($S$1/$R$1)),1) -> 1.133882205 | I94: =F94/(IF(TotalSalesPrice=0,1,TotalSalesPrice)) -> 0 | J94: =CostBreakdownSummary!K94 -> 0 | K94: =CostBreakdownSummary!L94 -> 0 | L94: =CostBreakdownSummary!M94 -> 0 | N94: =SUM(J94:M94) -> 0 | O94: =F94-N94 -> 0
B95: =IF(D95="+",TotalCustom22,0) -> 0 | C95: =CostBreakdownSummary!C95 -> 0 | D95: + | E95: =LEFT(Custom22Name,LEN(Custom22Name)-6) -> Custom 22 | F95: =TotalCustom22*G95 -> 0 | G95: 1.133882205 | I95: 0 | J95: =CostBreakdownSummary!K95 -> 0 | K95: =CostBreakdownSummary!L95 -> 0 | L95: =CostBreakdownSummary!M95 -> 0 | N95: 0 | O95: 0
B96: =IF(D96="+",TotalCustom23,0) -> 0 | C96: =CostBreakdownSummary!C96 -> 0 | D96: + | E96: =LEFT(Custom23Name,LEN(Custom23Name)-6) -> Custom 23 | F96: =TotalCustom23*G96 -> 0 | G96: 1.133882205 | I96: 0 | J96: =CostBreakdownSummary!K96 -> 0 | K96: =CostBreakdownSummary!L96 -> 0 | L96: =CostBreakdownSummary!M96 -> 0 | N96: 0 | O96: 0
B97: =IF(D97="+",TotalCustom24,0) -> 0 | C97: =CostBreakdownSummary!C97 -> 0 | D97: + | E97: =LEFT(Custom24Name,LEN(Custom24Name)-6) -> Custom 24 | F97: =TotalCustom24*G97 -> 0 | G97: 1.133882205 | I97: 0 | J97: =CostBreakdownSummary!K97 -> 0 | K97: =CostBreakdownSummary!L97 -> 0 | L97: =CostBreakdownSummary!M97 -> 0 | N97: 0 | O97: 0
B98: =IF(D98="+",TotalCustom25,0) -> 0 | C98: =CostBreakdownSummary!C98 -> 0 | D98: + | E98: =LEFT(Custom25Name,LEN(Custom25Name)-6) -> Custom 25 | F98: =TotalCustom25*G98 -> 0 | G98: 1.133882205 | I98: 0 | J98: =CostBreakdownSummary!K98 -> 0 | K98: =CostBreakdownSummary!L98 -> 0 | L98: =CostBreakdownSummary!M98 -> 0 | N98: 0 | O98: 0
B99: =IF(D99="+",TotalCustom26,0) -> 0 | C99: =CostBreakdownSummary!C99 -> 0 | D99: + | E99: =LEFT(Custom26Name,LEN(Custom26Name)-6) -> Custom 26 | F99: =TotalCustom26*G99 -> 0 | G99: 1.133882205 | I99: 0 | J99: =CostBreakdownSummary!K99 -> 0 | K99: =CostBreakdownSummary!L99 -> 0 | L99: =CostBreakdownSummary!M99 -> 0 | N99: 0 | O99: 0
B100: =IF(D100="+",TotalCustom27,0) -> 0 | C100: =CostBreakdownSummary!C100 -> 0 | D100: + | E100: =LEFT(Custom27Name,LEN(Custom27Name)-6) -> Custom 27 | F100: =TotalCustom27*G100 -> 0 | G100: 1.133882205 | I100: 0 | J100: =CostBreakdownSummary!K100 -> 0 | K100: =CostBreakdownSummary!L100 -> 0 | L100: =CostBreakdownSummary!M100 -> 0 | N100: 0 | O100: 0
B101: =IF(D101="+",TotalCustom28,0) -> 0 | C101: =CostBreakdownSummary!C101 -> 0 | D101: + | E101: =LEFT(Custom28Name,LEN(Custom28Name)-6) -> Custom 28 | F101: =TotalCustom28*G101 -> 0 | G101: 1.133882205 | I101: 0 | J101: =CostBreakdownSummary!K101 -> 0 | K101: =CostBreakdownSummary!L101 -> 0 | L101: =CostBreakdownSummary!M101 -> 0 | N101: 0 | O101: 0
B102: =IF(D102="+",TotalCustom29,0) -> 0 | C102: =CostBreakdownSummary!C102 -> 0 | D102: + | E102: =LEFT(Custom29Name,LEN(Custom29Name)-6) -> Custom 29 | F102: =TotalCustom29*G102 -> 0 | G102: 1.133882205 | I102: 0 | J102: =CostBreakdownSummary!K102 -> 0 | K102: =CostBreakdownSummary!L102 -> 0 | L102: =CostBreakdownSummary!M102 -> 0 | N102: 0 | O102: 0
B103: =IF(D103="+",TotalCustom30,0) -> 0 | C103: =CostBreakdownSummary!C103 -> 0 | D103: + | E103: =LEFT(Custom30Name,LEN(Custom30Name)-6) -> Custom 30 | F103: =TotalCustom30*G103 -> 0 | G103: 1.133882205 | I103: 0 | J103: =CostBreakdownSummary!K103 -> 0 | K103: =CostBreakdownSummary!L103 -> 0 | L103: =CostBreakdownSummary!M103 -> 0 | N103: 0 | O103: 0
E105: Subtotal of Hard Costs: | F105: =SUM(F29:F104) -> 7685.969073 | H105: =SUM(H29:H104) -> 0 | I105: 0.836691687 | J105: =SUM(J29:J104) -> 550 | K105: 1854 | L105: 400 | M105: 0 | N105: 2804 | O105: 4881.969073
E107: Tot. Hard Costs & Proj. OH | F107: =F105+F26 -> 8539.361729 | H107: =H105+H26 -> 0 | I107: 0.9295916888 | J107: =J105+J26 -> 550 | K107: 1854 | L107: 400 | M107: 0 | N107: 2804 | O107: 5735.361729
B109: =IF(D109="+",CompanyOH,0) -> 690.7979317 | D109: + | E109: Company Overhead (G&A) | F109: =CompanyOH*G109 -> 783.2834816 | G109: =IF(AND(D109="+",$R$1<>0),(1+($S$1/$R$1)),1) -> 1.133882205 | I109: 0.08526794362 | J109: =CostBreakdownSummary!K109 -> 0 | K109: =CostBreakdownSummary!L109 -> 0 | L109: =CostBreakdownSummary!M109 -> 0 | N109: =SUM(J109:K109) -> 0 | O109: =F109-N109 -> 783.2834816
E110: Builder's Margin | F110: =Profit-S1 -> -136.5025854 | I110: -0.01485961983 | J110: =CostBreakdownSummary!K110 -> 0 | K110: =CostBreakdownSummary!L110 -> 0 | L110: =CostBreakdownSummary!M110 -> 0 | N110: =SUM(J110:K110) -> 0 | O110: =F110-N110 -> -136.5025854
B111: =SUM(B11:B109) -> 7469.252557 | E111: Total Sales Price: | F111: =F107+F109+F110 -> 9186.142625 | O111: =SUM(O109:O110,O107) -> 6382.142625

Sheet ExecutiveSummary
E2: Executive Summary
E3: =EstimateDate -> 2008-07-11
D4: Customer's Names: | E4: =TEXT(CustomerName1,"") -> 
E5: =TEXT(CustomerName2,"") -> 
D6: Lot ID, Subdivision: | E6: =TEXT(ProjectLotNumber,"") & " , " & TEXT(ProjectSubdivision,"") -> ,
D8: Total Sales Price:
D9: =TotalSalesPrice -> 9186.142509
E10: =CostBreakdownSummary!M8 -> 
C11: Code | D11: Detail Sheets | E11: Notes | F11: Est. Cost or Bid
B12: Lot!A1 | C12: =CostBreakdownSummary!C12 -> 1000 | D12: Lot | F12: =TotalLot -> 0
B13: Permit!A1 | C13: =CostBreakdownSummary!C13 -> 0 | D13: Permit and Fees | F13: =TotalPermit -> 0
B14: PlansEngineering!A1 | C14: =CostBreakdownSummary!C14 -> 0 | D14: Architecture & Engineering | F14: =TotalArchEngineering -> 0
B15: TemporaryUtilities!A1 | C15: =CostBreakdownSummary!C15 -> 0 | D15: Temporary Utilities | F15: =TotalTempUtil -> 0
B16: ConstructionLoan!A1 | C16: =CostBreakdownSummary!C16 -> 0 | D16: Construction Loan | F16: =TotalLoan -> 0
B17: SupervisionProfitOHCont!E12 | C17: =CostBreakdownSummary!C17 -> 0 | D17: Supervision | F17: =Supervision -> 129.5246122
A18: 1 | B18: SupervisionProfitOHCont!E23 | C18: =CostBreakdownSummary!C18 -> 0 | D18: Contingency | F18: =Contingency -> 172.6994829
A19: 2 | B19: SupervisionProfitOHCont!E24 | C19: =CostBreakdownSummary!C19 -> 0 | D19: Liability Insurance | F19: =LiabilityInsurance -> 0
B20: SupervisionProfitOHCont!I23 | C20: =CostBreakdownSummary!C20 -> 0 | D20: Real Estate Commission | F20: =RealEstateComm -> 551.168561
B21: Custom1Name | C21: =CostBreakdownSummary!C21 -> 0 | D21: =LEFT(Custom1Name,LEN(Custom1Name)-6) -> Custom 1 | F21: =TotalCustom1 -> 0
B22: Custom2Name | C22: =CostBreakdownSummary!C22 -> 0 | D22: =LEFT(Custom2Name,LEN(Custom2Name)-6) -> Custom 2 | F22: =TotalCustom2 -> 0
B23: Custom3Name | C23: =CostBreakdownSummary!C23 -> 0 | D23: =LEFT(Custom3Name,LEN(Custom3Name)-6) -> Custom 3 | F23: =TotalCustom3 -> 0
B24: Custom4Name | C24: =CostBreakdownSummary!C24 -> 0 | D24: =LEFT(Custom4Name,LEN(Custom4Name)-6) -> Custom 4 | F24: =TotalCustom4 -> 0
D26: Subtotal - Project OH & Lot | F26: =SUM(F12:F25) -> 853.3926561
C28: Code | D28: Detail Sheets | E28: Notes | F28: Est. Cost or Bid
B29: Demolition!A1 | C29: =CostBreakdownSummary!C29 -> 0 | D29: Demolition | F29: =TotalDemo -> 0
B30: Earthwork!A1 | C30: =CostBreakdownSummary!C30 -> 0 | D30: Earthwork | F30: =TotalEarthWork -> 0
B31: Footings!A1 | C31: =CostBreakdownSummary!C31 -> 300 | D31: Footings | F31: =TotalFooting -> 2554.2615
B32: Foundation!A1 | C32: =CostBreakdownSummary!C32 -> 0 | D32: Foundation | F32: =TotalFoundation -> 0
B33: CMUFoundation!A1 | C33: =CostBreakdownSummary!C33 -> 0 | D33: CMU Foundation | F33: =TotalCMU -> 0
B34: Flatwork!A1 | C34: =CostBreakdownSummary!C34 -> 0 | D34: Concrete Flatwork | F34: =TotalFlatwork -> 0
B35: TotalMiscSteel | C35: =CostBreakdownSummary!C35 -> 0 | D35: Miscellaneous Steel | F35: =TotalMiscSteel -> 0
B36: WindowWell!A1 | C36: =CostBreakdownSummary!C36 -> 0 | D36: Window Wells | F36: =TotalWindowWell -> 0
B37: Damproofing!A1 | C37: =CostBreakdownSummary!C37 -> 0 | D37: Damproofing | F37: =TotalDamp -> 0
B38: UtilityLaterals!A1 | C38: =CostBreakdownSummary!C38 -> 0 | D38: Utility Laterals | F38: =TotalUtilLat -> 0
B39: SepticSystem!A1 | C39: =CostBreakdownSummary!C39 -> 0 | D39: Septic System | F39: =TotalSeptic -> 0
B40: PotableWaterWell!A1 | C40: =CostBreakdownSummary!C40 -> 0 | D40: Potable Water Well Allow. | F40: =CostBreakdownSummary!F40 -> 0
B41: FramingMaterial!A1 | C41: =CostBreakdownSummary!C41 -> 0 | D41: Framing Material | F41: =TotalFraming -> 0
B42: FramingLabor!A1 | C42: =CostBreakdownSummary!C42 -> 0 | D42: Framing Labor | F42: =TotalFramingLabor -> 0
B43: EntryDoor!A1 | C43: =CostBreakdownSummary!C43 -> 0 | D43: Entry Doors | F43: =TotalEntryDoor -> 0
B44: GarageDoor!A1 | C44: =CostBreakdownSummary!C44 -> 0 | D44: Garage Doors | F44: =TotalGarageDoor -> 0
B45: Windows!A1 | C45: =CostBreakdownSummary!C45 -> 0 | D45: Windows | F45: =TotalWindows -> 0
B46: Plumbing!A1 | C46: =CostBreakdownSummary!C46 -> 0 | D46: Plumbing | F46: =TotalPlumbing -> 0
B47: Heating!A1 | C47: =CostBreakdownSummary!C47 -> 0 | D47: Heating | F47: =TotalHeating -> 0
B48: AirConditioning!A1 | C48: =CostBreakdownSummary!C48 -> 0 | D48: Air Conditioning | F48: =TotalAirCond -> 0
B49: Electrical!A1 | C49: =CostBreakdownSummary!C49 -> 0 | D49: Electrical | F49: =TotalElectrical -> 0
B50: LightFixtures!A1 | C50: =CostBreakdownSummary!C50 -> 0 | D50: Light Fixture Allowance | F50: =TotalLightAllow -> 0
B51: Roofing!A1 | C51: =CostBreakdownSummary!C51 -> 0 | D51: Roofing | F51: =TotalRoof -> 4224.193125
B52: Insulation!A1 | C52: =CostBreakdownSummary!C52 -> 0 | D52: Insulation | F52: =TotalInsulation -> 0
B53: Drywall!A1 | C53: =CostBreakdownSummary!C53 -> 0 | D53: Drywall | F53: =TotalDryWall -> 0
B54: FinishCarpentry!A1 | C54: =CostBreakdownSummary!C54 -> 0 | D54: Finish Carpentry | F54: =TotalFinishCar -> 0
B55: FinishCarpentryLabor!A1 | C55: =CostBreakdownSummary!C55 -> 0 | D55: Finish Carpentry Labor | F55: =TotalFinishLabor -> 0
B56: Painting!A1 | C56: =CostBreakdownSummary!C56 -> 0 | D56: Painting | F56: =TotalPainting -> 0
B57: TileMarble!A1 | C57: =CostBreakdownSummary!C57 -> 0 | D57: Tile/Marble | F57: =TotalTileMarble -> 0
B58: Fireplace!A1 | C58: =CostBreakdownSummary!C58 -> 0 | D58: Fireplace Allowance | F58: =TotalFireplace -> 0
B59: FloorCoverings!A1 | C59: =CostBreakdownSummary!C59 -> 0 | D59: Floor Coverings | F59: =TotalFloorCover -> 0
B60: Cabinets!A1 | C60: =CostBreakdownSummary!C60 -> 0 | D60: Cabinets | F60: =TotalCabinet -> 0
B61: Countertops!A1 | C61: =CostBreakdownSummary!C61 -> 0 | D61: Countertops | F61: =TotalCountertop -> 0
B62: Appliances!A1 | C62: =CostBreakdownSummary!C62 -> 0 | D62: Appliances | F62: =TotalAppliance -> 0
B63: HardwareMirror!A1 | C63: =CostBreakdownSummary!C63 -> 0 | D63: Hardware & Mirrors | F63: =TotalHdwMirror -> 0
B64: Siding!A1 | C64: =CostBreakdownSummary!C64 -> 0 | D64: Siding | F64: =TotalSidingLump -> 0
C65: =CostBreakdownSummary!C65 -> 0 | D65: Vinyl / Alum. Siding | F65: =TotalAlumVinyl -> 0
C66: =CostBreakdownSummary!C66 -> 0 | D66: Wood Siding | F66: =TotalWoodSiding -> 0
C67: =CostBreakdownSummary!C67 -> 0 | D67: Brick | F67: =TotalBrickSiding -> 0
C68: =CostBreakdownSummary!C68 -> 0 | D68: Stucco | F68: =TotalStuccoSiding -> 0
C69: =CostBreakdownSummary!C69 -> 0 | D69: Stone | F69: =TotalStoneSiding -> 0
C70: =CostBreakdownSummary!C70 -> 0 | D70: Other | F70: =TotalOtherSiding -> 0
B71: SoffitFascia!A1 | C71: =CostBreakdownSummary!C71 -> 0 | D71: Soffit & Fascia | F71: =TotalSoffitFascia -> 0
B72: Gutter!A1 | C72: =CostBreakdownSummary!C72 -> 0 | D72: Gutter | F72: =TotalGutter -> 0
B73: Deck!A1 | C73: =CostBreakdownSummary!C73 -> 0 | D73: Deck | F73: =TotalDeck -> 0
B74: ExtRailing!A1 | C74: =CostBreakdownSummary!C74 -> 0 | D74: Exterior Railing | F74: =TotalRailing -> 0
B75: FDNPlaster!A1 | C75: =CostBreakdownSummary!C75 -> 0 | D75: Foundation Plaster | F75: =TotalPlaster -> 0
B76: Cleanup!A1 | C76: =CostBreakdownSummary!C76 -> 0 | D76: Clean-up | F76: =TotalCleanup -> 0
B77: Landscaping!A1 | C77: =CostBreakdownSummary!C77 -> 0 | D77: Landscaping | F77: =TotalLandscaping -> 0
B78: Custom5Name | C78: =CostBreakdownSummary!C78 -> 0 | D78: =LEFT(Custom5Name,LEN(Custom5Name)-6) -> Custom 5 | F78: =TotalCustom5 -> 0
B79: Custom6Name | C79: =CostBreakdownSummary!C79 -> 0 | D79: =LEFT(Custom6Name,LEN(Custom6Name)-6) -> Custom 6 | F79: =TotalCustom6 -> 0
B80: Custom7Name | C80: =CostBreakdownSummary!C80 -> 0 | D80: =LEFT(Custom7Name,LEN(Custom7Name)-6) -> Custom 7 | F80: =TotalCustom7 -> 0
B81: Custom8Name | C81: =CostBreakdownSummary!C81 -> 0 | D81: =LEFT(Custom8Name,LEN(Custom8Name)-6) -> Custom 8 | F81: =TotalCustom8 -> 0
B82: Custom9Name | C82: =CostBreakdownSummary!C82 -> 0 | D82: =LEFT(Custom9Name,LEN(Custom9Name)-6) -> Custom 9 | F82: =TotalZCustom9 -> 0
B83: Custom10Name | C83: =CostBreakdownSummary!C83 -> 0 | D83: =LEFT(Custom10Name,LEN(Custom10Name)-6) -> Custom 10 | F83: =TotalCustom10 -> 0
B84: Custom11Name | C84: =CostBreakdownSummary!C84 -> 0 | D84: =LEFT(Custom11Name,LEN(Custom11Name)-6) -> Custom 11 | F84: =TotalZCustom11 -> 0
B85: Custom12Name | C85: =CostBreakdownSummary!C85 -> 0 | D85: =LEFT(Custom12Name,LEN(Custom12Name)-6) -> Custom 12 | F85: =TotalZCustom12 -> 0
B86: Custom13Name | C86: =CostBreakdownSummary!C86 -> 0 | D86: =LEFT(Custom13Name,LEN(Custom13Name)-6) -> Custom 13 | F86: =TotalZCustom13 -> 0
B87: Custom14Name | C87: =CostBreakdownSummary!C87 -> 0 | D87: =LEFT(Custom14Name,LEN(Custom14Name)-6) -> Custom 14 | F87: =TotalZCustom14 -> 0
B88: Custom15Name | C88: =CostBreakdownSummary!C88 -> 0 | D88: =LEFT(Custom15Name,LEN(Custom15Name)-6) -> Custom 15 | F88: =TotalZCustom15 -> 0
B89: Custom16Name | C89: =CostBreakdownSummary!C89 -> 0 | D89: =LEFT(Custom16Name,LEN(Custom16Name)-6) -> Custom 16 | F89: =TotalZCustom16 -> 0
B90: Custom17Name | C90: =CostBreakdownSummary!C90 -> 0 | D90: =LEFT(Custom17Name,LEN(Custom17Name)-6) -> Custom 17 | F90: =TotalZCustom17 -> 0
B91: Custom18Name | C91: =CostBreakdownSummary!C91 -> 0 | D91: =LEFT(Custom18Name,LEN(Custom18Name)-6) -> Custom 18 | F91: =TotalZCustom18 -> 0
B92: Custom19Name | C92: =CostBreakdownSummary!C92 -> 0 | D92: =LEFT(Custom19Name,LEN(Custom19Name)-6) -> Custom 19 | F92: =TotalZCustom19 -> 0
B93: Custom20Name | C93: =CostBreakdownSummary!C93 -> 0 | D93: =LEFT(Custom20Name,LEN(Custom20Name)-6) -> Custom 20 | F93: =TotalZCustom20 -> 0
C94: =CostBreakdownSummary!C94 -> 0 | D94: =LEFT(Custom21Name,LEN(Custom21Name)-6) -> Custom 21 | F94: =TotalCustom21 -> 0
C95: =CostBreakdownSummary!C95 -> 0 | D95: =LEFT(Custom22Name,LEN(Custom22Name)-6) -> Custom 22 | F95: =TotalCustom22 -> 0
C96: =CostBreakdownSummary!C96 -> 0 | D96: =LEFT(Custom23Name,LEN(Custom23Name)-6) -> Custom 23 | F96: =TotalCustom23 -> 0
C97: =CostBreakdownSummary!C97 -> 0 | D97: =LEFT(Custom24Name,LEN(Custom24Name)-6) -> Custom 24 | F97: =TotalCustom24 -> 0
C98: =CostBreakdownSummary!C98 -> 0 | D98: =LEFT(Custom25Name,LEN(Custom25Name)-6) -> Custom 25 | F98: =TotalCustom25 -> 0
C99: =CostBreakdownSummary!C99 -> 0 | D99: =LEFT(Custom26Name,LEN(Custom26Name)-6) -> Custom 26 | F99: =TotalCustom26 -> 0
C100: =CostBreakdownSummary!C100 -> 0 | D100: =LEFT(Custom27Name,LEN(Custom27Name)-6) -> Custom 27 | F100: =TotalCustom27 -> 0
C101: =CostBreakdownSummary!C101 -> 0 | D101: =LEFT(Custom28Name,LEN(Custom28Name)-6) -> Custom 28 | F101: =TotalCustom28 -> 0
C102: =CostBreakdownSummary!C102 -> 0 | D102: =LEFT(Custom29Name,LEN(Custom29Name)-6) -> Custom 29 | F102: =TotalCustom29 -> 0
C103: =CostBreakdownSummary!C103 -> 0 | D103: =LEFT(Custom30Name,LEN(Custom30Name)-6) -> Custom 30 | F103: =TotalCustom30 -> 0
F105: =SUM(F29:F104) -> 6778.454625
C107: =IF(CostBreakdownSummary!C107="","",CostBreakdownSummary!C107) ->  | D107: Tot. Hard Costs & Proj. OH | F107: =F105+F26 -> 7631.847281
B109: SupervisionProfitOHCont!E19 | C109: =IF(CostBreakdownSummary!C109="","",CostBreakdownSummary!C109) ->  | D109: Company Overhead (G&A) | F109: =CompanyOH -> 690.7979317
B110: SupervisionProfitOHCont!E15 | C110: =IF(CostBreakdownSummary!C110="","",CostBreakdownSummary!C110) ->  | D110: Builder's Margin | F110: =Profit -> 863.4974146
F111: =SUM(F109:F110,F107) -> 9186.142627

Sheet ChangeOrderSummary
J2: Change Order Summary
D3: =EstimateDate -> 2008-07-11 | J3: Instructions
C5: Code | D5: Project Overhead & Lot | E5: Est. Cost or Bid | F5: 1 | G5: 2 | H5: 3 | J5: Total Change
B6: Lot!A1 | C6: =CostBreakdownSummary!C12 -> 1000 | D6: Lot | E6: =TotalLot -> 0 | J6: =SUM(F6:I6) -> 0
B7: Permit!A1 | C7: =CostBreakdownSummary!C13 -> 0 | D7: Permit and Fees | E7: =TotalPermit -> 0 | J7: =SUM(F7:I7) -> 0
B8: PlansEngineering!A1 | C8: =CostBreakdownSummary!C14 -> 0 | D8: Architecture & Engineering | E8: =TotalArchEngineering -> 0 | J8: 0
B9: TemporaryUtilities!A1 | C9: =CostBreakdownSummary!C15 -> 0 | D9: Temporary Utilities | E9: =TotalTempUtil -> 0 | J9: 0
B10: ConstructionLoan!A1 | C10: =CostBreakdownSummary!C16 -> 0 | D10: Construction Loan | E10: =TotalLoan -> 0 | J10: 0
B11: SupervisionProfitOHCont!E12 | C11: =CostBreakdownSummary!C17 -> 0 | D11: Supervision | E11: =Supervision -> 129.5246122 | J11: 0
B12: SupervisionProfitOHCont!E23 | C12: =CostBreakdownSummary!C18 -> 0 | D12: Contingency | E12: =Contingency -> 172.6994829 | J12: =SUM(F12:I12) -> 0
B13: SupervisionProfitOHCont!F23 | C13: =CostBreakdownSummary!C19 -> 0 | D13: Liability Insurance | E13: =LiabilityInsurance -> 0 | J13: =SUM(F13:I13) -> 0
B14: SupervisionProfitOHCont!I23 | C14: =CostBreakdownSummary!C20 -> 0 | D14: Real Estate Commission | E14: =RealEstateComm -> 551.168561 | J14: 0
B15: Custom1Name | C15: =CostBreakdownSummary!C21 -> 0 | D15: =LEFT(Custom1Name,LEN(Custom1Name)-6) -> Custom 1 | E15: =TotalCustom1 -> 0 | J15: 0
B16: Custom2Name | C16: =CostBreakdownSummary!C22 -> 0 | D16: =LEFT(Custom2Name,LEN(Custom2Name)-6) -> Custom 2 | E16: =TotalCustom2 -> 0 | J16: 0
B17: Custom3Name | C17: =CostBreakdownSummary!C23 -> 0 | D17: =LEFT(Custom3Name,LEN(Custom3Name)-6) -> Custom 3 | E17: =TotalCustom3 -> 0 | J17: 0
A18: 1 | B18: Custom4Name | C18: =CostBreakdownSummary!C24 -> 0 | D18: =LEFT(Custom4Name,LEN(Custom4Name)-6) -> Custom 4 | E18: =TotalCustom4 -> 0 | J18: 0
D20: Project OH & Lot Changes: | E20: =SUM(E6:E19) -> 853.3926561 | F20: =SUM(F6:F18) -> 0 | G20: =SUM(G6:G18) -> 0 | H20: =SUM(H6:H18) -> 0 | J20: =SUM(J6:J19) -> 0
C22: Code | D22: Hard Costs | E22: Est. Cost or Bid | F22: 1 | G22: 2 | H22: 3 | J22: Total Change
B23: Demolition!A1 | C23: =CostBreakdownSummary!C29 -> 0 | D23: Demolition | E23: =TotalDemo -> 0 | J23: =SUM(F23:I23) -> 0
B24: Earthwork!A1 | C24: =CostBreakdownSummary!C30 -> 0 | D24: Earthwork | E24: =TotalEarthWork -> 0 | J24: =SUM(F24:I24) -> 0
B25: Footings!A1 | C25: =CostBreakdownSummary!C31 -> 300 | D25: Footings | E25: =TotalFooting -> 2554.2615 | J25: 0
B26: Foundation!A1 | C26: =CostBreakdownSummary!C32 -> 0 | D26: Foundation | E26: =TotalFoundation -> 0 | J26: 0
B27: CMUFoundation!A1 | C27: =CostBreakdownSummary!C33 -> 0 | D27: CMU Foundation | E27: =TotalCMU -> 0 | J27: 0
B28: Flatwork!A1 | C28: =CostBreakdownSummary!C34 -> 0 | D28: Concrete Flatwork | E28: =TotalFlatwork -> 0 | J28: 0
B29: TotalMiscSteel | C29: =CostBreakdownSummary!C35 -> 0 | D29: Miscellaneous Steel | E29: =TotalMiscSteel -> 0 | J29: 0
B30: WindowWell!A1 | C30: =CostBreakdownSummary!C36 -> 0 | D30: Window Wells | E30: =TotalWindowWell -> 0 | J30: 0
B31: Damproofing!A1 | C31: =CostBreakdownSummary!C37 -> 0 | D31: Damproofing | E31: =TotalDamp -> 0 | J31: 0
B32: UtilityLaterals!A1 | C32: =CostBreakdownSummary!C38 -> 0 | D32: Utility Laterals | E32: =TotalUtilLat -> 0 | J32: 0
B33: SepticSystem!A1 | C33: =CostBreakdownSummary!C39 -> 0 | D33: Septic System | E33: =TotalSeptic -> 0 | J33: 0
B34: PotableWaterWell!A1 | C34: =CostBreakdownSummary!C40 -> 0 | D34: Potable Water Well Allow. | E34: =TotalWell -> 0 | J34: 0
B35: FramingMaterial!A1 | C35: =CostBreakdownSummary!C41 -> 0 | D35: Framing Material | E35: =TotalFraming -> 0 | J35: 0
B36: FramingLabor!A1 | C36: =CostBreakdownSummary!C42 -> 0 | D36: Framing Labor | E36: =TotalFramingLabor -> 0 | J36: 0
B37: EntryDoor!A1 | C37: =CostBreakdownSummary!C43 -> 0 | D37: Entry Doors | E37: =TotalEntryDoor -> 0 | J37: 0
B38: GarageDoor!A1 | C38: =CostBreakdownSummary!C44 -> 0 | D38: Garage Doors | E38: =TotalGarageDoor -> 0 | J38: 0
B39: Windows!A1 | C39: =CostBreakdownSummary!C45 -> 0 | D39: Windows | E39: =TotalWindows -> 0 | J39: 0
B40: Plumbing!A1 | C40: =CostBreakdownSummary!C46 -> 0 | D40: Plumbing | E40: =TotalPlumbing -> 0 | J40: 0
B41: Heating!A1 | C41: =CostBreakdownSummary!C47 -> 0 | D41: Heating | E41: =TotalHeating -> 0 | J41: 0
B42: AirConditioning!A1 | C42: =CostBreakdownSummary!C48 -> 0 | D42: Air Conditioning | E42: =TotalAirCond -> 0 | J42: 0
B43: Electrical!A1 | C43: =CostBreakdownSummary!C49 -> 0 | D43: Electrical | E43: =TotalElectrical -> 0 | J43: 0
B44: LightFixtures!A1 | C44: =CostBreakdownSummary!C50 -> 0 | D44: Light Fixture Allowance | E44: =TotalLightAllow -> 0 | J44: 0
B45: Roofing!A1 | C45: =CostBreakdownSummary!C51 -> 0 | D45: Roofing | E45: =TotalRoof -> 4224.193125 | J45: 0
B46: Insulation!A1 | C46: =CostBreakdownSummary!C52 -> 0 | D46: Insulation | E46: =TotalInsulation -> 0 | J46: 0
B47: Drywall!A1 | C47: =CostBreakdownSummary!C53 -> 0 | D47: Drywall | E47: =TotalDryWall -> 0 | J47: 0
B48: FinishCarpentry!A1 | C48: =CostBreakdownSummary!C54 -> 0 | D48: Finish Carpentry | E48: =TotalFinishCar -> 0 | J48: 0
B49: FinishCarpentryLabor!A1 | C49: =CostBreakdownSummary!C55 -> 0 | D49: Finish Carpentry Labor | E49: =TotalFinishLabor -> 0 | J49: =SUM(F49:I49) -> 0
B50: Painting!A1 | C50: =CostBreakdownSummary!C56 -> 0 | D50: Painting | E50: =TotalPainting -> 0 | J50: 0
B51: TileMarble!A1 | C51: =CostBreakdownSummary!C57 -> 0 | D51: Tile/Marble | E51: =TotalTileMarble -> 0 | J51: 0
B52: Fireplace!A1 | C52: =CostBreakdownSummary!C58 -> 0 | D52: Fireplace Allowance | E52: =TotalFireplace -> 0 | J52: 0
B53: FloorCoverings!A1 | C53: =CostBreakdownSummary!C59 -> 0 | D53: Floor Coverings | E53: =TotalFloorCover -> 0 | J53: 0
B54: Cabinets!A1 | C54: =CostBreakdownSummary!C60 -> 0 | D54: Cabinets | E54: =TotalCabinet -> 0 | J54: 0
B55: Countertops!A1 | C55: =CostBreakdownSummary!C61 -> 0 | D55: Countertops | E55: =TotalCountertop -> 0 | J55: 0
B56: Appliances!A1 | C56: =CostBreakdownSummary!C62 -> 0 | D56: Appliances | E56: =TotalAppliance -> 0 | J56: 0
B57: HardwareMirror!A1 | C57: =CostBreakdownSummary!C63 -> 0 | D57: Hardware & Mirrors | E57: =TotalHdwMirror -> 0 | J57: 0
B58: Siding!A1 | C58: =CostBreakdownSummary!C64 -> 0 | D58: Siding | E58: =TotalSidingLump -> 0 | J58: 0
C59: =CostBreakdownSummary!C65 -> 0 | D59: Vinyl / Alum. Siding | E59: =TotalAlumVinyl -> 0 | J59: 0
C60: =CostBreakdownSummary!C66 -> 0 | D60: Wood Siding | E60: =TotalWoodSiding -> 0 | J60: 0
C61: =CostBreakdownSummary!C67 -> 0 | D61: Brick | E61: =TotalBrickSiding -> 0 | J61: 0
C62: =CostBreakdownSummary!C68 -> 0 | D62: Stucco | E62: =TotalStuccoSiding -> 0 | J62: 0
C63: =CostBreakdownSummary!C69 -> 0 | D63: Stone | E63: =TotalStoneSiding -> 0 | J63: 0
C64: =CostBreakdownSummary!C70 -> 0 | D64: Other | E64: =TotalOtherSiding -> 0 | J64: 0
B65: SoffitFascia!A1 | C65: =CostBreakdownSummary!C71 -> 0 | D65: Soffit & Fascia | E65: =TotalSoffitFascia -> 0 | J65: 0
B66: Gutter!A1 | C66: =CostBreakdownSummary!C72 -> 0 | D66: Gutter | E66: =TotalGutter -> 0 | J66: 0
B67: Deck!A1 | C67: =CostBreakdownSummary!C73 -> 0 | D67: Deck | E67: =TotalDeck -> 0 | J67: 0
B68: ExtRailing!A1 | C68: =CostBreakdownSummary!C74 -> 0 | D68: Exterior Railing | E68: =TotalRailing -> 0 | J68: 0
B69: FDNPlaster!A1 | C69: =CostBreakdownSummary!C75 -> 0 | D69: Foundation Plaster | E69: =TotalPlaster -> 0 | J69: 0
B70: Cleanup!A1 | C70: =CostBreakdownSummary!C76 -> 0 | D70: Clean-up | E70: =TotalCleanup -> 0 | J70: 0
B71: Landscaping!A1 | C71: =CostBreakdownSummary!C77 -> 0 | D71: Landscaping | E71: =TotalLandscaping -> 0 | J71: 0
B72: Custom5Name | C72: =CostBreakdownSummary!C78 -> 0 | D72: =LEFT(Custom5Name,LEN(Custom5Name)-6) -> Custom 5 | E72: =TotalCustom5 -> 0 | J72: 0
B73: Custom6Name | C73: =CostBreakdownSummary!C79 -> 0 | D73: =LEFT(Custom6Name,LEN(Custom6Name)-6) -> Custom 6 | E73: =TotalCustom6 -> 0 | J73: 0
B74: Custom7Name | C74: =CostBreakdownSummary!C80 -> 0 | D74: =LEFT(Custom7Name,LEN(Custom7Name)-6) -> Custom 7 | E74: =TotalCustom7 -> 0 | J74: 0
B75: Custom8Name | C75: =CostBreakdownSummary!C81 -> 0 | D75: =LEFT(Custom8Name,LEN(Custom8Name)-6) -> Custom 8 | E75: =TotalCustom8 -> 0 | J75: 0
B76: Custom9Name | C76: =CostBreakdownSummary!C82 -> 0 | D76: =LEFT(Custom9Name,LEN(Custom9Name)-6) -> Custom 9 | E76: =TotalZCustom9 -> 0 | J76: 0
B77: Custom10Name | C77: =CostBreakdownSummary!C83 -> 0 | D77: =LEFT(Custom10Name,LEN(Custom10Name)-6) -> Custom 10 | E77: =TotalCustom10 -> 0 | J77: 0
B78: Custom11Name | C78: =CostBreakdownSummary!C84 -> 0 | D78: =LEFT(Custom11Name,LEN(Custom11Name)-6) -> Custom 11 | E78: =TotalZCustom11 -> 0 | J78: 0
B79: Custom12Name | C79: =CostBreakdownSummary!C85 -> 0 | D79: =LEFT(Custom12Name,LEN(Custom12Name)-6) -> Custom 12 | E79: =TotalZCustom12 -> 0 | J79: 0
B80: Custom13Name | C80: =CostBreakdownSummary!C86 -> 0 | D80: =LEFT(Custom13Name,LEN(Custom13Name)-6) -> Custom 13 | E80: =TotalZCustom13 -> 0 | J80: 0
B81: Custom14Name | C81: =CostBreakdownSummary!C87 -> 0 | D81: =LEFT(Custom14Name,LEN(Custom14Name)-6) -> Custom 14 | E81: =TotalZCustom14 -> 0 | J81: 0
B82: Custom15Name | C82: =CostBreakdownSummary!C88 -> 0 | D82: =LEFT(Custom15Name,LEN(Custom15Name)-6) -> Custom 15 | E82: =TotalZCustom15 -> 0 | J82: 0
B83: Custom16Name | C83: =CostBreakdownSummary!C89 -> 0 | D83: =LEFT(Custom16Name,LEN(Custom16Name)-6) -> Custom 16 | E83: =TotalZCustom16 -> 0 | J83: 0
B84: Custom17Name | C84: =CostBreakdownSummary!C90 -> 0 | D84: =LEFT(Custom17Name,LEN(Custom17Name)-6) -> Custom 17 | E84: =TotalZCustom17 -> 0 | J84: 0
B85: Custom18Name | C85: =CostBreakdownSummary!C91 -> 0 | D85: =LEFT(Custom18Name,LEN(Custom18Name)-6) -> Custom 18 | E85: =TotalZCustom18 -> 0 | J85: 0
B86: Custom19Name | C86: =CostBreakdownSummary!C92 -> 0 | D86: =LEFT(Custom19Name,LEN(Custom19Name)-6) -> Custom 19 | E86: =TotalZCustom19 -> 0 | J86: 0
B87: Custom20Name | C87: =CostBreakdownSummary!C93 -> 0 | D87: =LEFT(Custom20Name,LEN(Custom20Name)-6) -> Custom 20 | E87: =TotalZCustom20 -> 0 | J87: =SUM(F87:I87) -> 0
C88: =CostBreakdownSummary!C94 -> 0 | D88: =LEFT(Custom21Name,LEN(Custom21Name)-6) -> Custom 21 | E88: =TotalCustom21 -> 0 | J88: =SUM(F88:I88) -> 0
C89: =CostBreakdownSummary!C95 -> 0 | D89: =LEFT(Custom22Name,LEN(Custom22Name)-6) -> Custom 22 | E89: =TotalCustom22 -> 0 | J89: 0
C90: =CostBreakdownSummary!C96 -> 0 | D90: =LEFT(Custom23Name,LEN(Custom23Name)-6) -> Custom 23 | E90: =TotalCustom23 -> 0 | J90: 0
C91: =CostBreakdownSummary!C97 -> 0 | D91: =LEFT(Custom24Name,LEN(Custom24Name)-6) -> Custom 24 | E91: =TotalCustom24 -> 0 | J91: 0
C92: =CostBreakdownSummary!C98 -> 0 | D92: =LEFT(Custom25Name,LEN(Custom25Name)-6) -> Custom 25 | E92: =TotalCustom25 -> 0 | J92: 0
C93: =CostBreakdownSummary!C99 -> 0 | D93: =LEFT(Custom26Name,LEN(Custom26Name)-6) -> Custom 26 | E93: =TotalCustom26 -> 0 | J93: 0
C94: =CostBreakdownSummary!C100 -> 0 | D94: =LEFT(Custom27Name,LEN(Custom27Name)-6) -> Custom 27 | E94: =TotalCustom27 -> 0 | J94: 0
C95: =CostBreakdownSummary!C101 -> 0 | D95: =LEFT(Custom28Name,LEN(Custom28Name)-6) -> Custom 28 | E95: =TotalCustom28 -> 0 | J95: 0
C96: =CostBreakdownSummary!C102 -> 0 | D96: =LEFT(Custom29Name,LEN(Custom29Name)-6) -> Custom 29 | E96: =TotalCustom29 -> 0 | J96: 0
C97: =CostBreakdownSummary!C103 -> 0 | D97: =LEFT(Custom30Name,LEN(Custom30Name)-6) -> Custom 30 | E97: =TotalCustom30 -> 0 | J97: 0
J98: 0
D99: Hard Costs Changes: | E99: =SUM(E23:E98) -> 6778.454625 | F99: =SUM(F23:F98) -> 0 | G99: =SUM(G23:G98) -> 0 | H99: =SUM(H23:H98) -> 0 | J99: =SUM(J23:J98) -> 0
D101: Total Changes: | E101: =TotalHardCosts+TotalProjectOH -> 7631.847242 | F101: =F99+F20 -> 0 | G101: =G99+G20 -> 0 | H101: =H99+H20 -> 0 | J101: =J99+J20 -> 0

Sheet CustomerBidForm
D3: Company Name | G3: Customer's Names: | H3: =TEXT(CustomerName1,"") -> 
D4: Address | H4: =TEXT(CustomerName2,"") -> 
D5: City, State ZIP | G5: Home Phone: | H5: =CustomerHomePhone -> 0
D6: Phone | G6: Business Phone: | H6: =CustomerBusinessPhone -> 0
G9: Date: | H9: =EstimateDate -> 2008-07-11
G11: Total Bid Price: | H11: =TotalSalesPrice -> 9186.142509
D13: Bid Includes:
D17: Contractor Notes:
D25: Payment Schedule:
D33: Contractor Signature: | G33: Date:
D36: Customer Signature: | G36: Date:

Sheet SupervisionProfitOHCont
I2: Supervision, Profit, Overhead
H4: Total Sales Price:
H5: =H16 -> 9186.142509
E6: Total Sales Price Less Lot
E7: =TotalSalesPrice-TotalLot-RealEstate -> 8634.973948 | F7: 2
C8: FALSE
B9: 1 | C9: Supervision | G9: Break Down | I9: Actual
A10: 1 | B10: 9 | C10: Supervision Rate | D10: =KeyInfo!$D$48 -> 0.015 | E10: =IF(ISERROR($E$7),0,IF(A10=1,($E$7*D10),0)) -> 129.5246092 | F10: 1 | G10: Hard Costs | H10: =IF(OR(ISERROR(TotalSalesPrice),ISERROR(TotalHardCosts)),0,IF(TotalSalesPrice<0.01,0,TotalHardCosts)) -> 6778.454625 | I10: =IF(TotalSalesPrice<0.01,0,IF(ISERROR(H10/$H$16),"",H10/$H$16)) -> 0.7379000073
C11: Supervision Fee | E11: =IF(A10=2,D11,0) -> 0 | G11: Project OH | H11: =IF(OR(ISERROR(TotalSalesPrice),ISERROR(TotalProjectOHLot-TotalLot)),0, IF(TotalSalesPrice<0.01,0,TotalProjectOHLot - TotalLot-RealEstate)) -> 302.2240951 | I11: 0.03290000071
D12: Total Supervision | E12: =SUM(E10:E11) -> 129.5246092 | G12: Lot | H12: =IF(OR(ISERROR(TotalSalesPrice),ISERROR(TotalLot)),0,IF(TotalSalesPrice<0.01,0,TotalLot)) -> 0 | I12: 0
G13: Company OH (G&A) | H13: =IF(OR(ISERROR(TotalSalesPrice),ISERROR(CompanyOH)),0,IF(TotalSalesPrice<0.01,0,CompanyOH)) -> 690.7979317 | I13: 0.07520000163
C14: Builders Margin (Profit) | G14: Profit | H14: =IF(OR(ISERROR(TotalSalesPrice),ISERROR(Profit)),0,IF(TotalSalesPrice<0.01,0,Profit)) -> 863.4974146 | I14: 0.09400000204
A15: 1 | C15: Builders Margin % | D15: =KeyInfo!D49 -> 0.1 | E15: =IF(ISERROR($E$7),0,IF(A15=1,($E$7*D15),0)) -> 863.4973948 | G15: Real Estate Commission | H15: =RealEstate -> 551.168561 | I15: 0.06000000113
C16: Lump Sum: | E16: =IF(A15=2,D16,0) -> 0 | G16: Total Sales Price | H16: =SUM(H10:H15) -> 9186.142627 | I16: =SUM(I10:I15) -> 1.000000013
D17: Total Profit: | E17: =IF(C18=FALSE,0,IF(OR(E16="",E16=0),E15,E16)) -> 863.4973948
C18: TRUE
C19: Company Overhead | G19: Real Estate Commission
A20: 1 | C20: Company OH Margin % | D20: =KeyInfo!$D$50 -> 0.08 | E20: =IF(ISERROR($E$7),0,IF(A20=1,($E$7*D20),0)) -> 690.7979159 | F20: 1 | G20: Real Estate Margin % | H20: =KeyInfo!D52 -> 0.06 | I20: =IF(ISERROR($E$7),0,IF(F20=1,(H5*H20),0)) -> 551.1685506
C21: Lump Sum: | E21: =IF(A20=2,D21,0) -> 0 | G21: Lump Sum: | I21: =IF(F20=2,H21,0) -> 0
D22: Total OH: | E22: =IF(C23=FALSE,0,IF(OR(E21="",E21=0),E20,E21)) -> 690.7979159 | H22: Total Commission: | I22: =IF(F25=FALSE,0,IF(OR(I21="",I21=0),I20,I21)) -> 551.1685506
C23: TRUE | G23: TRUE
C24: Contingency | G24: Liability Insurance
A25: 1 | C25: Contingency Margin % | D25: =KeyInfo!D51 -> 0.02 | E25: =IF(ISERROR($E$7),0,IF(A25=1,($E$7*D25),0)) -> 172.699479 | F25: 1 | G25: Contingency Margin % | H25: =KeyInfo!D53 -> 0.03 | I25: =IF(ISERROR($E$7),0,IF(F25=2,($E$7*H25),0)) -> 0
C26: Lump Sum: | E26: =IF(A25=2,D26,0) -> 0 | G26: Lump Sum: | I26: =IF(F25=1,H26,0) -> 0
D27: Total Contingency: | E27: =IF(C28=FALSE,0,IF(OR(E26="",E26=0),E25,E26)) -> 172.699479 | H27: Total Liability Insurance: | I27: =IF(OR(I26="",I26=0),I25,I26) -> 0
C28: TRUE

Sheet SubSelect
I2: Subcontractor & Supplier Selections
B3: Select a Work Type then click on the grey bar to select a new subcontractor or supplier
B4: Work Type | C4: Company | D4: Contact | E4: Office # | F4: Mobile # | G4: Fax # | H4: E-mail | I4: Work | J4: Specialities | K4: Street | L4: City | M4: State | N4: Zip Code | O4: Contractor License # | P4: Notes
B5: Finance Company
B6: Earthwork
B7: Superintendent
B8: Steel
B9: Power
B10: Ftgs/Fdn
B11: Concrete
B12: Gas
B13: Window Wells
B14: Window Well Labor
B15: Dampproofing
B16: Trusses
B17: Termite
B18: VA/FHA Inspector
B19: Lumber
B20: Exterior Doors
B21: Windows | S21: I am cool
B22: Grading Labor
B23: S & W
B24: General Labor
B25: Plumbing
B26: City Inspector
B27: Flatwork
B28: Framing
B29: Roofing
B30: HVAC
B31: Electrical
B32: Cabinets
B33: Fireplace
B34: Insulation
B35: Drywall
B36: Garage Door
B37: Finish Lumber
B38: Finish Carpentry
B39: Tile
B40: Painting
B41: Appliances
B42: Floor Coverings
B43: CounterTops
B44: Lighting
B45: Hardware
B46: Interior Clean-up
B47: Masonry
B48: Brick Supply
B49: Aluminum/Vinyl Siding
B50: Wood Siding
B51: Stucco Siding
B52: Gutter
B53: Exterior Clean-up
B54: FDN Plaster

Sheet Permit
F2: Permit & Fees Detail
C5: Choose Estimating Method | D5: 1 | F5: Total Costs:
D6: Enter Amount: | F6: =IF(D5=1,E6,IF(D5=2,E7,0)) -> 0
E7: =F17+D43 -> 0
C10: Detail Estimate
C12: Permit Price per SF + Extras
C13: Description | D13: QTY | E13: $/Unit | F13: Sub-Total $
C16: End
E17: Total Permit Fee: | F17: =SUM(F14:F16) -> 0
C20: City Valuation
C21: Choose A City:
C22: Lehi | E22: City Phone: | F22: =INDEX( [1]!PermitValuationDB,2,MATCH(C22,[1]!PermitCityList,0)+1) -> 768-7120 | J22: TRUE
C23: Valuation | D23: SF | E23: Valuation $/SF | F23: Valuation
C24: Main Floor SF | D24: =IF(UseValuation = TRUE,MainFloorSF,0) -> 0 | E24: =VLOOKUP(C24,[1]!PermitValuationDB,MATCH(PermitCityChoose,[1]!PermitCityList,0)+1,FALSE) -> 45.83 | F24: =D24*E24 -> 0
C25: 2nd Floor SF | D25: =IF(UseValuation = TRUE,SecondFloorSF,0) -> 0 | E25: =VLOOKUP(C25,[1]!PermitValuationDB,MATCH(PermitCityChoose,[1]!PermitCityList,0)+1,FALSE) -> 22.92 | F25: =D25*E25 -> 0
C26: 3rd Floor SF | D26: =IF(UseValuation=TRUE,ThirdFloorSF,0) -> 0 | E26: =VLOOKUP(C26,[1]!PermitValuationDB,MATCH(PermitCityChoose,[1]!PermitCityList,0)+1,FALSE) -> 22.92 | F26: 0
C27: Finished Basement SF | D27: =IF(UseValuation = TRUE,FinishedBaseSF,0) -> 0 | E27: =VLOOKUP(C27,[1]!PermitValuationDB,MATCH(PermitCityChoose,[1]!PermitCityList,0)+1,FALSE) -> 22.92 | F27: 0
C28: Total Finished SF | D28: =IF(UseValuation = TRUE,TotalFinishedSF,0) -> 0
C29: Unfinished Basement SF | D29: =IF(UseValuation=TRUE,UnfinishedBaseSF,0) -> 0 | E29: =VLOOKUP(C29,[1]!PermitValuationDB,MATCH(PermitCityChoose,[1]!PermitCityList,0)+1,FALSE) -> 9.9 | F29: 0
C30: Garage SF | D30: =IF(UseValuation=TRUE,GarageSF,0) -> 0 | E30: =VLOOKUP(C30,[1]!PermitValuationDB,MATCH(PermitCityChoose,[1]!PermitCityList,0)+1,FALSE) -> 16.58 | F30: 0
C31: Covered Porch SF | D31: =IF(UseValuation=TRUE,PorchSF,0) -> 0 | E31: =VLOOKUP(C31,[1]!PermitValuationDB,MATCH(PermitCityChoose,[1]!PermitCityList,0)+1,FALSE) -> 15 | F31: 0
C32: Deck | D32: =IF(UseValuation=TRUE,DeckSF,0) -> 0 | E32: =VLOOKUP(C32,[1]!PermitValuationDB,MATCH(PermitCityChoose,[1]!PermitCityList,0)+1,FALSE) -> 0 | F32: 0
E33: Calculated Valuation: | F33: =SUM(F24:F27,F29:F32) -> 0
E34: Lump Sum Valuation:
F35: Selected Valuation
C36: =PermitCityChoose -> Lehi | F36: =PermitCalcVal -> 0
C37: Building Permit
C38: Permit: | D38: =IF(E38=TRUE,PermitFee,0) -> 0 | E38: TRUE
C39: Plan Check: | D39: =IF(E39=TRUE,PermitPlanCheck,0) -> 0 | E39: TRUE
C40: =CONCATENATE(E53*100 & "%" &" State Tax: ") -> 1% State Tax: | D40: =IF(E40=TRUE,PermitState,0) -> 0 | E40: TRUE | F40: Water Line Size
C41: Connection & Impact Fees: | D41: =IF(PermitTotalValuation=0,0,IF(E41=TRUE,VLOOKUP("Total Fees",[1]!PermitFeesDB,MATCH(PermitCityChoose,[1]!PermitCityList,0)+1,FALSE) + VLOOKUP(UtilLatWaterSize,[1]!PermitFeesDB,MATCH(PermitCityChoose,[1]!PermitCityList,0)+1,FALSE),0)) -> 0 | E41: TRUE | F41: =UtilLatWaterSize -> 1"
C42: Other: | D42: =IF(PermitTotalValuation=0,0,IF(E42=TRUE,PermitOther,0)) -> 0 | E42: TRUE
C43: Total Building Permit: | D43: =SUM(D38:D42) -> 0
D47: Permit Calculator
C48: For Property Improvement Valuation
C49: From: | D49: To: | E49: Total Valuation | F49: Permit Fee
C50: =IF(PermitTotalValuation=0,0,LOOKUP(PermitTotalValuation,[1]!CodeLow)) -> 0 | D50: =IF(PermitTotalValuation=0,0,LOOKUP(PermitTotalValuation,[1]!CodeLow,[1]!CodeHigh)) -> 0 | E50: =PermitTotalValuation -> 0 | F50: =IF(PermitTotalValuation=0,0,LOOKUP(PermitTotalValuation,[1]!CodeLow,[1]!CodeBase)+G50) -> 0 | G50: =ROUNDUP((PermitTotalValuation-C50)/LOOKUP(PermitTotalValuation,[1]!CodeLow,[1]!CodePlusAmt),0)*LOOKUP(PermitTotalValuation,[1]!CodeLow,[1]!CodePlus) -> 
D52: Plan Check Rate: | E52: 0.65 | F52: =PermitFee*E52 -> 0
D53: State Tax: | E53: 0.01 | F53: =PermitFee*E53 -> 0
D54: Other:

Sheet Lot
G2: Lot Detail
C5: Choose Estimating Method | D5: 1 | G5: Total Costs:
E6: Enter Amount: | G6: =IF(D5=1,F6,IF(D5=2,F7,0)) -> 0
F7: =G28+D20 -> 0
C9: Detail Lot Development
C11: Select Lot from Inventory
C12: Lot Information
C13: Lot ID: | D13: =ProjectLotID -> 0
C14: Subdivision/Community: | D14: =ProjectSubdivision -> 
C15: Street: | D15: =ProjectAddress -> 
C16: City: | D16: =ProjectCity -> 
C17: State: | D17: =ProjectState -> 
C18: Zip: | D18: =ProjectZip -> 
C19: Lot SF: | D19: =ProjectLotSF -> 
C20: Finished Lot Cost | D20: =IF(ProjectLotID="",0,VLOOKUP(ProjectLotID,[1]!LotDB,11,FALSE)) -> 0
C23: Detail Lot Development Costs
C24: Description | D24: QTY | E24: Unit | F24: $/Unit | G24: Sub-Total $
C27: End
F28: Total Lot Development Cost: | G28: =SUM(G25:G27) -> 0

Sheet ArchEngineering
G2: Plans & Engineering Detail
F4: Enter Lump Sum: | G4: Sub-Total
D5: Plans: | G5: =IF(OR(F5="",F5=0),G15,F5) -> 0
D6: Engineering: | G6: =IF(OR(F6="",F6=0),G24,F6) -> 0
F7: Total of Plans and Engineering: | G7: =TotalArchitecture+TotalEngineering -> 0
D8: 1
C10: Architecture
B11: Product ID | C11: Description | D11: QTY | E11: Unit | F11: $/Unit | G11: Sub-Total $
C14: End
F15: Total of Engineering: | G15: =SUM(G12:G14) -> 0
C19: Engineering | G19: Sub 1
B20: Product ID | C20: Description | D20: QTY | E20: Unit | F20: $/Unit | G20: Sub-Total $
C23: End
F24: Total of Engineering: | G24: =SUM(G21:G23) -> 0

Sheet ConstructionLoan
G2: Construction Loan Detail
C5: Choose Estimating Method | D5: 1 | G5: Total Costs:
E6: Enter Amount: | G6: =IF(D5=1,F6,F7) -> 0
F7: =G22 -> 0
C10: Appraised Value: | F10: Origination Rate: | G10: 0.01
C11: LTV: | D11: 0.8 | F11: Interest Rate: | G11: 0.068
C12: Loan Amount: | D12: =D10*D11 -> 0 | F12: Term: (Months) | G12: 6
C15: Construction Loan | G15: Bank 1
C16: Description | D16: QTY | E16: Unit | F16: $/Unit | G16: Sub-Total $
C17: Loan Origination Fee | D17: =LoanOriginationRate -> 0.01 | E17: % | F17: =LoanAmount -> 0 | G17: =F17*D17 -> 0
C18: Interest Reserve | D18: =(LoanIntRate/12)*LoanTerm/2 -> 0.017 | E18: Factor | F18: =LoanAmount -> 0 | G18: =F18*D18 -> 0
C21: End
F22: Other Fees Total: | G22: =SUM(G17:G21) -> 0

Sheet TemporaryUtilities
G2: Temporary Utilities Detail
C4: FALSE
C5: Estimated Duration of Construction: | D5: =ProjectDuration -> 0 | E5: Months
C8: Choose Estimating Method | D8: 1 | F8: Total Costs:
D9: Enter Amount: | F9: =IF(D8=1,E9,E10) -> 0
E10: =G18 -> 0
C13: Temporary Utilities
C14: Description | D14: QTY | E14: Unit | F14: $/Unit | G14: Sub-Total $
C17: End
F18: Total Temporary Utility Costs: | G18: =SUM(G15:G17) -> 0

Sheet Demolition
G2: Demolition Detail
C5: Choose Estimating Method | D5: 1 | G5: Total Costs:
E6: Enter Amount: | G6: =IF(D5=1,F6,F7) -> 0
F7: =G18 -> 0
C10: Demolition | G10: Sub1
B11: Product ID | C11: Description | D11: QTY | E11: Unit | F11: $/Unit | G11: Sub-Total $
C14: End
F15: Labor Sub-Total: | G15: =SUMIF(C12:C14,"Labor*",G12:G14) -> 0
F16: Material Sub-Total: | G16: =SUM(G12:G14)-G15 -> 0
F17: Sales Tax: | G17: =IF(E18=FALSE,"",G16*TaxRate) -> 0
E18: TRUE | F18: Total Cost: | G18: =SUM(G15:G17) -> 0

Sheet Earthwork
G2: Earthwork Detail
C5: Choose Estimating Method | D5: 2 | F5: Total Costs:
D6: Enter Amount: | F6: =IF(D5=2,E6,E7) -> 0
E7: =G18 -> 0
C10: Earthwork | G10: Sub1
B11: Product ID | C11: Description | D11: QTY | E11: Unit | F11: $/Unit | G11: Sub-Total $
C14: End
F15: Labor Sub-Total: | G15: =SUMIF(C12:C14,"Labor*",G12:G14) -> 0
F16: Material Sub-Total: | G16: =SUM(G12:G14)-G15 -> 0
F17: Sales Tax: | G17: =IF(E18=FALSE,"",G16*TaxRate) -> 0
E18: TRUE | F18: Total Cost: | G18: =SUM(G15:G17) -> 0

Sheet Footings
K1: 0.005
H2: Footing Detail | K2: 0.01
K3: 0.015
K4: 0.02
C5: Choose Estimating Method | D5: 2 | G5: Total Costs: | K5: 0.005
E6: Enter Amount: | G6: =IF(D5=1,F6,F7) -> 2554.2615
F7: =H21+H33+H40 -> 2554.2615
C10: QTY Horizontal Bars in FTG: | D10: 2
C11: J-Bar Spacing in FTG (in.) : | D11: 24
C12: Footings Waste Factor: | D12: 0.05 | J12: 0
C14: Detail Estimate
J15: FALSE
C16: Footings | H16: Labor Only | J16: TRUE
B17: Product ID | C17: Description | D17: QTY | E17: Unit | F17: CY | G17: $/Unit | H17: Sub-Total $
B18: =GetProductID($C$18,[1]!FootingDB,7+MATCH(FootingSub,[1]!FootingSubs,1)) ->  | C18: 20 x 10 Footing | D18: 220 | E18: =IF($C$18="","",VLOOKUP($C$18, [1]!FootingDB, 3,FALSE)) -> LF | F18: =($D$18*(VLOOKUP($C$18, [1]!FootingDB, 4,FALSE)/IF($E$18="EA",144,12))*(VLOOKUP($C$18, [1]!FootingDB, 5,FALSE)/12)*(1+FootingWasteFactor))/27 -> 11.88271605 | G18: =IF($C$18="","",VLOOKUP($C$18,[1]!FootingDB,MATCH(FootingSub,[1]!FootingSubs,FALSE)+7,FALSE)) -> 3.6 | H18: =IF($G$18="","",IF($D$18="","",$D$18*$G$18)) -> 792
C20: End | E20: Total CY: | F20: =ROUNDUP(SUM(F18:F19)*4,0)/4 -> 12
C21: Total LF of Footings: | D21: =SUMIF(E18:E20,"LF*",D18:D20) -> 220 | G21: Total Cost: | H21: =SUM(H18:H20) -> 792
C22: Total # of Spot Footings: | D22: =SUMIF(E18:E20,"EA*",D18:D20) -> 0
C24: Add Misc. | H24: Sub 1
B25: Product ID | C25: Description | D25: QTY | E25: Unit | F25: CY | G25: $/Unit | H25: Sub-Total $
B26: =GetProductID($C$26,[1]!Footing1DB,4+MATCH(Footing1Sub,[1]!Footing1Subs,1)) ->  | C26: 20' | D26: =ROUNDUP(FootingLF/18*FootingHorizRebarQTY*(1+FootingWasteFactor),0) -> 26 | E26: =IF($C$26="","",VLOOKUP($C$26, [1]!Footing1DB, 3,FALSE)) -> EA | F26: =IF($C$26="","",VLOOKUP($C$26, [1]!Footing1DB, 4,FALSE)) -> 0 | G26: =IF($C$26="","",VLOOKUP($C$26, [1]!Footing1DB, MATCH(Footing1Sub,[1]!Footing1Subs,FALSE)+4,FALSE)) -> 13.26 | H26: =IF($G$26="","",IF($D$26="","",$D$26*$G$26)) -> 344.76
B27: =GetProductID($C$27,[1]!Footing1DB,4+MATCH(Footing1Sub,[1]!Footing1Subs,1)) ->  | C27: 30'' J-Bar | D27: =ROUNDUP(FootingLF/FootingJBarSpacing*(FootingWasteFactor + 1)*12,0) -> 116 | E27: =IF($C$27="","",VLOOKUP($C$27, [1]!Footing1DB, 3,FALSE)) -> EA | F27: =IF($C$27="","",VLOOKUP($C$27, [1]!Footing1DB, 4,FALSE)) -> 0 | G27: =IF($C$27="","",VLOOKUP($C$27, [1]!Footing1DB, MATCH(Footing1Sub,[1]!Footing1Subs,FALSE)+4,FALSE)) -> 1.512 | H27: =IF($G$27="","",IF($D$27="","",$D$27*$G$27)) -> 175.392
C29: End | E29: Total CY: | F29: =SUM(F26:F28) -> 0
G30: Labor Sub-Total: | H30: =SUMIF(C26:C29,"Labor*",H26:H29) -> 0
G31: Material Sub-Total: | H31: =SUM(H26:H29)-H30 -> 520.152
G32: Sales Tax: | H32: =IF(E33=FALSE,"",H31*TaxRate) -> 32.5095
E33: TRUE | G33: Total Cost: | H33: =SUM(H30:H32) -> 552.6615
C36: Concrete
C37: Description | D37: QTY | E37: Unit | F37: PSI | G37: $/CY | H37: Total
C38: Concrete | D38: =F29+FootingCYRibbon -> 12 | E38: CY | F38: 3000 | G38: =VLOOKUP(FootingBagMix,[1]!ConcreteDB,2)+IF(G44=FALSE,0,VLOOKUP(FootingBagMix,[1]!ConcreteDB,5))+IF(F44=FALSE,0,VLOOKUP(FootingBagMix,[1]!ConcreteDB,4)*(CalciumPercent/0.005)) -> 100.8 | H38: =IF(E44=FALSE,0,G38*D38) -> 1209.6
G39: Sales Tax: | H39: =IF(F42=FALSE,0,H38*TaxRate) -> 0
G40: Total: | H40: =H39+H38 -> 1209.6
F42: FALSE
E44: TRUE | F44: FALSE | G44: FALSE | H44: 1.0%

Sheet WindowWell
I2: Window Well Detail
C5: Choose Estimating Method: | D5: 1 | H5: Total Costs:
F6: Enter Amount: | H6: =IF(D5=1,G6,G7) -> 0
G7: =I17 -> 0 | N7: FALSE
N8: FALSE
C9: Window Wells | I9: Supplier 1
B10: Product ID | C10: Description | D10: QTY | E10: Unit | F10: SF | G10: Total Area | H10: $/Unit | I10: Sub-Total $ | J10: Labor Rate | K10: Total Labor
C13: End | F13: Total Window Area: | G13: =SUM(G11:G12) -> 0 | K13: =SUM(K11:K12) -> 0
C14: Total # of Window Wells: | D14: =SUM(D11:D13) -> 0 | H14: Labor Sub-Total: | I14: =SUMIF(C11:C13,"Labor*",I11:I13)+K13 -> 0
H15: Material Sub-Total: | I15: =SUM(I11:I13)-SUMIF(E11:E13,"Labor*",I11:I13) -> 0
H16: Sales Tax: | I16: =IF(G17=FALSE,"",I15*TaxRate) -> 0
G17: TRUE | H17: Total Cost: | I17: =SUM(I14:I16) -> 0

Sheet Foundation
H2: Foundation Detail
D5: Choose Estimating Method: | E5: 1 | H5: Total Costs:
F6: Enter Amount: | H6: =IF(E5=1,G6,G7) -> 0
G7: =H23+H34+H40 -> 0
D9: Please Provide the Following:
C10: Veritical Rebar Spacing | D10: 24
C11: Horizontal Rebar Spacing | D11: 24
C12: Foundation J-bolt Spacing | D12: 30
C13: Material Waste Factor | D13: 0.05
C15: Detail Estimate
C17: Foundation | H17: Sub 1
B18: Product ID | C18: Description | D18: QTY | E18: Unit | F18: CY | G18: $/Unit | H18: Sub-Total $ | I18: Dowel Size | J18: QTY Dowels | K18: QTY 20' | L18: Vertical Rebar | M18: Horiz. Rebar
N19: =IF($K$19="","",IF($D$19="","",$D$19*$K$19)) -> 
C21: End | E21: Total CY: | F21: =IF(E22=FALSE,ROUNDUP(SUM(F19:F20)*4,0)/4,ROUNDUP((SUM(F19:F20)-(WindowWellArea*8/12/27))*4,0)/4) -> 0 | J21: Total 20' Rebar: | K21: =SUM(K19:K20) -> 0
C22: Total LF of Foundation: | D22: =SUM(D19:D21) -> 0 | E22: FALSE | G22: Sales Tax: | H22: =IF(F23=TRUE,SUM(H19:H21)*TaxRate,"") -> 0
F23: TRUE | G23: Total Cost: | H23: =SUM(H19:H22) -> 0
C26: Misc. | H26: Supplier 3
B27: Product ID | C27: Description | D27: QTY | E27: Unit | F27: CY | G27: $/Unit | H27: Sub-Total $
C30: End | E30: Total CY: | F30: =ROUNDDOWN(SUM(F28:F29)*4,0)/4 -> 0
G31: Labor Sub-Total: | H31: =SUMIF(C28:C30,"Labor*",H28:H30) -> 0
G32: Material Sub-Total: | H32: =SUM(H28:H30)-H31 -> 0
G33: Sales Tax: | H33: =IF(F34=FALSE,"",H32*TaxRate) -> 0
F34: TRUE | G34: Total Cost: | H34: =SUM(H31:H33) -> 0
C36: Concrete
C37: Description | D37: QTY | E37: Unit | F37: PSI | G37: $/CY | H37: Total | I37: FALSE
C38: Concrete | D38: =FoundationConcrete+FoundationConcreteSubtract -> 0 | E38: CY | F38: 3000 | G38: =VLOOKUP(FoundationBagMix,[1]!ConcreteDB,2)+IF(I37=FALSE,0,VLOOKUP(FoundationBagMix,[1]!ConcreteDB,5))+IF(I38=FALSE,0,VLOOKUP(FoundationBagMix,[1]!ConcreteDB,4)*(CalciumPercentFount/0.005)) -> 100.8 | H38: =IF(FDNIncludeConcrete=FALSE,0,D38*G38) -> 0 | I38: FALSE
G39: Sales Tax: | H39: =IF(F41=FALSE,0,H38*TaxRate) -> 0
G40: Total: | H40: =H39+H38 -> 0
F41: TRUE
D48: TRUE | H48: 0.01

Sheet CMUFoundation
G2: CMU Foundation Detail
C5: Choose Estimating Method | D5: 1 | G5: Total Costs:
E6: Enter Amount: | G6: =IF(D5=1,F6,IF(D5=2,F7,0)) -> 0
F7: =G25+G29+G40 -> 0
C9: Block Calculator | F9: Footing LF: | G9: =FootingLF -> 220
B10: Product ID | C10: Description | D10: LF of Wall | E10: Height " | F10: SF of Wall | G10: QTY of Block/Brick | H10: Window Well Area (SF) | L10: FALSE
C13: End | D13: =SUM(D11:D12) -> 0
E14: Block Totals: | F14: =SUMIF(C11:C12,"CMU*",F11:F12) -> 0 | G14: =SUMIF(C11:C12,"CMU*",G11:G12) -> 0
E15: Brick Totals: | F15: =SUMIF(C11:C12,"Brick*",F11:F12) -> 0 | G15: =SUMIF(C11:C12,"Brick*",G11:G12) -> 0
C17: Detail Estimate
C19: Material + Labor per Block
B20: Product ID | C20: Description | D20: QTY | E20: Unit | F20: $/Unit | G20: Sub-Total $
F24: Sales Tax: | G24: =IF(E25=TRUE,SUM(G21:G23)*TaxRate,"") -> 0
E25: TRUE | F25: Total Cost: | G25: =SUM(G21:G24) -> 0
C27: Material + Labor per SF
C28: Description | D28: QTY | E28: Unit | F28: $/Unit | G28: Sub-Total $
C29: Total Wall SF | D29: =CMUSF + CMUBrickSF -> 0 | E29: SF | F29: 6 | G29: =D29*F29 -> 0
C32: Misc | G32: Supplier 1
B33: Product ID | C33: Description | D33: QTY | E33: Unit | F33: $/Unit | G33: Sub-Total $ | H33: Labor Rate | I33: Total Labor | L33: FALSE
C36: End | H36: Labor: | I36: =SUM(I34:I35) -> 0 | L36: FALSE
F37: Labor Sub-Total: | G37: =SUMIF(C34:C35,"Labor*",G34:G35)+I36 -> 0
F38: Material Sub-Total: | G38: =SUM(G34:G36)-SUMIF(C34:C36,"Labor*",G34:G36) -> 0
F39: Sales Tax: | G39: =IF(E40=FALSE,"",G38*TaxRate) -> 0
E40: TRUE | F40: Total Cost: | G40: =SUM(G37:G39) -> 0

Sheet Flatwork
N2: Flatwork Detail
E5: Choose Estimating Method: | F5: 1 | L5: Total Costs:
J6: Enter Amount: | L6: =IF(F5=1,K6,IF(F5=2,K7,0)) -> 0
K7: =K40+G28+L18+O55 -> 0
C10: Flatwork Detail
C12: Flatwork | I12: Set Waste Factor: | J12: 0.05
B13: Product ID | C13: Description | D13: Thick in. | E13: Width ft. | F13: Length ft. | G13: SF | H13: Labor $/SF | I13: CY | J13: $/CY | K13: Labor Sub-Total | L13: Material Sub-Total
C16: End | F16: SubTotals: | G16: =SUM(G14:G15) -> 0 | I16: =SUM(I14:I15) -> 0 | K16: =SUM(K14:K15) -> 0 | L16: =SUM(L14:L15) -> 0
I17: TRUE | K17: Sales Tax: | L17: =IF(I17=FALSE,"",L16*TaxRate) -> 0
K18: Total Material and Labor: | L18: =SUM(L16:L17)+K16 -> 0
C20: Misc. | G20: Sub1
B21: Product ID | C21: Description | D21: Qty | E21: Unit | F21: $/Unit | G21: Sub-Total $
C24: End
F25: Labor Sub-Total: | G25: =SUMIF(C22:C24,"Labor*",G22:G24) -> 0
F26: Material Sub-Total: | G26: =SUM(G22:G24)-SUMIF(C22:C24,"Labor*",G22:G24) -> 0
F27: Sales Tax: | G27: =IF(D28=FALSE,"",G26*TaxRate) -> 0
D28: TRUE | F28: Total Cost: | G28: =SUM(G25:G27) -> 0
C32: Mat. & Labor $ / SF | K32: Supplier 1
B33: Product ID | C33: Description | D33: Thick in. | E33: Width ft. | F33: Length ft. | G33: SF | H33: $/Unit | I33: CY | J33: $ of Extras/CY | K33: Sub-Total $
C36: End
J37: Labor Sub-Total: | K37: =SUMIF(C34:C36,"Labor*",K34:K36) -> 0
J38: Material Sub-Total: | K38: =SUM(K34:K36)-SUMIF(C34:C36,"Labor*",K34:K36) -> 0
J39: Sales Tax: | K39: =IF(D40=FALSE,"",K38*TaxRate) -> 0
D40: TRUE | J40: Total Cost: | K40: =SUM(K37:K39) -> 0
J44: Approximate Rise (in.) | K44: 7.5
J45: Approximate Run (in.) | K45: 11
C47: Porch & Steps | G47: Set Waste Factor: | H47: 0.05 | I47: 0.3 | J47: filler material | M47: =IF(C49="","",VLOOKUP(C49,[1]!FlatworkPorchDB,7,FALSE)) -> 
B48: Product ID | C48: Description | D48: Width' A | E48: Height' B | F48: Length' C | G48: SF | H48: LF Steps | I48: CY | J48: $/CY | K48: SF Labor $/Unit | L48: $ to finish flat | M48: $ to finish steps | N48: Labor Sub-Total | O48: Concrete Sub-Total
C51: End | F51: SubTotals: | G51: =SUM(G49:G50) -> 0 | H51: =SUM(H49:H50) -> 0 | I51: =SUM(I49:I50) -> 0
N52: Labor Sub-Total: | O52: =SUM(N49:N51) -> 0
N53: Material Sub-Total: | O53: =SUM(O49:O51) -> 0
N54: Sales Tax: | O54: =IF(M55=FALSE,"",O53*TaxRate) -> 0
M55: TRUE | N55: Total Cost: | O55: =SUM(O52:O54) -> 0

Sheet MiscSteel
G2: Misc. Steel Detail
C5: Choose Estimating Method | D5: 1 | G5: Total Costs:
E6: Enter Amount: | G6: =IF(D5=1,F6,F7) -> 0
F7: =G18 -> 0
C10: Miscellaneous Steel | G10: Supplier 1 | I10: FALSE
B11: Product ID | C11: Description | D11: QTY | E11: Unit | F11: $/Unit | G11: Sub-Total $ | H11: Labor Rate | I11: Total Labor
L12: FALSE
C14: End | H14: Labor: | I14: =SUM(I12:I13) -> 0
F15: Labor Sub-Total: | G15: =SUMIF(C12:C14,"Labor*",G12:G14)+I14 -> 0
F16: Material Sub-Total: | G16: =SUM(G12:G14)-SUMIF(C12:C14,"Labor*",G12:G14) -> 0
F17: Sales Tax: | G17: =IF(E18=FALSE,"",G16*TaxRate) -> 0
E18: TRUE | F18: Total Cost: | G18: =SUM(G15:G17) -> 0

Sheet Damproofing
G2: Damproofing Detail
C5: Choose Estimating Method | D5: 1 | G5: Total Costs:
E6: Enter Amount: | G6: =IF(D5=1,F6,F7) -> 0
F7: =G22 -> 0
C9: Pease Provide the Following:
C10: Foundation Perimeter: | E10: LF
C11: Height of Damproofing: | E11: LF
C12: Height of Gravel Backfill: | E12: LF
L13: FALSE
C14: Damproofing | G14: Supplier 1 | I14: FALSE
B15: Product ID | C15: Description | D15: QTY | E15: Unit | F15: $/Unit | G15: Sub-Total $ | H15: Labor Rate | I15: Total Labor
C18: End | H18: Labor: | I18: =SUM(I16:I17) -> 0
F19: Labor Sub-Total: | G19: =SUMIF(C16:C18,"Labor*",G16:G18)+I18 -> 0
F20: Material Sub-Total: | G20: =SUM(G16:G18)-SUMIF(C16:C18,"Labor*",G16:G18) -> 0
F21: Sales Tax: | G21: =IF(E22=FALSE,"",G20*TaxRate) -> 0
E22: TRUE | F22: Total Cost: | G22: =SUM(G19:G21) -> 0

Sheet UtilityLaterals
G2: Utility Laterals Detail
C5: Choose Estimating Method | D5: 1 | G5: Total Costs:
E6: Enter Amount: | G6: =IF(D5=1,F6,F7) -> 0
F7: =G21 -> 0
C9: Enter Front Setback | E9: LF
C10: Enter Water Line Size | D10: 1"
C13: Utility Laterals | G13: Sub 1 | I13: FALSE | L13: FALSE
B14: Product ID | C14: Description | D14: QTY | E14: Unit | F14: $/Unit | G14: Sub-Total $ | H14: Labor Rate | I14: Total Labor
J15: =IF($I$15="","",IF($D$15="","",$D$15*$I$15)) -> 
J16: =IF($I$16="","",IF($D$16="","",$D$16*$I$16)) -> 
C17: End | H17: Labor: | I17: =SUM(I15:I16) -> 0
F18: Labor Sub-Total: | G18: =SUMIF(C15:C17,"Labor*",G15:G17)+I17 -> 0
F19: Material Sub-Total: | G19: =SUM(G15:G17)-SUMIF(C15:C17,"Labor*",G15:G17) -> 0
F20: Sales Tax: | G20: =IF(E21=FALSE,"",G19*TaxRate) -> 0
E21: TRUE | F21: Total Cost: | G21: =SUM(G18:G20) -> 0

Sheet SepticSystem
G2: Septic System
C5: Choose Estimating Method | D5: 1 | G5: Total Costs:
E6: Enter Amount: | G6: =IF(D5=1,F6,F7) -> 0
F7: =G21 -> 0
E10: Septic Tank $ Includes 240' of Trench Lines
C11: Septic System | J11: FALSE
C12: Enter # of Bedrooms: | E12: =IF(D12="","",VLOOKUP(D12,[1]!SepticDBRoom,2,FALSE)) ->  | G12: =IF(D12="",0,VLOOKUP(D12,[1]!SepticDBRoom,5,FALSE)) -> 0
B14: Product ID | C14: Description | D14: Qty | E14: Unit | F14: $/Unit | G14: SubTotal $
C17: End
F18: Labor Sub-Total: | G18: =SUMIF(C15:C17,"Labor*",G15:G17) -> 0
F19: Material Sub-Total: | G19: =SUM(G15:G17)-G18 -> 0
F20: Sales Tax: | G20: =IF(E21=FALSE,"",G19*TaxRate) -> 0
E21: TRUE | F21: Total Cost: | G21: =SUM(G18:G20,G12)+IF(SepticChargeTax=TRUE,G12*TaxRate,0) -> 0

Sheet PotableWaterWell
G2: Potable Water Well
C5: Choose Estimating Method | D5: 1 | G5: Total Costs:
E6: Enter Amount: | G6: =IF(D5=1,F6,F7) -> 0
D7: 2 | F7: =G18 -> 0
C10: Potable Water Well | G10: Supplier 1
B11: Product ID | C11: Description | D11: QTY | E11: Unit | F11: $/Unit | G11: Sub-Total $
C14: End
F15: Labor Sub-Total: | G15: =SUMIF(C12:C14,"Labor*",G12:G14) -> 0
F16: Material Sub-Total: | G16: =SUM(G12:G14)-SUMIF(C12:C14,"Labor*",G12:G14) -> 0
F17: Sales Tax: | G17: =IF(E18=FALSE,"",G16*TaxRate) -> 0
E18: TRUE | F18: Total Cost: | G18: =SUM(G15:G17) -> 0

Sheet FramingMaterial
I2: Framing Material Detail
C5: Choose Estimating Method | D5: 1 | H5: Total Costs:
F6: Enter Amount: | H6: =IF(D5=1,G6,IF(D5=2,G7,0)) -> 0
G7: =I17 -> 0
O9: FALSE
C10: Framing Material | I10: Supplier 1
B11: Product ID | C11: Description | D11: Est. QTY | E11: Unit | F11: Waste Factor | G11: QTY | H11: $/Unit | I11: Sub-Total $ | J11: Total BdFt | K11: $/MBF | L11: Total $
C14: End | K14: BF Total: | L14: =SUM(L12:L13) -> 0
H15: Material Sub-Total: | I15: =SUM(I12:I14)+L14 -> 0
F16: TRUE | H16: Sales Tax: | I16: =IF(F16=FALSE,"",I15*TaxRate) -> 0
H17: Total Cost: | I17: =SUM(I15:I16) -> 0

Sheet FramingLabor
G2: Framing Labor Detail
C5: Choose Estimating Method | D5: 1 | G5: Total Costs:
E6: Enter Amount: | G6: =IF(D5=1,F6,F7) -> 0
F7: =G16 -> 0
C11: Framing Labor | G11: Sub 1
B12: Product ID | C12: Description | D12: QTY | E12: Unit | F12: $/Unit | G12: Sub-Total $
C15: End
F16: Total Cost: | G16: =SUM(G13:G15) -> 0

Sheet EntryDoor
G2: Entry Door Detail
C5: Choose Estimating Method | D5: 1 | G5: Total Costs:
E6: Enter Amount: | G6: =IF(D5=1,F6,F7) -> 0
F7: =G18 -> 0
C10: Entry Door | G10: Supplier 1 | L10: FALSE
B11: Product ID | C11: Description | D11: QTY | E11: Unit | F11: $/Unit | G11: Sub-Total $ | H11: Labor Rate | I11: Total Labor
J12: =IF($I$12="","",IF($D$12="","",$D$12*$I$12)) ->  | L12: FALSE
J13: =IF($I$13="","",IF($D$13="","",$D$13*$I$13)) -> 
C14: End | H14: Labor: | I14: =SUM(I12:I13) -> 0
F15: Labor Sub-Total: | G15: =SUMIF(C12:C14,"Labor*",G12:G15)+I14 -> 0
F16: Material Sub-Total: | G16: =SUM(G12:G14)-SUMIF(C12:C14,"Labor*",G12:G14) -> 0
F17: Sales Tax: | G17: =IF(E18=FALSE,"",G16*TaxRate) -> 0
E18: TRUE | F18: Total Cost: | G18: =SUM(G15:G17) -> 0

Sheet GarageDoor
G2: Garage Door Detail
C5: Choose Estimating Method | D5: 1 | G5: Total Costs:
E6: Enter Amount: | G6: =IF(D5=1,F6,F7) -> 0
F7: =G18 -> 0
C10: Garage Door | G10: Supplier 2
B11: Product ID | C11: Description | D11: QTY | E11: Unit | F11: $/Unit | G11: Sub-Total $
C14: End
F15: Labor Sub-Total: | G15: =SUMIF(C11:C14,"Labor*",G11:G15) -> 0
F16: Material Sub-Total: | G16: =SUM(G11:G14)-G15 -> 0
E17: TRUE | F17: Sales Tax: | G17: =IF(E17=FALSE,"",G16*TaxRate) -> 0
F18: Total Cost: | G18: =SUM(G15:G17) -> 0

Sheet Windows
I2: Windows Detail
C5: Choose Estimating Method | D5: 1 | I5: Total Costs:
G6: Enter Amount: | I6: =IF(D5=1,H6,H7) -> 0
H7: =I19 -> 0
C11: Windows | I11: Supplier 1 | N11: FALSE
B12: Product ID | C12: Description | D12: QTY | E12: Unit | F12: SF | G12: Width | H12: $/Unit | I12: Sub-Total $ | J12: Labor Rate | K12: Total Labor
N13: FALSE
C15: End | F15: =SUM(F13:F14) -> 0 | G15: =SUM(G13:G14) -> 0 | J15: Labor: | K15: =SUM(K13:K14) -> 0
C16: Total Number of Windows: | D16: =SUMIF(E13:E15,"EA",D13:D15)-SUMIF(C13:C14,"Labor - EA",D13:D15) -> 0 | H16: Labor Sub-Total: | I16: =SUMIF(C13:C15,"Labor*",I13:I15)+K15 -> 0
H17: Material Sub-Total: | I17: =SUM(I13:I15)-SUMIF(C13:C15,"Labor*",I13:I15) -> 0
H18: Sales Tax: | I18: =IF(G19=FALSE,"",I17*TaxRate) -> 0
G19: TRUE | H19: Total Cost: | I19: =SUM(I16:I18) -> 0

Sheet Plumbing
G2: Plumbing Detail
C5: Choose Estimating Method | D5: 1 | G5: Total Costs:
E6: Enter Amount: | G6: =IF(D5=1,F6,IF(D5=2,F7,0)) -> 0
F7: =G19 -> 0
C11: Plumbing | G11: Supplier 1 | K11: FALSE
B12: Product ID | C12: Description | D12: QTY | E12: Unit | F12: $/Unit | G12: Sub-Total $ | H12: Labor Rate | I12: Total Labor | K12: FALSE
C15: End | H15: Labor: | I15: =SUM(I13:I14) -> 0
F16: Labor Sub-Total: | G16: =SUMIF(C13:C15,"Labor*",G13:G15)+I15 -> 0
F17: Material Sub-Total: | G17: =SUM(G13:G15)-SUMIF(C13:C15,"Labor*",G13:G15) -> 0
D18: TRUE | F18: Sales Tax: | G18: =IF(D18=FALSE,"",G17*TaxRate) -> 0
F19: Total Cost: | G19: =SUM(G16:G18) -> 0

Sheet Heating
G2: Heating Detail
C5: Choose Estimating Method | D5: 1 | G5: Total Costs:
E6: Enter Amount: | G6: =IF(D5=1,F6,IF(D5=2,F7,0)) -> 0
F7: =G18 -> 0
C10: Heating | G10: Supplier 1
B11: Product ID | C11: Description | D11: QTY | E11: Unit | F11: $/Unit | G11: Sub-Total $
C14: End
F15: Labor Sub-Total: | G15: =SUMIF(C12:C14,"Labor*",G12:G14) -> 0
F16: Material Sub-Total: | G16: =SUM(G12:G14)-SUMIF(C12:C14,"Labor*",G12:G14) -> 0
E17: TRUE | F17: Sales Tax: | G17: =IF(E17=FALSE,"",G16*TaxRate) -> 0
F18: Total Cost: | G18: =SUM(G15:G17) -> 0

Sheet AirConditioning
G2: Air Conditioning Detail
C5: Choose Estimating Method | D5: 1 | G5: Total Costs:
E6: Enter Amount: | G6: =IF(D5=1,F6,IF(D5=2,F7,0)) -> 0
F7: =G19 -> 0
C11: Air Conditioning | G11: Supplier 1
B12: Product ID | C12: Description | D12: QTY | E12: Unit | F12: $/Unit | G12: Sub-Total $
C15: End
F16: Labor Sub-Total: | G16: =SUMIF(C13:C15,"Labor*",G13:G15) -> 0
F17: Material Sub-Total: | G17: =SUM(G13:G15)-SUMIF(C13:C15,"Labor*",G13:G15) -> 0
E18: TRUE | F18: Sales Tax: | G18: =IF(E18=FALSE,"",G17*TaxRate) -> 0
F19: Total Cost: | G19: =SUM(G16:G18) -> 0

Sheet Electrical
G2: Electrical Detail
C5: Choose Estimating Method | D5: 1 | G5: Total Costs:
E6: Enter Amount: | G6: =IF(D5=1,F6,IF(D5=2,F7,0)) -> 0
F7: =G19 -> 0
C11: Electrical | G11: Supplier 1
B12: Product ID | C12: Description | D12: Qty | E12: Unit | F12: $/Unit | G12: Sub-Total $ | H12: Labor Rate | I12: Total Labor | L12: FALSE
C15: End | H15: Labor: | I15: =SUM(I13:I14) -> 0 | L15: FALSE
F16: Labor Sub-Total: | G16: =SUMIF(C13:C15,"Labor*",G13:G15)+I15 -> 0
F17: Material Sub-Total: | G17: =SUM(G13:G15)-SUMIF(C13:C15,"Labor*",G13:G15) -> 0
E18: TRUE | F18: Sales Tax: | G18: =IF(E18=FALSE,0,G17*TaxRate) -> 0
F19: Total Cost: | G19: =SUM(G16:G18) -> 0

Sheet LightFixtures
G2: Light Fixture Allowance Detail
C5: Choose Estimating Method | D5: 1 | G5: Total Costs:
E6: Enter Amount: | G6: =IF(D5=1,F6,IF(D5=2,F7,0)) -> 0
F7: =G17 -> 0
C11: Light Fixture | G11: Supplier 1
B12: Product ID | C12: Description | D12: QTY | E12: Unit | F12: $/Unit | G12: Sub-Total$
C15: End
F16: Sales Tax: | G16: =IF($E$17=FALSE,0,SUM($G$13:$G$15)*TaxRate) -> 0
E17: TRUE | F17: Total Cost: | G17: =SUM($G$13:$G$16) -> 0

Sheet Roofing
G2: Roofing Detail
C5: Choose Estimating Method | D5: 2 | G5: Total Costs:
G6: =IF(D5=1,F6,IF(D5=2,F7,0)) -> 4224.193125
F7: =G39+G61 -> 4224.193125
D10: Slope 1 | E10: Slope 2 | F10: Slope 3 | G10: Total
C11: Enter Plan SF of Roof Here: | D11: 2870 | G11: =SUM(D11:F11) -> 2870
C12: Enter Rise / 12" Run: | D12: 6 | E12: 6 | F12: 6
C13: Slope Factor: | D13: =SQRT(RoofSlope^2+144)/12 -> 1.118033989 | E13: =SQRT(RoofSlope2^2+144)/12 -> 1.118033989 | F13: =SQRT(RoofSlope3^2+144)/12 -> 1.118033989
C14: Waste Factor: | D14: 0.05 | E14: 0.05 | F14: 0.05
C15: Additional Squares: | G15: =SUM(D15:F15) -> 0
C16: Squares: | D16: =ROUNDUP(D11*D13*(1+D14)*3/100,0)/3+D15 -> 34 | E16: =ROUNDUP(E11*E13*(1+E14)*3/100,0)/3+E15 -> 0 | F16: =ROUNDUP(F11*F13*(1+F14)*3/100,0)/3+F15 -> 0 | G16: =SUM(D16:F16) -> 34
F18: Starter,Hip,Ridge Squares | G18: =IF(D58=0,ROUNDUP((RoofingStarterStrip/240+(RoofHip+RoofRidge)/100)*3,0)/3,ROUNDUP(D58*3,0)/3) -> 3
F19: Total Squares | G19: =SUM(G16:G18) -> 37
C20: Enter LF of Fascia: | D20: 280
C21: Enter LF Starter Strip: | D21: 140
C22: Enter LF of Ridge: | D22: 82
D24: Slope 1 | E24: Slope 2 | F24: Slope 3
C25: Enter Total of Hip Dimensions A | D25: 44
C26: Hip Factor | D26: =SQRT(RoofSlope^2+288)/12 -> 1.5 | E26: =SQRT(RoofSlope2^2+288)/12 -> 1.5 | F26: =SQRT(RoofSlope3^2+288)/12 -> 1.5
C27: Waste Factor | D27: 0.05 | E27: 0.05 | F27: 0.05
C28: Total LF | D28: =ROUNDUP(D25*D26*(1+D27),0) -> 70 | E28: =ROUNDUP(E25*E26*(1+E27),0) -> 0 | F28: =ROUNDUP(F25*F26*(1+F27),0) -> 0 | G28: =SUM(D28:F28) -> 70
C31: Detail Estimate
M32: TRUE
C33: Sub-Bid Roofing - Cost Per Square
C34: Description | D34: QTY | E34: Unit | F34: $/Unit | G34: Sub-Total $ | J34: Slope
B35: 65 | D35: =RoofSlopeSq -> 34 | E35: Sq | F35: =IF(RoofSlopeMat="",0,VLOOKUP(RoofSlopeMat,IF(RoofSubBidChoice=FALSE,[1]!RoofLabMatDB,[1]!RoofLaborDB),MATCH(RoofSlope,[1]!RoofSlopeDB), FALSE)) -> 0 | G35: =IF(C35="",0,IF(ISERROR(F35),0,D35*F35)) -> 0 | J35: =RoofSlope & "/12" -> 6/12
B36: 38 | C36: =IF(RoofSlopeMat="","",RoofSlopeMat) ->  | D36: =RoofSlopeSq2 -> 0 | E36: Sq | F36: =IF(RoofSlopeMat="",0,VLOOKUP(RoofSlopeMat,IF(RoofSubBidChoice=FALSE,[1]!RoofLabMatDB,[1]!RoofLaborDB),MATCH(RoofSlope2,[1]!RoofSlopeDB), FALSE)) -> 0 | G36: =IF(C36="",0,IF(ISERROR(F36),0,D36*F36)) -> 0 | J36: =RoofSlope2 & "/12" -> 6/12
B37: 40 | C37: =IF(RoofSlopeMat="","",RoofSlopeMat) ->  | D37: =RoofSlopeSq3 -> 0 | E37: Sq | F37: =IF(RoofSlopeMat="",0,VLOOKUP(RoofSlopeMat,IF(RoofSubBidChoice=FALSE,[1]!RoofLabMatDB,[1]!RoofLaborDB),MATCH(RoofSlope3,[1]!RoofSlopeDB), FALSE)) -> 0 | G37: =IF(C37="",0,IF(ISERROR(F37),0,D37*F37)) -> 0 | J37: =RoofSlope3 & "/12" -> 6/12
B38: 40 | C38: Starter, Hip, and Ridge | D38: =G18 -> 3 | E38: Sq | F38: =IF(RoofSlopeMat="",0,VLOOKUP(RoofSlopeMat,IF(RoofSubBidChoice=FALSE,[1]!RoofLabMatDB,[1]!RoofLaborDB),MATCH(D39,[1]!RoofSlopeDB), FALSE)) -> 0 | G38: =IF(C38="",0,IF(ISERROR(F38),0,D38*F38)) -> 0 | J38: =D39&"/12" -> 7/12
C39: Select Starter, Hip, and Ridge Slope | D39: 7 | F39: Total Cost: | G39: =SUM(G38,G37,G36,G35) -> 0
C42: Roofing | G42: Supplier 1 | M42: FALSE | N42: FALSE
B43: Product ID | C43: Description | D43: QTY | E43: Unit | F43: $/Unit | G43: Sub-Total $ | H43: Labor Rate | I43: Total Labor
B44: =GetProductID($C$44,[1]!RoofDB,6+MATCH(RoofSub,[1]!RoofSubs,1)) ->  | C44: Asphalt Shingles - 30 yr. 3 Tab | D44: =RoofTotalSquare -> 34 | E44: =IF($C$44="","",VLOOKUP($C$44, [1]!RoofDB, 3,FALSE)) -> Sq | F44: =IF($C$44="","",VLOOKUP($C$44, [1]!RoofDB, MATCH(RoofSub,[1]!RoofSubs,FALSE)+6,FALSE)) -> 55 | G44: =IF($C$44="","",$D$44 * $F$44) -> 1870 | H44: =IF(RoofingAddLabor=TRUE,DOLLAR(VLOOKUP($C$44, [1]!RoofDB, 5,FALSE)),IF(RoofingManHrs = TRUE, VLOOKUP($C$44, [1]!RoofDB,6,FALSE),0)) -> 0 | I44: =IF(RoofingAddLabor=TRUE,$D$44 * $H$44,IF(RoofingManHrs = TRUE, LaborPerHr * $H$44 * $D$44,0)) -> 0
B45: =GetProductID($C$45,[1]!RoofDB,6+MATCH(RoofSub,[1]!RoofSubs,1)) ->  | C45: Deliver & Stock shingles | D45: =ROUND(RoofTotalPlusSquare,2) -> 37 | E45: =IF($C$45="","",VLOOKUP($C$45, [1]!RoofDB, 3,FALSE)) -> Sq | F45: =IF($C$45="","",VLOOKUP($C$45, [1]!RoofDB, MATCH(RoofSub,[1]!RoofSubs,FALSE)+6,FALSE)) -> 3.5 | G45: =IF($C$45="","",$D$45 * $F$45) -> 129.5 | H45: =IF(RoofingAddLabor=TRUE,DOLLAR(VLOOKUP($C$45, [1]!RoofDB, 5,FALSE)),IF(RoofingManHrs = TRUE, VLOOKUP($C$45, [1]!RoofDB,6,FALSE),0)) -> 0 | I45: =IF(RoofingAddLabor=TRUE,$D$45 * $H$45,IF(RoofingManHrs = TRUE, LaborPerHr * $H$45 * $D$45,0)) -> 0
B46: =GetProductID($C$46,[1]!RoofDB,6+MATCH(RoofSub,[1]!RoofSubs,1)) ->  | C46: Drip Edge-metal | D46: =ROUNDUP(Fascia/9.5,0) -> 30 | E46: =IF($C$46="","",VLOOKUP($C$46, [1]!RoofDB, 3,FALSE)) -> Ea | F46: =IF($C$46="","",VLOOKUP($C$46, [1]!RoofDB, MATCH(RoofSub,[1]!RoofSubs,FALSE)+6,FALSE)) -> 3.9 | G46: =IF($C$46="","",$D$46 * $F$46) -> 117 | H46: =IF(RoofingAddLabor=TRUE,DOLLAR(VLOOKUP($C$46, [1]!RoofDB, 5,FALSE)),IF(RoofingManHrs = TRUE, VLOOKUP($C$46, [1]!RoofDB,6,FALSE),0)) -> 0 | I46: =IF(RoofingAddLabor=TRUE,$D$46 * $H$46,IF(RoofingManHrs = TRUE, LaborPerHr * $H$46 * $D$46,0)) -> 0
B47: =GetProductID($C$47,[1]!RoofDB,6+MATCH(RoofSub,[1]!RoofSubs,1)) ->  | C47: 30# Tar Paper (Asphalt-impregnated Felt) | D47: =ROUNDUP(RoofTotalSquare/2,0) -> 17 | E47: =IF($C$47="","",VLOOKUP($C$47, [1]!RoofDB, 3,FALSE)) -> 2-Sq Roll | F47: =IF($C$47="","",VLOOKUP($C$47, [1]!RoofDB, MATCH(RoofSub,[1]!RoofSubs,FALSE)+6,FALSE)) -> 10.95 | G47: =IF($C$47="","",$D$47 * $F$47) -> 186.15 | H47: =IF(RoofingAddLabor=TRUE,DOLLAR(VLOOKUP($C$47, [1]!RoofDB, 5,FALSE)),IF(RoofingManHrs = TRUE, VLOOKUP($C$47, [1]!RoofDB,6,FALSE),0)) -> 0 | I47: =IF(RoofingAddLabor=TRUE,$D$47 * $H$47,IF(RoofingManHrs = TRUE, LaborPerHr * $H$47 * $D$47,0)) -> 0
B48: =GetProductID($C$48,[1]!RoofDB,6+MATCH(RoofSub,[1]!RoofSubs,1)) ->  | C48: Starter Strip | D48: =ROUNDUP(RoofingStarterStrip/240,0) -> 1 | E48: =IF($C$48="","",VLOOKUP($C$48, [1]!RoofDB, 3,FALSE)) -> Sq (T) | F48: =IF($C$48="","",VLOOKUP($C$48, [1]!RoofDB, MATCH(RoofSub,[1]!RoofSubs,FALSE)+6,FALSE)) -> 38 | G48: =IF($C$48="","",$D$48 * $F$48) -> 38 | H48: =IF(RoofingAddLabor=TRUE,DOLLAR(VLOOKUP($C$48, [1]!RoofDB, 5,FALSE)),IF(RoofingManHrs = TRUE, VLOOKUP($C$48, [1]!RoofDB,6,FALSE),0)) -> 0 | I48: =IF(RoofingAddLabor=TRUE,$D$48 * $H$48,IF(RoofingManHrs = TRUE, LaborPerHr * $H$48 * $D$48,0)) -> 0
B49: =GetProductID($C$49,[1]!RoofDB,6+MATCH(RoofSub,[1]!RoofSubs,1)) ->  | C49: Hip & Ridge Cap | D49: =ROUNDUP((RoofHip+RoofRidge)/100,0) -> 2 | E49: =IF($C$49="","",VLOOKUP($C$49, [1]!RoofDB, 3,FALSE)) -> Sq (T) | F49: =IF($C$49="","",VLOOKUP($C$49, [1]!RoofDB, MATCH(RoofSub,[1]!RoofSubs,FALSE)+6,FALSE)) -> 38 | G49: =IF($C$49="","",$D$49 * $F$49) -> 76 | H49: =IF(RoofingAddLabor=TRUE,DOLLAR(VLOOKUP($C$49, [1]!RoofDB, 5,FALSE)),IF(RoofingManHrs = TRUE, VLOOKUP($C$49, [1]!RoofDB,6,FALSE),0)) -> 0 | I49: =IF(RoofingAddLabor=TRUE,$D$49 * $H$49,IF(RoofingManHrs = TRUE, LaborPerHr * $H$49 * $D$49,0)) -> 0
B50: =GetProductID($C$50,[1]!RoofDB,6+MATCH(RoofSub,[1]!RoofSubs,1)) ->  | C50: Turtle-back Vents 10 x 14 (1 SF net area) | D50: 1 | E50: =IF($C$50="","",VLOOKUP($C$50, [1]!RoofDB, 3,FALSE)) -> Ea | F50: =IF($C$50="","",VLOOKUP($C$50, [1]!RoofDB, MATCH(RoofSub,[1]!RoofSubs,FALSE)+6,FALSE)) -> 15 | G50: =IF($C$50="","",$D$50 * $F$50) -> 15 | H50: =IF(RoofingAddLabor=TRUE,DOLLAR(VLOOKUP($C$50, [1]!RoofDB, 5,FALSE)),IF(RoofingManHrs = TRUE, VLOOKUP($C$50, [1]!RoofDB,6,FALSE),0)) -> 0 | I50: =IF(RoofingAddLabor=TRUE,$D$50 * $H$50,IF(RoofingManHrs = TRUE, LaborPerHr * $H$50 * $D$50,0)) -> 0
B51: =GetProductID($C$51,[1]!RoofDB,6+MATCH(RoofSub,[1]!RoofSubs,1)) ->  | C51: Step Flashing 3 x 4 x 7 (22' / Bndl.) | D51: 2 | E51: =IF($C$51="","",VLOOKUP($C$51, [1]!RoofDB, 3,FALSE)) -> Bndl of 50 | F51: =IF($C$51="","",VLOOKUP($C$51, [1]!RoofDB, MATCH(RoofSub,[1]!RoofSubs,FALSE)+6,FALSE)) -> 12.95 | G51: =IF($C$51="","",$D$51 * $F$51) -> 25.9 | H51: =IF(RoofingAddLabor=TRUE,DOLLAR(VLOOKUP($C$51, [1]!RoofDB, 5,FALSE)),IF(RoofingManHrs = TRUE, VLOOKUP($C$51, [1]!RoofDB,6,FALSE),0)) -> 0 | I51: =IF(RoofingAddLabor=TRUE,$D$51 * $H$51,IF(RoofingManHrs = TRUE, LaborPerHr * $H$51 * $D$51,0)) -> 0
B52: =GetProductID($C$52,[1]!RoofDB,6+MATCH(RoofSub,[1]!RoofSubs,1)) ->  | C52: L Metal 4" x 4" x 10' | D52: 3 | E52: =IF($C$52="","",VLOOKUP($C$52, [1]!RoofDB, 3,FALSE)) -> Ea | F52: =IF($C$52="","",VLOOKUP($C$52, [1]!RoofDB, MATCH(RoofSub,[1]!RoofSubs,FALSE)+6,FALSE)) -> 4.79 | G52: =IF($C$52="","",$D$52 * $F$52) -> 14.37 | H52: =IF(RoofingAddLabor=TRUE,DOLLAR(VLOOKUP($C$52, [1]!RoofDB, 5,FALSE)),IF(RoofingManHrs = TRUE, VLOOKUP($C$52, [1]!RoofDB,6,FALSE),0)) -> 0 | I52: =IF(RoofingAddLabor=TRUE,$D$52 * $H$52,IF(RoofingManHrs = TRUE, LaborPerHr * $H$52 * $D$52,0)) -> 0
B53: =GetProductID($C$53,[1]!RoofDB,6+MATCH(RoofSub,[1]!RoofSubs,1)) ->  | C53: Plastic Caps 1/2 lb./sq | D53: 1 | E53: =IF($C$53="","",VLOOKUP($C$53, [1]!RoofDB, 3,FALSE)) -> Pail | F53: =IF($C$53="","",VLOOKUP($C$53, [1]!RoofDB, MATCH(RoofSub,[1]!RoofSubs,FALSE)+6,FALSE)) -> 34.95 | G53: =IF($C$53="","",$D$53 * $F$53) -> 34.95 | H53: =IF(RoofingAddLabor=TRUE,DOLLAR(VLOOKUP($C$53, [1]!RoofDB, 5,FALSE)),IF(RoofingManHrs = TRUE, VLOOKUP($C$53, [1]!RoofDB,6,FALSE),0)) -> 0 | I53: =IF(RoofingAddLabor=TRUE,$D$53 * $H$53,IF(RoofingManHrs = TRUE, LaborPerHr * $H$53 * $D$53,0)) -> 0
B54: =GetProductID($C$54,[1]!RoofDB,6+MATCH(RoofSub,[1]!RoofSubs,1)) ->  | C54: Coil Roofing Nails 1" - 1-1/4" | D54: =ROUNDUP(RoofTotalSquare/22,0) -> 2 | E54: =IF($C$54="","",VLOOKUP($C$54, [1]!RoofDB, 3,FALSE)) -> Ea | F54: =IF($C$54="","",VLOOKUP($C$54, [1]!RoofDB, MATCH(RoofSub,[1]!RoofSubs,FALSE)+6,FALSE)) -> 37.95 | G54: =IF($C$54="","",$D$54 * $F$54) -> 75.9 | H54: =IF(RoofingAddLabor=TRUE,DOLLAR(VLOOKUP($C$54, [1]!RoofDB, 5,FALSE)),IF(RoofingManHrs = TRUE, VLOOKUP($C$54, [1]!RoofDB,6,FALSE),0)) -> 0 | I54: =IF(RoofingAddLabor=TRUE,$D$54 * $H$54,IF(RoofingManHrs = TRUE, LaborPerHr * $H$54 * $D$54,0)) -> 0
B55: =GetProductID($C$55,[1]!RoofDB,6+MATCH(RoofSub,[1]!RoofSubs,1)) ->  | C55: Labor /SQ | D55: =ROUND(RoofTotalPlusSquare,2) -> 37 | E55: =IF($C$55="","",VLOOKUP($C$55, [1]!RoofDB, 3,FALSE)) -> SQ | F55: =IF($C$55="","",VLOOKUP($C$55, [1]!RoofDB, MATCH(RoofSub,[1]!RoofSubs,FALSE)+6,FALSE)) -> 40 | G55: =IF($C$55="","",$D$55 * $F$55) -> 1480 | H55: =IF(RoofingAddLabor=TRUE,DOLLAR(VLOOKUP($C$55, [1]!RoofDB, 5,FALSE)),IF(RoofingManHrs = TRUE, VLOOKUP($C$55, [1]!RoofDB,6,FALSE),0)) -> 0 | I55: =IF(RoofingAddLabor=TRUE,$D$55 * $H$55,IF(RoofingManHrs = TRUE, LaborPerHr * $H$55 * $D$55,0)) -> 0
C57: End | H57: Labor: | I57: =SUM(I44:I56) -> 0
C58: Starter,Hip,Ridge Squares: | D58: =SUMIF(E44:E57,"Sq (T)*",D44:D57) -> 3 | F58: Labor Sub-Total: | G58: =SUMIF(C44:C57,"Labor*",G44:G57)+I57 -> 1480
F59: Material Sub-Total: | G59: =SUM(G44:G57)-SUMIF(C44:C57,"Labor*",G44:G57) -> 2582.77
F60: Sales Tax: | G60: =IF(E61=FALSE,"",G59*TaxRate) -> 161.423125
E61: TRUE | F61: Total Cost: | G61: =SUM(G58:G60) -> 4224.193125

Sheet Insulation
G2: Insulation Detail
C5: Choose Estimating Method | D5: 1 | G5: Total Costs:
E6: Enter Amount: | G6: =IF(D5=1,F6,IF(D5=2,F7,0)) -> 0
F7: =G18 -> 0
C10: Insulation | G10: Supplier 2
B11: Product ID | C11: Description | D11: QTY | E11: Unit | F11: $/Unit | G11: Sub-Total $
C14: End
F15: Labor Sub-Total: | G15: =SUMIF(C12:C14,"Labor*",G12:G14) -> 0
F16: Material Sub-Total: | G16: =SUM(G12:G14)-SUMIF(C12:C14,"Labor*",G12:G14) -> 0
F17: Sales Tax: | G17: =IF(E18=FALSE,"",G16*TaxRate) -> 0
E18: TRUE | F18: Total Cost: | G18: =SUM(G15:G17) -> 0

Sheet Drywall
H2: Drywall Detail
C5: Choose Estimating Method | D5: 1 | H5: Total Costs:
F6: Enter Amount: | H6: =IF(D5=1,G6,IF(D5=2,G7,0)) -> 0
G7: =H33+H22 -> 0
C9: Drywall Unit Factor:
C10: House Factor | D10: 3.8
C11: Basement Factor | D11: 3.27
C12: Garage Factor | D12: 2.8
C15: Detail Estimate
C17: SF + Extras | H17: Supplier 1
B18: Product ID | C18: Description | D18: QTY | E18: Unit | F18: Adjusted QTY | G18: $/Unit | H18: Sub-Total $
C21: End
G22: Total Dywall Cost (Labor & Materials): | H22: =SUM(H19:H21) -> 0
C25: Drywall | H25: Supplier 1 | M25: FALSE
B26: Product ID | C26: Description | D26: QTY | E26: Unit | F26: Coverage | G26: $/Unit | H26: Sub-Total $ | I26: Labor Rate | J26: Total Labor | M26: FALSE
C29: End | I29: Labor: | J29: =SUM(J27:J28) -> 0
G30: Labor Sub-Total: | H30: =SUMIF(C27:C29,"Labor*",H27:H29)+J29 -> 0
G31: Material Sub-Total: | H31: =SUM(H27:H29)-SUMIF(C27:C29,"Labor*",H27:H29) -> 0
G32: Sales Tax: | H32: =IF(F33=FALSE,"",H31*TaxRate) -> 0
F33: TRUE | G33: Total Cost: | H33: =SUM(H30:H32) -> 0

Sheet FinishCarpentry
I2: Finish Carpentry Detail
C5: Choose Estimating Method | F5: 1 | I5: Total Costs:
G6: Enter Amount: | I6: =IF(F5=1,H6,H7) -> 0
H7: =I17 -> 0
C9: Choose Material(s) to Estimate | D9: Go To: | H9: Optional Lump Sum: | I9: Sub-Total $
C10: FALSE | D10: Doors | I10: =IF(C10=FALSE,"",IF(OR(H10="",H10=0),FinishCarDoorTotal,H10)) -> 
C11: FALSE | D11: Moldings | I11: =IF(C11=FALSE,"",IF(OR(H11="",H11=0),FinishCarMoldingTotal,H11)) -> 
C12: FALSE | D12: Shelving | I12: =IF(C12=FALSE,"",IF(OR(H12="",H12=0),FinishCarShelvingTotal,H12)) -> 
C13: FALSE | D13: Stairs | I13: =IF(C13=FALSE,"",IF(OR(H13="",H13=0),FinishCarStairTotal,H13)) -> 
C14: FALSE | D14: Fasteners | I14: =IF(C14=FALSE,"",IF(OR(H14="",H14=0),FinishCarFastenerTotal,H14)) -> 
C15: FALSE | D15: Handrail | I15: =IF(C15=FALSE,"",IF(OR(H15="",H15=0),FinishCarHandrailTotal,H15)) -> 
C16: FALSE | D16: Labor | I16: =IF(C16=FALSE,"",IF(OR(H16="",H16=0),FinishCarLaborTotal,H16)) -> 
H17: Total Finish Carpentry Cost: | I17: =SUM(I10:I16) -> 0
C18: Detail Estimate
C20: Doors | F20: UP | I20: Supplier 1 | O20: FALSE
B21: Product ID | C21: Description | D21: Est. QTY | E21: Waste Factor | F21: Qty | G21: Unit | H21: $/Unit | I21: Sub-Total $ | J21: Labor Rate | K21: Total Labor | O21: FALSE
L22: =IF($K$22="","",IF($F$22="","",$F$22*$K$22)) -> 
C24: End | J24: Labor: | K24: =SUM(K22:K23) -> 0
H25: Labor Sub-Total: | I25: =SUMIF(C22:C24,"Labor*",I22:I24)+K24 -> 0
H26: Material Sub-Total: | I26: =SUM(I22:I24)-SUMIF(C22:C24,"Labor*",I22:I24) -> 0
H27: Sales Tax: | I27: =IF(G28=FALSE,"",I26*TaxRate) -> 0
G28: TRUE | H28: Total Cost: | I28: =SUM(I25:I27) -> 0
C30: Moldings | F30: UP | I30: Supplier 2 | O30: FALSE
B31: Product ID | C31: Description | D31: Est. QTY | E31: Waste Factor | F31: QTY | G31: Unit | H31: $/Unit | I31: Sub-Total $ | J31: Labor Rate | K31: Total Labor | O31: FALSE
L32: =IF($K$32="","",IF($F$32="","",$F$32*$K$32)) -> 
C34: End | J34: Labor: | K34: =SUM(K32:K33) -> 0
H35: Labor Sub-Total: | I35: =SUMIF(C32:C34,"Labor*",I32:I34)+K34 -> 0
H36: Material Sub-Total: | I36: =SUM(I32:I34)-SUMIF(C32:C34,"Labor*",I32:I34) -> 0
H37: Sales Tax: | I37: =IF(G38=FALSE,"",I36*TaxRate) -> 0
G38: TRUE | H38: Total Cost: | I38: =SUM(I35:I37) -> 0
C40: PB Shelving | F40: UP | I40: Supplier 1 | O40: FALSE
B41: Product ID | C41: Description | D41: Est. QTY | E41: Waste Factor | F41: QTY | G41: Unit | H41: $/Unit | I41: Sub-Total $ | J41: Labor Rate | K41: Total Labor | L41: LF Shelving | O41: FALSE
L42: =IF($C$42="","",VLOOKUP($C$42, [1]!FinishCarShelvingDB, 4,FALSE)*$D$42) -> 
L43: =IF($C$43="","",VLOOKUP($C$43, [1]!FinishCarShelvingDB, 5,FALSE)*$D$43) -> 
C44: End | J44: Labor: | K44: =SUM(K42:K43) -> 0 | L44: =SUM(L42:L43) -> 0
C45: Total LF of Shelving: | F45: =ShelvingTotalLF -> 0 | H45: Labor Sub-Total: | I45: =SUMIF(C42:C44,"Labor*",I42:I44)+K44 -> 0
H46: Material Sub-Total: | I46: =SUM(I42:I44)-SUMIF(C42:C44,"Labor*",I42:I44) -> 0
H47: Sales Tax: | I47: =IF(G48=FALSE,"",I46*TaxRate) -> 0
G48: TRUE | H48: Total Cost: | I48: =SUM(I45:I47) -> 0
C50: Stairs | F50: UP | I50: Supplier 1 | O50: FALSE
B51: Product ID | C51: Description | D51: Est. QTY | E51: Waste Factor | F51: QTY | G51: Unit | H51: $/Unit | I51: Sub-Total $ | J51: Labor Rate | K51: Total Labor | O51: FALSE
C54: End | J54: Labor: | K54: =SUM(K52:K53) -> 0
H55: Labor Sub-Total: | I55: =SUMIF(C52:C54,"Labor*",I52:I54)+K54 -> 0
H56: Material Sub-Total: | I56: =SUM(I52:I54)-SUMIF(C52:C54,"Labor*",I52:I54) -> 0
H57: Sales Tax: | I57: =IF(G58=FALSE,"",I56*TaxRate) -> 0
G58: TRUE | H58: Total Cost: | I58: =SUM(I55:I57) -> 0
C60: Fasteners | F60: UP | I60: Supplier 1 | O60: FALSE
B61: Product ID | C61: Description | D61: Est. QTY | E61: Waste Factor | F61: QTY | G61: Unit | H61: $/Unit | I61: Sub-Total $ | J61: Labor Rate | K61: Total Labor | O61: FALSE
C64: End | J64: Labor: | K64: =SUM(K62:K63) -> 0
H65: Labor Sub-Total: | I65: =SUMIF(C62:C64,"Labor*",I62:I64)+K64 -> 0
H66: Material Sub-Total: | I66: =SUM(I62:I64)-SUMIF(C62:C64,"Labor*",I62:I64) -> 0
H67: Sales Tax: | I67: =IF(G68=FALSE,"",I66*TaxRate) -> 0
G68: TRUE | H68: Total Cost: | I68: =SUM(I65:I67) -> 0
C70: Handrail | F70: UP | I70: Oak | O70: FALSE
B71: Product ID | C71: Description | D71: Est. QTY | E71: Waste Factor | F71: QTY | G71: Unit | H71: $/Unit | I71: Sub-Total $ | J71: Labor Rate | K71: Total Labor | O71: FALSE
C74: End | J74: Labor: | K74: =SUM(K72:K73) -> 0
H75: Labor Sub-Total: | I75: =SUMIF(C72:C74,"Labor*",I72:I74)+K74 -> 0
H76: Material Sub-Total: | I76: =SUM(I72:I74)-SUMIF(C72:C74,"Labor*",I72:I74) -> 0
H77: Sales Tax: | I77: =IF(G78=FALSE,"",I76*TaxRate) -> 
G78: FALSE | H78: Total Cost: | I78: =SUM(I75:I77) -> 0
C80: Labor | F80: UP | I80: Supplier 1
B81: Product ID | C81: Description | D81: Est. QTY | E81: Waste Factor | F81: QTY | G81: Unit | H81: $/Unit | I81: Sub-Total $
C84: End
H85: Labor Sub-Total: | I85: =SUM(I82:I84) -> 0
H86: Sales Tax: | I86: =IF(G87=FALSE,"",I85*TaxRate) -> 0
G87: TRUE | H87: Total Cost: | I87: =SUM(I85:I86) -> 0
H91: Total Cost for Finish Carpentry Material and Labor: | I91: =FinishCarHandrailTotal+FinishCarFastenerTotal+FinishCarStairTotal+FinishCarShelvingTotal+FinishCarMoldingTotal+FinishCarDoorTotal+FinishCarLaborTotal -> 0

Sheet FinishCarpentryLabor
G2: Finish Carpentry Labor Detail
C5: Choose Estimating Method | D5: 1 | G5: Total Costs:
E6: Enter Amount: | G6: =IF(D5=1,F6,F7) -> 0
F7: =G18 -> 0
C10: Finish Carpentry | G10: Sub 1
B11: Product ID | C11: Description | D11: QTY | E11: Unit | F11: $/Unit | G11: Sub-Total$
C14: End
F15: Labor Sub-Total: | G15: =SUMIF($C$12:$C$14,"Labor*",$G$12:$G$14) -> 0
F16: Material Sub-Total: | G16: =SUM($G$12:$G$14)-$G$15 -> 0
F17: Sales Tax: | G17: =IF($E$18=FALSE,0,SUM($G$15:$G$16)*TaxRate) -> 0
E18: TRUE | F18: Total Cost: | G18: =SUM($G$15:$G$17) -> 0

Sheet Painting
H2: Painting Detail
C5: Choose Material(s) to Estimate | G5: Lump Sum: | H5: Sub-Total $
A6: TRUE | H6: =IF(A6=FALSE,0,IF(OR(G6="",G6=0),H18+G26,G6)) -> 0
A7: TRUE | H7: =IF(A7=FALSE,0,IF(OR(G7="",G7=0),H37+G45,G7)) -> 0
H8: =SUM(H6:H7) -> 0
C10: Detail Estimate
C12: Interior Painting - SF Price | H12: Sub1
B13: Product ID | C13: Choose Finished Areas | D13: Paint job | E13: QTY | F13: Unit | G13: $/Unit | H13: Sub-Total $
G17: Sales Tax: | H17: =IF(F18=FALSE,0,SUM(H14:H16)*TaxRate) -> 0
F18: TRUE | G18: Total Cost: | H18: =SUM(H14:H17) -> 0
C20: Interior Misc. | G20: Sub1
B21: Product ID | C21: Description | D21: Qty | E21: Unit | F21: $/Unit | G21: Sub-Total $
C24: End
F25: Sales Tax: | G25: =IF(D26=FALSE,0,SUM(G22:G24)*TaxRate) -> 0
D26: TRUE | F26: Total Cost: | G26: =SUM(G22:G25) -> 0
C31: Exterior Painting - SF Price | H31: Sub1
B32: Product ID | C32: Choose Finished Areas | D32: Paint job | E32: QTY | F32: Unit | G32: $/Unit | H32: Sub-Total $
G36: Sales Tax: | H36: =IF(F37=FALSE,0,SUM(H33:H35)*TaxRate) -> 0
F37: TRUE | G37: Total Cost: | H37: =SUM(H33:H35)+H36 -> 0
C39: Exterior Misc | G39: Sub1
B40: Product ID | C40: Description | D40: Qty | E40: Unit | F40: $/Unit | G40: Sub-Total $
C43: End
F44: Sales Tax: | G44: =IF(D45=FALSE,0,SUM(G41:G43)*TaxRate) -> 0
D45: TRUE | F45: Total Cost: | G45: =SUM(G41:G43)+G44 -> 0

Sheet TileMarble
G2: Tile and Marble Detail
C5: Choose Estimating Method | D5: 1 | G5: Total Costs:
E6: Enter Amount: | G6: =IF(D5=1,F6,F7) -> 0
F7: =G18 -> 0
C10: Tile and Marble | G10: Supplier 3 | L10: FALSE
B11: Product ID | C11: Description | D11: QTY | E11: Unit | F11: $/Unit | G11: Sub-Total $ | H11: Labor Rate | I11: Total Labor | K11: FALSE
C14: End | H14: Labor: | I14: =SUM(I12:I13) -> 0
F15: Labor Sub-Total: | G15: =SUMIF(C12:C14,"Labor*",G12:G14)+I14 -> 0
F16: Material Sub-Total: | G16: =SUM(G12:G14)-SUMIF(C12:C14,"Labor*",G12:G14) -> 0
F17: Sales Tax: | G17: =IF(E18=FALSE,"",G16*TaxRate) -> 0
E18: TRUE | F18: Total Cost: | G18: =SUM(G15:G17) -> 0

Sheet Fireplace
G2: Fireplace Detail
C4: Choose Estimating Method | D4: 1 | G4: Total Costs:
E5: Enter Amount: | G5: =IF(D4=1,F5,F6) -> 0
F6: =G18 -> 0
C10: Fireplace | G10: Supplier 3
B11: Product ID | C11: Description | D11: QTY | E11: Unit | F11: $/Unit | G11: Sub-Total $
C14: End
F15: Labor Sub-Total: | G15: =SUMIF(C12:C14,"Labor*",G12:G14)+I14 -> 0
F16: Material Sub-Total: | G16: =SUM(G12:G14)-SUMIF(C12:C14,"Labor*",G12:G14) -> 0
F17: Sales Tax: | G17: =IF(E18=FALSE,0,G16*TaxRate) -> 0
E18: TRUE | F18: Total Cost: | G18: =SUM(G15:G17) -> 0

Sheet FloorCoverings
I2: Floor Covering Detail
C5: Choose Allowance Method: | D5: 1 | G5: 1 | I5: Total Costs:
G6: Enter Amount: | I6: =IF(G5=1,H6,IF(G5=2,H7,0)) -> 0
H7: =I19 -> 0
C11: Floor Covering | I11: Sub 2 | N11: FALSE
B12: Product ID | C12: Description | D12: Est. QTY | E12: Unit | F12: Waste Factor | G12: QTY | H12: $/Unit | I12: Sub-Total $ | J12: Labor Rate | K12: Total Labor | N12: FALSE
C15: End | J15: Labor: | K15: =SUM(K13:K14) -> 0
F16: TRUE | H16: Labor Sub-Total: | I16: =SUMIF(C13:C15,"Labor*",I13:I15)+K15 -> 0
H17: Material Sub-Total: | I17: =SUM(I13:I15)-SUMIF(C13:C15,"Labor*",I13:I15) -> 0
G18: TRUE | H18: Sales Tax: | I18: =IF(G18=FALSE,"",I17*TaxRate) -> 0
H19: Total Cost: | I19: =SUM(I16:I18) -> 0
H21: Allowance / SF for Finished Area: | I21: =IF(ISERROR(I19/TotalFinishedSF),0,I19/TotalFinishedSF) -> 0
H22: Allowance / SY for Finished Area: | I22: =IF(ISERROR(I19/TotalFinishedSF),0,I19/TotalFinishedSF*9) -> 0

Sheet Cabinets
G2: Cabinet Detail
C5: Choose Estimating Method | D5: 1 | G5: Total Costs:
E6: Enter Amount: | G6: =IF(D5=1,F6,IF(D5=2,F7,0)) -> 0
F7: =G19 -> 0
C11: Cabinet | G11: Sub1 | L11: FALSE
B12: Product ID | C12: Description | D12: QTY | E12: Unit | F12: $/Unit | G12: Sub-Total $ | H12: Labor Rate | I12: Total Labor | L12: FALSE
J13: =IF($C$13="","",OFFSET($C$13,0,1) * OFFSET($C$13,0,6)) -> 
C15: End | H15: Labor: | I15: =SUM(I13:I14) -> 0
F16: Labor Sub-Total: | G16: =SUMIF(C13:C15,"Labor*",G13:G15)+I15 -> 0
F17: Material Sub-Total: | G17: =SUM(G13:G15)-SUMIF(C13:C15,"Labor*",G13:G15) -> 0
F18: Sales Tax: | G18: =IF(E19=FALSE,"",G17*TaxRate) -> 0
E19: TRUE | F19: Total Cost: | G19: =SUM(G16:G18) -> 0

Sheet Countertops
G2: Countertop Detail
C5: Choose Estimating Method | D5: 1 | G5: Total Costs:
E6: Enter Amount: | G6: =IF(D5=1,F6,IF(D5=2,F7,0)) -> 0
F7: =G19 -> 0
C11: Countertop | G11: Supplier 3 | L11: FALSE
B12: Product ID | C12: Description | D12: QTY | E12: Unit | F12: $/Unit | G12: Sub-Total $ | H12: Labor Rate | I12: Total Labor | L12: FALSE
C15: End | H15: Labor: | I15: =SUM(I13:I14) -> 0
F16: Labor Sub-Total: | G16: =SUMIF(C13:C15,"Labor*",G13:G15)+I15 -> 0
F17: Material Sub-Total: | G17: =SUM(G13:G15)-SUMIF(C13:C15,"Labor*",G13:G15) -> 0
F18: Sales Tax: | G18: =IF(E19=FALSE,"",G17*TaxRate) -> 0
E19: TRUE | F19: Total Cost: | G19: =SUM(G16:G18) -> 0

Sheet Appliances
G2: Appliance Detail
C5: Choose Estimating Method | D5: 1 | G5: Total Costs:
E6: Enter Amount: | G6: =IF(D5=1,F6,F7) -> 0
F7: =G18 -> 0
C10: Appliance | G10: Supplier 2
B11: Product ID | C11: Description | D11: QTY | E11: Unit | F11: $/Unit | G11: Sub-Total $
C14: End
F15: Labor Sub-Total: | G15: =SUMIF(C12:C14,"Labor*",G12:G14) -> 0
F16: Material Sub-Total: | G16: =SUM(G12:G14)-SUMIF(C12:C14,"Labor*",G12:G14) -> 0
F17: Sales Tax: | G17: =IF(E18=FALSE,"",G16*TaxRate) -> 0
E18: TRUE | F18: Total Cost: | G18: =SUM(G15:G17) -> 0

Sheet HardwareMirror
G2: Hardware & Mirror Detail
C5: Choose Estimating Method | D5: 1 | G5: Total Costs:
E6: Enter Amount: | G6: =IF(D5=1,F6,IF(D5=2,F7,0)) -> 0
F7: =G18 -> 0
C10: Hardware & Mirror | G10: Supplier 1 | L10: FALSE
B11: Product ID | C11: Description | D11: Qty | E11: Unit | F11: $/Unit | G11: Sub-Total $ | H11: Labor Rate | I11: Total Labor | L11: FALSE
C14: End | H14: Labor: | I14: =SUM(I12:I13) -> 0
F15: Labor Sub-Total: | G15: =SUMIF(C12:C14,"Labor*",G12:G14)+I14 -> 0
F16: Material Sub-Total: | G16: =SUM(G12:G14)-SUMIF(C12:C14,"Labor*",G12:G14) -> 0
F17: Sales Tax: | G17: =IF(E18=FALSE,"",G16*TaxRate) -> 0
E18: TRUE | F18: Total Cost: | G18: =SUM(G15:G17) -> 0

Sheet Siding
G2: Exterior Siding Detail
C5: Choose Material(s) to Estimate | D5: Go To: | F5: Enter Lump Sum: | G5: Sub-Total $
A6: FALSE | C6: Lump Sum | G6: =IF(A6=TRUE,F6,0) -> 0
A7: FALSE | B7: HideVinyl | C7: Aluminum and Vinyl Siding | D7: Alum/Vinyl | G7: =IF(A7=FALSE,0,IF(OR(F7="",F7=0),SidingAlumTotal,F7)) -> 0
A8: FALSE | B8: HideWood | C8: Wood Siding | D8: Wood | G8: =IF(A8=FALSE,0,IF(OR(F8="",F8=0),SidingWoodTotal,F8)) -> 0
A9: FALSE | B9: HideBrick | C9: Brick Siding | D9: Brick | G9: =IF(A9=FALSE,0,IF(OR(F9="",F9=0),SidingBrickTotal,F9)) -> 0
A10: FALSE | B10: HideStucco | C10: Stucco | D10: Stucco | G10: =IF(A10=FALSE,0,IF(OR(F10="",F10=0),SidingStuccoTotal,F10)) -> 0
A11: FALSE | B11: HideStone | C11: Stone | D11: Stone | G11: =IF(A11=FALSE,0,IF(OR(F11="",F11=0),SidingStoneTotal,F11)) -> 0
A12: FALSE | B12: HideOther | C12: =C72 -> Other | D12: Other | G12: =IF(A12=FALSE,0,IF(OR(F12="",F12=0),SidingOtherTotal,F12)) -> 0
F13: Total Siding Cost: | G13: =SUM(G6:G12) -> 0
C15: Detail Estimate
C17: Aluminum or Vinyl | D17: UP | G17: Supplier 1 | L17: FALSE
B18: Product ID | C18: Description | D18: QTY | E18: Unit | F18: $/Unit | G18: Sub-Total $ | H18: Labor Rate | I18: Total Labor | L18: FALSE
C21: End | H21: Labor: | I21: =SUM(I19:I20) -> 0
C22: Total Alum / Vinyl SF: | D22: =SUMIF(E19:E21,"SF",D19:D21)-SUMIF(C19:C21,"Labor - SF",D19:D21) -> 0 | F22: Labor Sub-Total: | G22: =SUMIF(C19:C21,"Labor*",G19:G21)+I21 -> 0
F23: Material Sub-Total: | G23: =SUM(G19:G21)-SUMIF(C19:C21,"Labor*",G19:G21) -> 0
F24: Sales Tax: | G24: =IF(E25=FALSE,"",G23*TaxRate) -> 0
E25: TRUE | F25: Total Cost: | G25: =SUM(G22:G24) -> 0
C28: Wood | D28: UP | G28: Supplier 3 | L28: FALSE
B29: Product ID | C29: Description | D29: QTY | E29: Unit | F29: $/Unit | G29: Sub-Total $ | H29: Labor Rate | I29: Total Labor | L29: FALSE
C32: End | H32: Labor: | I32: =SUM(I30:I31) -> 0
C33: Total Wood SF: | D33: =SUMIF(E30:E32,"SF",D30:D32)-SUMIF(C30:C32,"Labor - SF",D30:D32) -> 0 | F33: Labor Sub-Total: | G33: =SUMIF(C30:C32,"Labor*",G30:G32)+I32 -> 0
F34: Material Sub-Total: | G34: =SUM(G30:G32)-SUMIF(C30:C32,"Labor*",G30:G32) -> 0
F35: Sales Tax: | G35: =IF(E36=FALSE,"",G34*TaxRate) -> 0
E36: TRUE | F36: Total Cost: | G36: =SUM(G33:G35) -> 0
C39: Brick | D39: UP | G39: Supplier 1 | L39: FALSE
B40: Product ID | C40: Description | D40: QTY | E40: Unit | F40: $/Unit | G40: Sub Total $ | H40: Labor Rate | I40: Total Labor | L40: FALSE
C43: End | H43: Labor: | I43: =SUM(I41:I42) -> 0
C44: Total Brick SF: | D44: =SUMIF(E41:E43,"SF",D41:D43)-SUMIF(C41:C43,"Labor - SF",D41:D43) -> 0 | F44: Labor Sub-Total: | G44: =SUMIF(C41:C43,"Labor*",G41:G43)+I43 -> 0
F45: Material Sub-Total: | G45: =SUM(G41:G43)-SUMIF(C41:C43,"Labor*",G41:G43) -> 0
F46: Sales Tax: | G46: =IF(E47=FALSE,"",G45*TaxRate) -> 0
E47: TRUE | F47: Total Cost: | G47: =SUM(G44:G46) -> 0
C50: Stucco | D50: UP | G50: Supplier 3 | L50: FALSE
B51: Product ID | C51: Description | D51: QTY | E51: Unit | F51: $/Unit | G51: Sub-Total $ | H51: Labor Rate | I51: Total Labor | L51: FALSE
C54: End | H54: Labor: | I54: =SUM(I52:I53) -> 0
C55: Total Stucco SF: | D55: =SUMIF(E52:E54,"SF",D52:D54)-SUMIF(C52:C54,"Labor - SF",D52:D54) -> 0 | F55: Labor Sub-Total: | G55: =SUMIF(C52:C54,"Labor*",G52:G54)+I54 -> 0
F56: Material Sub-Total: | G56: =SUM(G52:G54)-SUMIF(C52:C54,"Labor*",G52:G54) -> 0
F57: Sales Tax: | G57: =IF(E58=FALSE,"",G56*TaxRate) -> 0
E58: TRUE | F58: Total Cost: | G58: =SUM(G55:G57) -> 0
C61: Stone | D61: UP | G61: Supplier 2 | L61: FALSE
B62: Product ID | C62: Description | D62: QTY | E62: Unit | F62: $/Unit | G62: Sub-Total $ | H62: Labor Rate | I62: Total Labor | L62: FALSE
C65: End | H65: Labor: | I65: =SUM(I63:I64) -> 0
C66: Total Stone SF: | D66: =SUMIF(E63:E65,"SF",D63:D65)-SUMIF(C63:C65,"Labor - SF",D63:D65) -> 0 | F66: Labor Sub-Total: | G66: =SUMIF(C63:C65,"Labor*",G63:G65)+I65 -> 0
F67: Material Sub-Total: | G67: =SUM(G63:G65)-SUMIF(C63:C65,"Labor*",G63:G65) -> 0
F68: Sales Tax: | G68: =IF(E69=FALSE,"",G67*TaxRate) -> 0
E69: TRUE | F69: Total Cost: | G69: =SUM(G66:G68) -> 0
C72: Other | D72: UP | G72: Supplier 1 | L72: FALSE
B73: Product ID | C73: Description | D73: QTY | E73: Unit | F73: $/Unit | G73: Sub-Total $ | H73: Labor Rate | I73: Total Labor | L73: FALSE
C76: End | H76: Labor: | I76: =SUM(I74:I75) -> 0
F77: Labor Sub-Total: | G77: =SUMIF(C74:C76,"Labor*",G74:G76)+I76 -> 0
F78: Material Sub-Total: | G78: =SUM(G74:G76)-SUMIF(C74:C76,"Labor*",G74:G76) -> 0
F79: Sales Tax: | G79: =IF(E80=FALSE,"",G78*TaxRate) -> 0
E80: TRUE | F80: Total Cost: | G80: =SUM(G77:G79) -> 0

Sheet SoffitFascia
G2: Soffit & Fascia Detail
C5: Choose Estimating Method | D5: 1 | G5: Total Costs:
E6: Enter Amount: | G6: =IF(D5=1,F6,F7) -> 0
F7: =G18 -> 0
C10: Soffit & Fascia | G10: Supplier 1 | L10: FALSE
B11: Product ID | C11: Description | D11: QTY | E11: Unit | F11: $/Unit | G11: Sub Total $ | H11: Labor Rate | I11: Total Labor | L11: FALSE
C14: End | H14: Labor: | I14: =SUM(I12:I13) -> 0
F15: Labor Sub-Total: | G15: =SUMIF(C12:C14,"Labor*",G12:G14)+I14 -> 0
F16: Material Sub-Total: | G16: =SUM(G12:G14)-SUMIF(C12:C14,"Labor*",G12:G14) -> 0
F17: Sales Tax: | G17: =IF(E18=FALSE,"",G16*TaxRate) -> 0
E18: TRUE | F18: Total Cost: | G18: =SUM(G15:G17) -> 0

Sheet Gutter
G2: Gutter Detail
C5: Choose Estimating Method | D5: 1 | G5: Total Costs:
E6: Enter Amount: | G6: =IF(D5=1,F6,F7) -> 0
F7: =G18 -> 0
A10: ` | C10: Gutter | G10: Supplier 1 | L10: FALSE
B11: Product ID | C11: Description | D11: QTY | E11: Unit | F11: $/Unit | G11: Sub-Total $ | H11: Labor Rate | I11: Total Labor | L11: FALSE
C14: End | H14: Labor: | I14: =SUM(I12:I13) -> 0
F15: Labor Sub-Total: | G15: =SUMIF(C12:C14,"Labor*",G12:G14)+I14 -> 0
F16: Material Sub-Total: | G16: =SUM(G12:G14)-SUMIF(C12:C14,"Labor*",G12:G14) -> 0
F17: Sales Tax: | G17: =IF(E18=FALSE,"",G16*TaxRate) -> 0
E18: TRUE | F18: Total Cost: | G18: =SUM(G15:G17) -> 0

Sheet Deck
G2: Deck Detail
C5: Choose Estimating Method | D5: 1 | E5: 2 | G5: Total Costs:
E6: Enter Amount: | G6: =IF(D5=1,F6,F7) -> 0
F7: =G18 -> 0
L9: FALSE
C10: Deck | G10: Supplier 2 | L10: FALSE
B11: Product ID | C11: Description | D11: QTY | E11: Unit | F11: $/Unit | G11: Sub-Total $ | H11: Labor Rate | I11: Total Labor | L11: TRUE
C14: End | H14: Labor: | I14: =SUM(I12:I13) -> 0
F15: Labor Sub-Total: | G15: =SUMIF(C12:C14,"Labor*",G12:G14)+I14 -> 0
F16: Material Sub-Total: | G16: =SUM(G12:G14)-SUMIF(C12:C14,"Labor*",G12:G14) -> 0
F17: Sales Tax: | G17: =IF(E18=FALSE,"",G16*TaxRate) -> 0
E18: TRUE | F18: Total Cost: | G18: =SUM(G15:G17) -> 0

Sheet ExtRailing
G2: Exterior Railing Detail
C5: Choose Estimating Method | D5: 1 | G5: Total Costs:
E6: Enter Amount: | G6: =IF(D5=1,F6,F7) -> 0
F7: =G17 -> 0
C9: Exterior Railing | G9: Supplier 1 | L9: FALSE
B10: Product ID | C10: Description | D10: QTY | E10: Unit | F10: $/Unit | G10: Sub-Total $ | H10: Labor Rate | I10: Total Labor | L10: FALSE
C13: End | H13: Labor: | I13: =SUM(I11:I12) -> 0
F14: Labor Sub-Total: | G14: =SUMIF(C11:C13,"Labor*",G11:G13)+I13 -> 0
F15: Material Sub-Total: | G15: =SUM(G11:G13)-SUMIF(C11:C13,"Labor*",G11:G13) -> 0
F16: Sales Tax: | G16: =IF(E17=FALSE,"",G15*TaxRate) -> 0
E17: TRUE | F17: Total Cost: | G17: =SUM(G14:G16) -> 0

Sheet FDNPlaster
G2: Foundation Plaster Detail
C5: Choose Estimating Method | D5: 1 | G5: Total Costs:
E6: Enter Amount: | G6: =IF(D5=1,F6,G21) -> 0
F7: =G21 -> 0
C9: Foundation Specs:
C10: Foundation Perimeter: | D10: =DampFoundationLF -> 0 | E10: Feet
C11: Foundation Showing: | E11: Feet
C13: Foundation Plaster | G13: Supplier 1 | L13: FALSE
B14: Product ID | C14: Description | D14: QTY | E14: Unit | F14: $/Unit | G14: Sub-Total $ | H14: Labor Rate | I14: Total Labor | L14: FALSE
C17: End | H17: Labor: | I17: =SUM(I15:I16) -> 0
F18: Labor Sub-Total: | G18: =SUMIF(C15:C17,"Labor*",G15:G17)+I17 -> 0
F19: Material Sub-Total: | G19: =SUM(G15:G17)-SUMIF(C15:C17,"Labor*",G15:G17) -> 0
F20: Sales Tax: | G20: =IF(E21=FALSE,"",G19*TaxRate) -> 0
E21: TRUE | F21: Total Cost: | G21: =SUM(G18:G20) -> 0

Sheet Cleanup
G2: Clean-up Detail
C5: Choose Estimating Method | D5: 1 | G5: Total Costs:
E6: Enter Amount: | G6: =IF(D5=1,F6,F7) -> 0
D7: 2 | F7: =G18 -> 0
C10: Clean-Up | G10: Supplier 1
B11: Product ID | C11: Description | D11: QTY | E11: Unit | F11: $/Unit | G11: Sub-Total $
C14: End
F15: Labor Sub-Total: | G15: =SUMIF(C12:C14,"Labor*",G12:G14) -> 0
F16: Material Sub-Total: | G16: =SUM(G12:G14)-SUMIF(C12:C14,"Labor*",G12:G14) -> 0
F17: Sales Tax: | G17: =IF(E18=FALSE,"",G16*TaxRate) -> 0
E18: TRUE | F18: Total Cost: | G18: =SUM(G15:G17) -> 0

Sheet Landscaping
G2: Landscaping Detail
C5: Choose Estimating Method | D5: 1 | E5: 2 | G5: Total Costs:
E6: Enter Amount: | G6: =IF(D5=1,F6,F7) -> 0
F7: =G18 -> 0
C10: Detail Estimate | G10: Sub 3 | L10: FALSE
B11: Product ID | C11: Description | D11: QTY | E11: Unit | F11: $/Unit | G11: Sub-Total $ | H11: Labor Rate | I11: Total Labor | L11: FALSE
C14: End | H14: Labor: | I14: =SUM(I12:I13) -> 0
F15: Labor Sub-Total: | G15: =SUMIF(C12:C14,"Labor*",G12:G14)+I14 -> 0
F16: Material Sub-Total: | G16: =SUM(G12:G14)-SUMIF(C12:C14,"Labor*",G12:G14) -> 0
F17: Sales Tax: | G17: =IF(E18=FALSE,"",G16*TaxRate) -> 0
E18: TRUE | F18: Total Cost: | G18: =SUM(G15:G17) -> 0

Sheet ZCustom1 (hidden)
G2: Custom 1 Detail
C5: Choose Estimating Method | D5: 1 | G5: Total Costs:
E6: Enter Amount: | G6: =IF(D5=1,F6,F7) -> 0
F7: =G18 -> 0
L8: FALSE
L9: FALSE
C10: Detail Estimate | G10: Supplier 1 | I10: FALSE
B11: Product ID | C11: Description | D11: QTY | E11: Unit | F11: $/Unit | G11: Sub-Total $ | H11: Labor Rate | I11: Total Labor
L12: TRUE
C14: End | H14: Labor: | I14: =SUM(I12:I13) -> 0
F15: Labor Sub-Total: | G15: =SUMIF(C12:C14,"Labor*",G12:G14) -> 0
F16: Material Sub-Total: | G16: =SUM(G12:G14)-G15 -> 0
F17: Sales Tax: | G17: =IF(E18=FALSE,"",G16*TaxRate) -> 0
E18: TRUE | F18: Total Cost: | G18: =SUM(G15:G17) -> 0

Sheet ZCustom2 (hidden)
G2: Custom 2 Detail
C5: Choose Estimating Method | D5: 1 | G5: Total Costs:
E6: Enter Amount: | G6: =IF(D5=1,F6,F7) -> 0
F7: =G18 -> 0
L8: FALSE
L9: FALSE
C10: Detail Estimate | G10: Supplier 1
B11: Product ID | C11: Description | D11: QTY | E11: Unit | F11: $/Unit | G11: Sub-Total $ | H11: Labor Rate | I11: Total Labor
L12: TRUE
C14: End | H14: Labor: | I14: =SUM(I12:I13) -> 0
F15: Labor Sub-Total: | G15: =SUMIF(C12:C14,"Labor*",G12:G14) -> 0
F16: Material Sub-Total: | G16: =SUM(G12:G14)-G15 -> 0
F17: Sales Tax: | G17: =IF(E18=FALSE,"",G16*TaxRate) -> 0
E18: TRUE | F18: Total Cost: | G18: =SUM(G15:G17) -> 0

Sheet ZCustom3 (hidden)
G2: Custom 3 Detail
C5: Choose Estimating Method | D5: 1 | G5: Total Costs:
E6: Enter Amount: | G6: =IF(D5=1,F6,F7) -> 0
F7: =G18 -> 0
L8: FALSE
L9: FALSE
C10: Detail Estimate | G10: Supplier 2
C11: Description | D11: QTY | E11: Unit | F11: $/Unit | G11: Sub-Total $ | H11: Labor Rate | I11: Total Labor
L12: TRUE
C14: End | H14: Labor: | I14: =SUM(I12:I13) -> 0
F15: Labor Sub-Total: | G15: =SUMIF(C12:C14,"Labor*",G12:G14) -> 0
F16: Material Sub-Total: | G16: =SUM(G12:G14)-G15 -> 0
F17: Sales Tax: | G17: =IF(E18=FALSE,"",G16*TaxRate) -> 0
E18: TRUE | F18: Total Cost: | G18: =SUM(G15:G17) -> 0

Sheet ZCustom4 (hidden)
G2: Custom 4 Detail
C5: Choose Estimating Method | D5: 1 | G5: Total Costs:
E6: Enter Amount: | G6: =IF(D5=1,F6,F7) -> 0
F7: =G18 -> 0
L8: FALSE
L9: FALSE
C10: Detail Estimate | G10: Supplier 2 | I10: `
C11: Description | D11: QTY | E11: Unit | F11: $/Unit | G11: Sub-Total $ | H11: Labor Rate | I11: Total Labor
L12: TRUE
C14: End | H14: Labor: | I14: =SUM(I12:I13) -> 0
F15: Labor Sub-Total: | G15: =SUMIF(C12:C14,"Labor*",G12:G14) -> 0
F16: Material Sub-Total: | G16: =SUM(G12:G14)-G15 -> 0
F17: Sales Tax: | G17: =IF(E18=FALSE,"",G16*TaxRate) -> 0
E18: TRUE | F18: Total Cost: | G18: =SUM(G15:G17) -> 0

Sheet ZCustom5 (hidden)
G2: Custom 5 Detail
C5: Choose Estimating Method | D5: 1 | G5: Total Costs:
E6: Enter Amount: | G6: =IF(D5=1,F6,F7) -> 0
F7: =G18 -> 0
L8: FALSE
L9: FALSE
C10: Detail Estimate | G10: Supplier 1 | I10: FALSE
B11: Product ID | C11: Description | D11: QTY | E11: Unit | F11: $/Unit | G11: Sub-Total $ | H11: Labor Rate | I11: Total Labor
L12: TRUE
C14: End | H14: Labor: | I14: =SUM(I12:I13) -> 0
F15: Labor Sub-Total: | G15: =SUMIF(C12:C14,"Labor*",G12:G14) -> 0
F16: Material Sub-Total: | G16: =SUM(G12:G14)-G15 -> 0
F17: Sales Tax: | G17: =IF(E18=FALSE,"",G16*TaxRate) -> 0
E18: TRUE | F18: Total Cost: | G18: =SUM(G15:G17) -> 0

Sheet ZCustom6 (hidden)
G2: Custom 6 Detail
C5: Choose Estimating Method | D5: 1 | G5: Total Costs:
E6: Enter Amount: | G6: =IF(D5=1,F6,F7) -> 0
F7: =G18 -> 0
L8: FALSE
L9: FALSE
C10: Detail Estimate | G10: Supplier 2 | I10: FALSE
B11: Product ID | C11: Description | D11: QTY | E11: Unit | F11: $/Unit | G11: Sub-Total $ | H11: Labor Rate | I11: Total Labor
L12: TRUE
C14: End | H14: Labor: | I14: =SUM(I12:I13) -> 0
F15: Labor Sub-Total: | G15: =SUMIF(C12:C14,"Labor*",G12:G14) -> 0
F16: Material Sub-Total: | G16: =SUM(G12:G14)-G15 -> 0
F17: Sales Tax: | G17: =IF(E18=FALSE,"",G16*TaxRate) -> 0
E18: TRUE | F18: Total Cost: | G18: =SUM(G15:G17) -> 0

Sheet ZCustom7 (hidden)
G2: Custom 7 Detail
C5: Choose Estimating Method | D5: 1 | G5: Total Costs:
E6: Enter Amount: | G6: =IF(D5=1,F6,F7) -> 0
F7: =G18 -> 0
L8: FALSE
L9: FALSE
C10: Detail Estimate | G10: Supplier 2 | I10: FALSE
B11: Product ID | C11: Description | D11: QTY | E11: Unit | F11: $/Unit | G11: Sub-Total $ | H11: Labor Rate | I11: Total Labor
L12: TRUE
C14: End | H14: Labor: | I14: =SUM(I12:I13) -> 0
F15: Labor Sub-Total: | G15: =SUMIF(C12:C14,"Labor*",G12:G14) -> 0
F16: Material Sub-Total: | G16: =SUM(G12:G14)-G15 -> 0
F17: Sales Tax: | G17: =IF(E18=FALSE,"",G16*TaxRate) -> 0
E18: TRUE | F18: Total Cost: | G18: =SUM(G15:G17) -> 0

Sheet ZCustom8 (hidden)
G2: Custom 8 Detail
C5: Choose Estimating Method | D5: 1 | G5: Total Costs:
E6: Enter Amount: | G6: =IF(D5=1,F6,F7) -> 0
F7: =G18 -> 0
L8: FALSE
L9: FALSE
C10: Detail Estimate | G10: Supplier 2 | I10: FALSE
B11: Product ID | C11: Description | D11: QTY | E11: Unit | F11: $/Unit | G11: Sub-Total $ | H11: Labor Rate | I11: Total Labor
L12: TRUE
C14: End | H14: Labor: | I14: =SUM(I12:I13) -> 0
F15: Labor Sub-Total: | G15: =SUMIF(C12:C14,"Labor*",G12:G14) -> 0
F16: Material Sub-Total: | G16: =SUM(G12:G14)-G15 -> 0
F17: Sales Tax: | G17: =IF(E18=FALSE,"",G16*TaxRate) -> 0
E18: TRUE | F18: Total Cost: | G18: =SUM(G15:G17) -> 0

Sheet ZCustom9 (hidden)
G2: Custom 9 Detail
C5: Choose Estimating Method | D5: 1 | G5: Total Costs:
E6: Enter Amount: | G6: =IF(D5=1,F6,F7) -> 0
F7: =G18 -> 0
L8: FALSE
L9: FALSE
C10: Detail Estimate | G10: Supplier 1 | I10: FALSE
B11: Product ID | C11: Description | D11: QTY | E11: Unit | F11: $/Unit | G11: Sub-Total $ | H11: Labor Rate | I11: Total Labor
L12: TRUE
C14: End | H14: Labor: | I14: =SUM(I12:I13) -> 0
F15: Labor Sub-Total: | G15: =SUMIF(C12:C14,"Labor*",G12:G14) -> 0
F16: Material Sub-Total: | G16: =SUM(G12:G14)-G15 -> 0
F17: Sales Tax: | G17: =IF(E18=FALSE,"",G16*TaxRate) -> 0
E18: TRUE | F18: Total Cost: | G18: =SUM(G15:G17) -> 0

Sheet ZCustom10 (hidden)
G2: Custom 10 Detail
C5: Choose Estimating Method | D5: 1 | G5: Total Costs:
E6: Enter Amount: | G6: =IF(D5=1,F6,F7) -> 0
F7: =G18 -> 0
L8: FALSE
L9: FALSE
C10: Detail Estimate | G10: Supplier 1 | I10: FALSE
B11: Product ID | C11: Description | D11: QTY | E11: Unit | F11: $/Unit | G11: Sub-Total $ | H11: Labor Rate | I11: Total Labor
L12: TRUE
C14: End | H14: Labor: | I14: =SUM(I12:I13) -> 0
F15: Labor Sub-Total: | G15: =SUMIF(C12:C14,"Labor*",G12:G14) -> 0
F16: Material Sub-Total: | G16: =SUM(G12:G14)-G15 -> 0
F17: Sales Tax: | G17: =IF(E18=FALSE,"",G16*TaxRate) -> 0
E18: TRUE | F18: Total Cost: | G18: =SUM(G15:G17) -> 0

Sheet ZCustom11 (hidden)
G2: Custom 11 Detail
C5: Choose Estimating Method | D5: 1 | G5: Total Costs:
E6: Enter Amount: | G6: =IF(D5=1,F6,IF(D5=2,F7,0)) -> 0
F7: =G18 -> 0
C10: Detail Estimate | G10: Supplier 1
C11: Description | D11: QTY | E11: Unit | F11: $/Unit | G11: Sub-Total$
C14: End
F15: Labor Sub-Total: | G15: =SUMIF($C$12:$C$14,"Labor*",$G$12:$G$14) -> 0
F16: Material Sub-Total: | G16: =SUM($G$12:$G$14)-$G$15 -> 0
F17: Sales Tax: | G17: =IF($E$18=FALSE,0,SUM($G$15:$G$16)*TaxRate) -> 0
E18: TRUE | F18: Total Cost: | G18: =SUM($G$15:$G$17) -> 0

Sheet ZCustom12 (hidden)
G2: Custom 12 Detail
C5: Choose Estimating Method | D5: 1 | G5: Total Costs:
E6: Enter Amount: | G6: =IF(D5=1,F6,IF(D5=2,F7,0)) -> 0
F7: =G18 -> 0
C10: Detail Estimate | G10: Supplier 1
C11: Description | D11: QTY | E11: Unit | F11: $/Unit | G11: Sub-Total$
C14: End
F15: Labor Sub-Total: | G15: =SUMIF($C$12:$C$14,"Labor*",$G$12:$G$14) -> 0
F16: Material Sub-Total: | G16: =SUM($G$12:$G$14)-$G$15 -> 0
F17: Sales Tax: | G17: =IF($E$18=FALSE,0,SUM($G$15:$G$16)*TaxRate) -> 0
E18: TRUE | F18: Total Cost: | G18: =SUM($G$15:$G$17) -> 0

Sheet ZCustom13 (hidden)
G2: Custom 13 Detail
C5: Choose Estimating Method | D5: 1 | G5: Total Costs:
E6: Enter Amount: | G6: =IF(D5=1,F6,IF(D5=2,F7,0)) -> 0
F7: =G18 -> 0
C10: Detail Estimate | G10: Supplier 1
C11: Description | D11: QTY | E11: Unit | F11: $/Unit | G11: Sub-Total$
C14: End
F15: Labor Sub-Total: | G15: =SUMIF($C$12:$C$14,"Labor*",$G$12:$G$14) -> 0
F16: Material Sub-Total: | G16: =SUM($G$12:$G$14)-$G$15 -> 0
F17: Sales Tax: | G17: =IF($E$18=FALSE,0,SUM($G$15:$G$16)*TaxRate) -> 0
E18: TRUE | F18: Total Cost: | G18: =SUM($G$15:$G$17) -> 0

Sheet ZCustom14 (hidden)
G2: Custom 14 Detail
C5: Choose Estimating Method | D5: 1 | G5: Total Costs:
E6: Enter Amount: | G6: =IF(D5=1,F6,IF(D5=2,F7,0)) -> 0
F7: =G19 -> 0
C10: Detail Estimate | G10: Supplier 1
C11: Description | D11: QTY | E11: Unit | F11: $/Unit | G11: Sub-Total$
C14: End
F15: Labor Sub-Total: | G15: =SUMIF($C$12:$C$14,"Labor*",$G$12:$G$14) -> 0
F16: Material Sub-Total: | G16: =SUM($G$12:$G$14)-$G$15 -> 0
F17: Sales Tax: | G17: =IF($E$18=FALSE,0,SUM($G$15:$G$16)*TaxRate) -> 0
E18: TRUE | F18: Total Cost: | G18: =SUM($G$15:$G$17) -> 0

Sheet ZCustom15 (hidden)
G2: Custom 15 Detail
C5: Choose Estimating Method | D5: 1 | G5: Total Costs:
E6: Enter Amount: | G6: =IF(D5=1,F6,IF(D5=2,F7,0)) -> 0
F7: =G18 -> 0
C10: Detail Estimate | G10: Supplier 1
C11: Description | D11: QTY | E11: Unit | F11: $/Unit | G11: Sub-Total$
C14: End
F15: Labor Sub-Total: | G15: =SUMIF($C$12:$C$14,"Labor*",$G$12:$G$14) -> 0
F16: Material Sub-Total: | G16: =SUM($G$12:$G$14)-$G$15 -> 0
F17: Sales Tax: | G17: =IF($E$18=FALSE,0,SUM($G$15:$G$16)*TaxRate) -> 0
E18: TRUE | F18: Total Cost: | G18: =SUM($G$15:$G$17) -> 0

Sheet ZCustom16 (hidden)
G2: Custom 16 Detail
C5: Choose Estimating Method | D5: 1 | G5: Total Costs:
E6: Enter Amount: | G6: =IF(D5=1,F6,IF(D5=2,F7,0)) -> 0
F7: =G18 -> 0
C10: Detail Estimate | G10: Supplier 1
C11: Description | D11: QTY | E11: Unit | F11: $/Unit | G11: Sub-Total$
C14: End
F15: Labor Sub-Total: | G15: =SUMIF($C$12:$C$14,"Labor*",$G$12:$G$14) -> 0
F16: Material Sub-Total: | G16: =SUM($G$12:$G$14)-$G$15 -> 0
F17: Sales Tax: | G17: =IF($E$18=FALSE,0,SUM($G$15:$G$16)*TaxRate) -> 0
E18: TRUE | F18: Total Cost: | G18: =SUM($G$15:$G$17) -> 0

Sheet ZCustom17 (hidden)
G2: Custom 17 Detail
C5: Choose Estimating Method | D5: 1 | G5: Total Costs:
E6: Enter Amount: | G6: =IF(D5=1,F6,IF(D5=2,F7,0)) -> 0
F7: =G18 -> 0
C10: Detail Estimate | G10: Supplier 1
C11: Description | D11: QTY | E11: Unit | F11: $/Unit | G11: Sub-Total$
C14: End
F15: Labor Sub-Total: | G15: =SUMIF($C$12:$C$14,"Labor*",$G$12:$G$14) -> 0
F16: Material Sub-Total: | G16: =SUM($G$12:$G$14)-$G$15 -> 0
F17: Sales Tax: | G17: =IF($E$18=FALSE,0,SUM($G$15:$G$16)*TaxRate) -> 0
E18: TRUE | F18: Total Cost: | G18: =SUM($G$15:$G$17) -> 0

Sheet ZCustom18 (hidden)
G2: Custom 18 Detail
C5: Choose Estimating Method | D5: 1 | G5: Total Costs:
E6: Enter Amount: | G6: =IF(D5=1,F6,IF(D5=2,F7,0)) -> 0
F7: =G18 -> 0
C10: Detail Estimate | G10: Supplier 1
C11: Description | D11: QTY | E11: Unit | F11: $/Unit | G11: Sub-Total$
C14: End
F15: Labor Sub-Total: | G15: =SUMIF($C$12:$C$14,"Labor*",$G$12:$G$14) -> 0
F16: Material Sub-Total: | G16: =SUM($G$12:$G$14)-$G$15 -> 0
F17: Sales Tax: | G17: =IF($E$18=FALSE,0,SUM($G$15:$G$16)*TaxRate) -> 0
E18: TRUE | F18: Total Cost: | G18: =SUM($G$15:$G$17) -> 0

Sheet ZCustom19 (hidden)
G2: Custom 19 Detail
C5: Choose Estimating Method | D5: 1 | G5: Total Costs:
E6: Enter Amount: | G6: =IF(D5=1,F6,IF(D5=2,F7,0)) -> 0
F7: =G18 -> 0
C10: Detail Estimate | G10: Supplier 1
C11: Description | D11: QTY | E11: Unit | F11: $/Unit | G11: Sub-Total$
C14: End
F15: Labor Sub-Total: | G15: =SUMIF($C$12:$C$14,"Labor*",$G$12:$G$14) -> 0
F16: Material Sub-Total: | G16: =SUM($G$12:$G$14)-$G$15 -> 0
F17: Sales Tax: | G17: =IF($E$18=FALSE,0,SUM($G$15:$G$16)*TaxRate) -> 0
E18: TRUE | F18: Total Cost: | G18: =SUM($G$15:$G$17) -> 0

Sheet ZCustom20 (hidden)
G2: Custom 20 Detail
C5: Choose Estimating Method | D5: 1 | G5: Total Costs:
E6: Enter Amount: | G6: =IF(D5=1,F6,IF(D5=2,F7,0)) -> 0
F7: =G18 -> 0
C10: Detail Estimate | G10: Supplier 1
C11: Description | D11: QTY | E11: Unit | F11: $/Unit | G11: Sub-Total$
C14: End
F15: Labor Sub-Total: | G15: =SUMIF($C$12:$C$14,"Labor*",$G$12:$G$14) -> 0
F16: Material Sub-Total: | G16: =SUM($G$12:$G$14)-$G$15 -> 0
F17: Sales Tax: | G17: =IF($E$18=FALSE,0,SUM($G$15:$G$16)*TaxRate) -> 0
E18: TRUE | F18: Total Cost: | G18: =SUM($G$15:$G$17) -> 0

Sheet ZCustom21 (hidden)
G2: Custom 21 Detail
C5: Choose Estimating Method | D5: 1 | G5: Total Custom21 Costs:
E6: Enter Amount: | G6: =IF(D5=1,F6,IF(D5=2,F7,0)) -> 0
F7: =G18 -> 0
C10: Detail Estimate
C11: Add Item | D11: QTY | E11: Unit | F11: $/Unit | G11: Sub-Total$
C14: End
F15: Labor Sub-Total: | G15: =SUMIF($C$12:$C$14,"Labor*",$G$12:$G$14) -> 0
F16: Material Sub-Total: | G16: =SUM($G$12:$G$14)-$G$15 -> 0
F17: Sales Tax: | G17: =IF($E$18=FALSE,0,SUM($G$15:$G$16)*TaxRate) -> 0
F18: Total Cost: | G18: =SUM($G$15:$G$17) -> 0

Sheet ZCustom22 (hidden)
G2: Custom 22 Detail
C5: Choose Estimating Method | D5: 1 | G5: Total Custom22 Costs:
E6: Enter Amount: | G6: =IF(D5=1,F6,IF(D5=2,F7,0)) -> 0
F7: =G18 -> 0
C10: Detail Estimate
C11: Add Item | D11: QTY | E11: Unit | F11: $/Unit | G11: Sub-Total$
C14: End
F15: Labor Sub-Total: | G15: =SUMIF($C$12:$C$14,"Labor*",$G$12:$G$14) -> 0
F16: Material Sub-Total: | G16: =SUM($G$12:$G$14)-$G$15 -> 0
F17: Sales Tax: | G17: =IF($E$18=FALSE,0,SUM($G$15:$G$16)*TaxRate) -> 0
F18: Total Cost: | G18: =SUM($G$15:$G$17) -> 0

Sheet ZCustom23 (hidden)
G2: Custom 23 Detail
C5: Choose Estimating Method | D5: 1 | G5: Total Custom23 Costs:
E6: Enter Amount: | G6: =IF(D5=1,F6,IF(D5=2,F7,0)) -> 0
F7: =G18 -> 0
C10: Detail Estimate
C11: Add Item | D11: QTY | E11: Unit | F11: $/Unit | G11: Sub-Total$
C14: End
F15: Labor Sub-Total: | G15: =SUMIF($C$12:$C$14,"Labor*",$G$12:$G$14) -> 0
F16: Material Sub-Total: | G16: =SUM($G$12:$G$14)-$G$15 -> 0
F17: Sales Tax: | G17: =IF($E$18=FALSE,0,SUM($G$15:$G$16)*TaxRate) -> 0
F18: Total Cost: | G18: =SUM($G$15:$G$17) -> 0

Sheet ZCustom24 (hidden)
G2: Custom 24 Detail
C5: Choose Estimating Method | D5: 1 | G5: Total Custom24 Costs:
E6: Enter Amount: | G6: =IF(D5=1,F6,IF(D5=2,F7,0)) -> 0
F7: =G18 -> 0
C10: Detail Estimate
C11: Add Item | D11: QTY | E11: Unit | F11: $/Unit | G11: Sub-Total$
C14: End
F15: Labor Sub-Total: | G15: =SUMIF($C$12:$C$14,"Labor*",$G$12:$G$14) -> 0
F16: Material Sub-Total: | G16: =SUM($G$12:$G$14)-$G$15 -> 0
F17: Sales Tax: | G17: =IF($E$18=FALSE,0,SUM($G$15:$G$16)*TaxRate) -> 0
F18: Total Cost: | G18: =SUM($G$15:$G$17) -> 0

Sheet ZCustom25 (hidden)
G2: Custom 25 Detail
C5: Choose Estimating Method | D5: 1 | G5: Total Custom25 Costs:
E6: Enter Amount: | G6: =IF(D5=1,F6,IF(D5=2,F7,0)) -> 0
F7: =G18 -> 0
C10: Detail Estimate
C11: Add Item | D11: QTY | E11: Unit | F11: $/Unit | G11: Sub-Total$
C14: End
F15: Labor Sub-Total: | G15: =SUMIF($C$12:$C$14,"Labor*",$G$12:$G$14) -> 0
F16: Material Sub-Total: | G16: =SUM($G$12:$G$14)-$G$15 -> 0
F17: Sales Tax: | G17: =IF($E$18=FALSE,0,SUM($G$15:$G$16)*TaxRate) -> 0
F18: Total Cost: | G18: =SUM($G$15:$G$17) -> 0

Sheet ZCustom26 (hidden)
G2: Custom 26 Detail
C5: Choose Estimating Method | D5: 1 | G5: Total Custom26 Costs:
E6: Enter Amount: | G6: =IF(D5=1,F6,IF(D5=2,F7,0)) -> 0
F7: =G18 -> 0
C10: Detail Estimate
C11: Add Item | D11: QTY | E11: Unit | F11: $/Unit | G11: Sub-Total$
C14: End
F15: Labor Sub-Total: | G15: =SUMIF($C$12:$C$14,"Labor*",$G$12:$G$14) -> 0
F16: Material Sub-Total: | G16: =SUM($G$12:$G$14)-$G$15 -> 0
F17: Sales Tax: | G17: =IF($E$18=FALSE,0,SUM($G$15:$G$16)*TaxRate) -> 0
F18: Total Cost: | G18: =SUM($G$15:$G$17) -> 0

Sheet ZCustom27 (hidden)
G2: Custom 27 Detail
C5: Choose Estimating Method | D5: 1 | G5: Total Custom27 Costs:
E6: Enter Amount: | G6: =IF(D5=1,F6,IF(D5=2,F7,0)) -> 0
F7: =G18 -> 0
C10: Detail Estimate
C11: Add Item | D11: QTY | E11: Unit | F11: $/Unit | G11: Sub-Total$
C14: End
F15: Labor Sub-Total: | G15: =SUMIF($C$12:$C$14,"Labor*",$G$12:$G$14) -> 0
F16: Material Sub-Total: | G16: =SUM($G$12:$G$14)-$G$15 -> 0
F17: Sales Tax: | G17: =IF($E$18=FALSE,0,SUM($G$15:$G$16)*TaxRate) -> 0
F18: Total Cost: | G18: =SUM($G$15:$G$17) -> 0

Sheet ZCustom28 (hidden)
G2: Custom 28 Detail
C5: Choose Estimating Method | D5: 1 | G5: Total Custom28 Costs:
E6: Enter Amount: | G6: =IF(D5=1,F6,IF(D5=2,F7,0)) -> 0
F7: =G18 -> 0
C10: Detail Estimate
C11: Add Item | D11: QTY | E11: Unit | F11: $/Unit | G11: Sub-Total$
C14: End
F15: Labor Sub-Total: | G15: =SUMIF($C$12:$C$14,"Labor*",$G$12:$G$14) -> 0
F16: Material Sub-Total: | G16: =SUM($G$12:$G$14)-$G$15 -> 0
F17: Sales Tax: | G17: =IF($E$18=FALSE,0,SUM($G$15:$G$16)*TaxRate) -> 0
F18: Total Cost: | G18: =SUM($G$15:$G$17) -> 0

Sheet ZCustom29 (hidden)
G2: Custom 29 Detail
C5: Choose Estimating Method | D5: 1 | G5: Total Custom29 Costs:
E6: Enter Amount: | G6: =IF(D5=1,F6,IF(D5=2,F7,0)) -> 0
F7: =G18 -> 0
C10: Detail Estimate
C11: Add Item | D11: QTY | E11: Unit | F11: $/Unit | G11: Sub-Total$
C14: End
F15: Labor Sub-Total: | G15: =SUMIF($C$12:$C$14,"Labor*",$G$12:$G$14) -> 0
F16: Material Sub-Total: | G16: =SUM($G$12:$G$14)-$G$15 -> 0
F17: Sales Tax: | G17: =IF($E$18=FALSE,0,SUM($G$15:$G$16)*TaxRate) -> 0
F18: Total Cost: | G18: =SUM($G$15:$G$17) -> 0

Sheet ZCustom30 (hidden)
G2: Custom 30 Detail
C5: Choose Estimating Method | D5: 1 | G5: Total Custom30 Costs:
E6: Enter Amount: | G6: =IF(D5=1,F6,IF(D5=2,F7,0)) -> 0
F7: =G18 -> 0
C10: Detail Estimate
C11: Add Item | D11: QTY | E11: Unit | F11: $/Unit | G11: Sub-Total$
C14: End
F15: Labor Sub-Total: | G15: =SUMIF($C$12:$C$14,"Labor*",$G$12:$G$14) -> 0
F16: Material Sub-Total: | G16: =SUM($G$12:$G$14)-$G$15 -> 0
F17: Sales Tax: | G17: =IF($E$18=FALSE,0,SUM($G$15:$G$16)*TaxRate) -> 0
F18: Total Cost: | G18: =SUM($G$15:$G$17) -> 0

Sheet PO
C3: =IF(ContractorName="","Company Name", ContractorName) -> Company Name | R3: 1
C4: =IF(ContractorAddress="","Address",ContractorAddress) -> Address
C5: =IF(ContractorCityStateZip="","City, State Zip",ContractorCityStateZip) -> City, State Zip
C6: =IF(ContractorBusinessPhone="","Phone", ContractorBusinessPhone) -> Phone
D11: Name: | M11: Name: | N11: =IF(ProjectName="","",ProjectName) -> 
D12: Attn: | M12: Attn: | N12: =IF(ProjectSupervisor="","",ProjectSupervisor) -> 
D13: Address: | M13: Address: | N13: =IF(ProjectAddress="","",ProjectAddress) -> 
D14: City: | M14: City: | N14: =IF(ProjectCity="","",ProjectCity) -> 
D15: State: | H15: ZipCode: | M15: State: | N15: =IF(ProjectState="","",ProjectState) ->  | P15: ZipCode: | R15: =IF(ProjectZip="","",ProjectZip) -> 
D16: Tax ID:
C19: Description | J19: Qty | L19: Unit | O19: Unit Cost | R19: Total
C20: Description | J20: Qty | L20: Unit | O20: UnitCost | R20: Total
A21: Landscaping
A22: Landscaping
A23: Landscaping
A24: Landscaping
A25: Landscaping
A26: Landscaping
A27: Landscaping
A28: Landscaping
A29: Landscaping
A30: Landscaping
A31: Landscaping
A32: Landscaping
A33: Landscaping
A34: Landscaping
A35: Landscaping
A36: Landscaping
A37: Landscaping
A38: Landscaping
A39: Landscaping
A40: Landscaping
A41: Landscaping
Q54: Sub-Total | R54: =SUM(R18:R53) -> 0
G55: 1 | Q55: Shipping & Handling | W55: TRUE
E56: Account # | K56: Date: | Q56: Tax | R56: =IF(POIncludeTax=TRUE,R54*TaxRate,0) -> 0
E57: Credit Card # | K57: Sales Rep | Q57: Total | R57: =SUM(R54:R56) -> 0
E58: Name | K58: Ship Via
E59: Exp. Date | K59: Ship Date

Sheet PO_withProductID
C3: =IF(ContractorName="","Company Name", ContractorName) -> Company Name | R3: 1
C4: =IF(ContractorAddress="","Address",ContractorAddress) -> Address
C5: =IF(ContractorCityStateZip="","City, State Zip",ContractorCityStateZip) -> City, State Zip
C6: =IF(ContractorBusinessPhone="","Phone", ContractorBusinessPhone) -> Phone
D11: Name: | M11: Name: | N11: =IF(ProjectName="","",ProjectName) -> 
D12: Attn: | M12: Attn: | N12: =IF(ProjectSupervisor="","",ProjectSupervisor) -> 
D13: Address: | M13: Address: | N13: =IF(ProjectAddress="","",ProjectAddress) -> 
D14: City: | M14: City: | N14: =IF(ProjectCity="","",ProjectCity) -> 
D15: State: | G15: ZipCode: | M15: State: | N15: =IF(ProjectState="","",ProjectState) ->  | P15: ZipCode: | R15: =IF(ProjectZip="","",ProjectZip) -> 
D16: Tax ID:
C19: Product ID | F19: Description | K19: Qty | M19: Unit | O19: Unit Cost | R19: Total
C20: ProductID | F20: Description | K20: Qty | M20: Unit | O20: UnitCost | R20: Total
A21: Landscaping
A22: Landscaping
A23: Landscaping
A24: Landscaping
A25: Landscaping
A26: Landscaping
A27: Landscaping
A28: Landscaping
A29: Landscaping
A30: Landscaping
A31: Landscaping
A32: Landscaping
A33: Landscaping
A34: Landscaping
A35: Landscaping
A36: Landscaping
A37: Landscaping
A38: Landscaping
A39: Landscaping
A40: Landscaping
A41: Landscaping
Q54: Sub-Total | R54: =SUM(R18:R53) -> 0
G55: 1 | Q55: Shipping & Handling | W55: TRUE
E56: Account # | K56: Date: | Q56: Tax | R56: =IF(POIncludeTax=TRUE,R54*TaxRate, 0) -> 0
E57: Credit Card # | K57: Sales Rep | Q57: Total | R57: =SUM(R54:R56) -> 0
E58: Name | K58: Ship Via
E59: Exp. Date | K59: Ship Date

Sheet PO_List
B2: OrderNumber | C2: Date | D2: SupplierName | E2: SupplierAttn | F2: SupplierAddress | G2: SupplierCity | H2: SupplierState | I2: SupplierZip | J2: SupplierTaxID | K2: ShipToName | L2: ShipToAttn | M2: ShipToAddress | N2: ShipToCity | O2: ShipToState | P2: ShipToZipCode | Q2: SalesRep | R2: ShipVia | S2: ShipDate | T2: IncludeTax | U2: PayVia | V2: AccountNumber | W2: CreditCardNumber | X2: PayName | Y2: ExpirationDate
A3: Heading | B3: Order Number | C3: Date | D3: Supplier Name | E3: Attn | F3: Address | G3: City | H3: State | I3: ZipCode | J3: Tax ID | K3: Ship To Name | L3: Attn. | M3: Address | N3: City | O3: State | P3: ZipCode | Q3: Sales Rep | R3: Ship Via | S3: Ship Date | T3: Include Tax | U3: Pay Via | V3: Account # | W3: Credit Card # | X3: Name | Y3: Expiration Date

Sheet PO_Items (hidden)
B2: OrderNumber | C2: Description | D2: Qty | E2: Unit | F2: UnitCost | G2: Total | H2: ProudctID
B3: Order Number | C3: Description | D3: Qty | E3: Unit | F3: Unit $ | G3: Total | H3: Product ID

Sheet POText (hidden)
A1: Supplier/Trade Contractor
A2: Name | B2: =IF(#REF!="","",#REF!) -> 
A3: Attn | B3: =IF(#REF!="","",#REF!) -> 
A4: Address | B4: =IF(#REF!="","",#REF!) -> 
A5: City | B5: =IF(#REF!="","",#REF!) -> 
A6: State | B6: =IF(#REF!="","",#REF!) -> 
A7: Zip Code | B7: =IF(#REF!="","",#REF!) -> 
A8: Tax ID | B8: =IF(#REF!="","",#REF!) -> 
A10: Ship To
A11: Name | B11: =IF(#REF!=0,"",#REF!) -> 
A12: Attn | B12: =IF(#REF!=0,"",#REF!) -> 
A13: Address | B13: =#REF! -> 
A14: City | B14: =#REF! -> 
A15: State | B15: =#REF! -> 
A16: Zip Code | B16: =#REF! -> 
A18: Items
A19: Description | B19: Qty | C19: Units | D19: Unit Cost | E19: Total | F19: Product ID
A20: =IF(#REF!="","",#REF!) ->  | B20: =IF(#REF!="","",#REF!) ->  | C20: =IF(#REF!="","",#REF!) ->  | D20: =IF(#REF!="","",#REF!) ->  | E20: =IF(#REF!="","",#REF!) ->  | F20: =IF(#REF!="","",#REF!) -> 
A21: =IF(#REF!="","",#REF!) ->  | B21: =IF(#REF!="","",#REF!) ->  | C21: =IF(#REF!="","",#REF!) ->  | D21: =IF(#REF!="","",#REF!) ->  | E21: =IF(#REF!="","",#REF!) ->  | F21: =IF(#REF!="","",#REF!) -> 
A22: =IF(#REF!="","",#REF!) ->  | B22: =IF(#REF!="","",#REF!) ->  | C22: =IF(#REF!="","",#REF!) ->  | D22: =IF(#REF!="","",#REF!) ->  | E22: =IF(#REF!="","",#REF!) ->  | F22: =IF(#REF!="","",#REF!) -> 
A23: =IF(#REF!="","",#REF!) ->  | B23: =IF(#REF!="","",#REF!) ->  | C23: =IF(#REF!="","",#REF!) ->  | D23: =IF(#REF!="","",#REF!) ->  | E23: =IF(#REF!="","",#REF!) ->  | F23: =IF(#REF!="","",#REF!) -> 
A24: =IF(#REF!="","",#REF!) ->  | B24: =IF(#REF!="","",#REF!) ->  | C24: =IF(#REF!="","",#REF!) ->  | D24: =IF(#REF!="","",#REF!) ->  | E24: =IF(#REF!="","",#REF!) ->  | F24: =IF(#REF!="","",#REF!) -> 
A25: =IF(#REF!="","",#REF!) ->  | B25: =IF(#REF!="","",#REF!) ->  | C25: =IF(#REF!="","",#REF!) ->  | D25: =IF(#REF!="","",#REF!) ->  | E25: =IF(#REF!="","",#REF!) ->  | F25: =IF(#REF!="","",#REF!) -> 
A26: =IF(#REF!="","",#REF!) ->  | B26: =IF(#REF!="","",#REF!) ->  | C26: =IF(#REF!="","",#REF!) ->  | D26: =IF(#REF!="","",#REF!) ->  | E26: =IF(#REF!="","",#REF!) ->  | F26: =IF(#REF!="","",#REF!) -> 
A27: =IF(#REF!="","",#REF!) ->  | B27: =IF(#REF!="","",#REF!) ->  | C27: =IF(#REF!="","",#REF!) ->  | D27: =IF(#REF!="","",#REF!) ->  | E27: =IF(#REF!="","",#REF!) ->  | F27: =IF(#REF!="","",#REF!) -> 
A28: =IF(#REF!="","",#REF!) ->  | B28: =IF(#REF!="","",#REF!) ->  | C28: =IF(#REF!="","",#REF!) ->  | D28: =IF(#REF!="","",#REF!) ->  | E28: =IF(#REF!="","",#REF!) ->  | F28: =IF(#REF!="","",#REF!) -> 
A29: =IF(#REF!="","",#REF!) ->  | B29: =IF(#REF!="","",#REF!) ->  | C29: =IF(#REF!="","",#REF!) ->  | D29: =IF(#REF!="","",#REF!) ->  | E29: =IF(#REF!="","",#REF!) ->  | F29: =IF(#REF!="","",#REF!) -> 
A30: =IF(#REF!="","",#REF!) ->  | B30: =IF(#REF!="","",#REF!) ->  | C30: =IF(#REF!="","",#REF!) ->  | D30: =IF(#REF!="","",#REF!) ->  | E30: =IF(#REF!="","",#REF!) ->  | F30: =IF(#REF!="","",#REF!) -> 
A31: =IF(#REF!="","",#REF!) ->  | B31: =IF(#REF!="","",#REF!) ->  | C31: =IF(#REF!="","",#REF!) ->  | D31: =IF(#REF!="","",#REF!) ->  | E31: =IF(#REF!="","",#REF!) ->  | F31: =IF(#REF!="","",#REF!) -> 
A32: =IF(#REF!="","",#REF!) ->  | B32: =IF(#REF!="","",#REF!) ->  | C32: =IF(#REF!="","",#REF!) ->  | D32: =IF(#REF!="","",#REF!) ->  | E32: =IF(#REF!="","",#REF!) ->  | F32: =IF(#REF!="","",#REF!) -> 
A33: =IF(#REF!="","",#REF!) ->  | B33: =IF(#REF!="","",#REF!) ->  | C33: =IF(#REF!="","",#REF!) ->  | D33: =IF(#REF!="","",#REF!) ->  | E33: =IF(#REF!="","",#REF!) ->  | F33: =IF(#REF!="","",#REF!) -> 
A34: =IF(#REF!="","",#REF!) ->  | B34: =IF(#REF!="","",#REF!) ->  | C34: =IF(#REF!="","",#REF!) ->  | D34: =IF(#REF!="","",#REF!) ->  | E34: =IF(#REF!="","",#REF!) ->  | F34: =IF(#REF!="","",#REF!) -> 
A35: =IF(#REF!="","",#REF!) ->  | B35: =IF(#REF!="","",#REF!) ->  | C35: =IF(#REF!="","",#REF!) ->  | D35: =IF(#REF!="","",#REF!) ->  | E35: =IF(#REF!="","",#REF!) ->  | F35: =IF(#REF!="","",#REF!) -> 
A36: =IF(#REF!="","",#REF!) ->  | B36: =IF(#REF!="","",#REF!) ->  | C36: =IF(#REF!="","",#REF!) ->  | D36: =IF(#REF!="","",#REF!) ->  | E36: =IF(#REF!="","",#REF!) ->  | F36: =IF(#REF!="","",#REF!) -> 
A37: =IF(#REF!="","",#REF!) ->  | B37: =IF(#REF!="","",#REF!) ->  | C37: =IF(#REF!="","",#REF!) ->  | D37: =IF(#REF!="","",#REF!) ->  | E37: =IF(#REF!="","",#REF!) ->  | F37: =IF(#REF!="","",#REF!) -> 
A38: =IF(#REF!="","",#REF!) ->  | B38: =IF(#REF!="","",#REF!) ->  | C38: =IF(#REF!="","",#REF!) ->  | D38: =IF(#REF!="","",#REF!) ->  | E38: =IF(#REF!="","",#REF!) ->  | F38: =IF(#REF!="","",#REF!) -> 
A39: =IF(#REF!="","",#REF!) ->  | B39: =IF(#REF!="","",#REF!) ->  | C39: =IF(#REF!="","",#REF!) ->  | D39: =IF(#REF!="","",#REF!) ->  | E39: =IF(#REF!="","",#REF!) ->  | F39: =IF(#REF!="","",#REF!) -> 
A40: =IF(#REF!="","",#REF!) ->  | B40: =IF(#REF!="","",#REF!) ->  | C40: =IF(#REF!="","",#REF!) ->  | D40: =IF(#REF!="","",#REF!) ->  | E40: =IF(#REF!="","",#REF!) ->  | F40: =IF(#REF!="","",#REF!) -> 
A41: =IF(#REF!="","",#REF!) ->  | B41: =IF(#REF!="","",#REF!) ->  | C41: =IF(#REF!="","",#REF!) ->  | D41: =IF(#REF!="","",#REF!) ->  | E41: =IF(#REF!="","",#REF!) ->  | F41: =IF(#REF!="","",#REF!) -> 
A42: =IF(#REF!="","",#REF!) ->  | B42: =IF(#REF!="","",#REF!) ->  | C42: =IF(#REF!="","",#REF!) ->  | D42: =IF(#REF!="","",#REF!) ->  | E42: =IF(#REF!="","",#REF!) ->  | F42: =IF(#REF!="","",#REF!) -> 
A43: =IF(#REF!="","",#REF!) ->  | B43: =IF(#REF!="","",#REF!) ->  | C43: =IF(#REF!="","",#REF!) ->  | D43: =IF(#REF!="","",#REF!) ->  | E43: =IF(#REF!="","",#REF!) ->  | F43: =IF(#REF!="","",#REF!) -> 
A44: =IF(#REF!="","",#REF!) ->  | B44: =IF(#REF!="","",#REF!) ->  | C44: =IF(#REF!="","",#REF!) ->  | D44: =IF(#REF!="","",#REF!) ->  | E44: =IF(#REF!="","",#REF!) ->  | F44: =IF(#REF!="","",#REF!) -> 
A45: =IF(#REF!="","",#REF!) ->  | B45: =IF(#REF!="","",#REF!) ->  | C45: =IF(#REF!="","",#REF!) ->  | D45: =IF(#REF!="","",#REF!) ->  | E45: =IF(#REF!="","",#REF!) ->  | F45: =IF(#REF!="","",#REF!) -> 
A46: =IF(#REF!="","",#REF!) ->  | B46: =IF(#REF!="","",#REF!) ->  | C46: =IF(#REF!="","",#REF!) ->  | D46: =IF(#REF!="","",#REF!) ->  | E46: =IF(#REF!="","",#REF!) ->  | F46: =IF(#REF!="","",#REF!) -> 
A47: =IF(#REF!="","",#REF!) ->  | B47: =IF(#REF!="","",#REF!) ->  | C47: =IF(#REF!="","",#REF!) ->  | D47: =IF(#REF!="","",#REF!) ->  | E47: =IF(#REF!="","",#REF!) ->  | F47: =IF(#REF!="","",#REF!) -> 
A48: =IF(#REF!="","",#REF!) ->  | B48: =IF(#REF!="","",#REF!) ->  | C48: =IF(#REF!="","",#REF!) ->  | D48: =IF(#REF!="","",#REF!) ->  | E48: =IF(#REF!="","",#REF!) ->  | F48: =IF(#REF!="","",#REF!) -> 
A49: =IF(#REF!="","",#REF!) ->  | B49: =IF(#REF!="","",#REF!) ->  | C49: =IF(#REF!="","",#REF!) ->  | D49: =IF(#REF!="","",#REF!) ->  | E49: =IF(#REF!="","",#REF!) ->  | F49: =IF(#REF!="","",#REF!) -> 
A50: =IF(#REF!="","",#REF!) ->  | B50: =IF(#REF!="","",#REF!) ->  | C50: =IF(#REF!="","",#REF!) ->  | D50: =IF(#REF!="","",#REF!) ->  | E50: =IF(#REF!="","",#REF!) ->  | F50: =IF(#REF!="","",#REF!) -> 
A51: =IF(#REF!="","",#REF!) ->  | B51: =IF(#REF!="","",#REF!) ->  | C51: =IF(#REF!="","",#REF!) ->  | D51: =IF(#REF!="","",#REF!) ->  | E51: =IF(#REF!="","",#REF!) ->  | F51: =IF(#REF!="","",#REF!) -> 
A52: =IF(#REF!="","",#REF!) ->  | B52: =IF(#REF!="","",#REF!) ->  | C52: =IF(#REF!="","",#REF!) ->  | D52: =IF(#REF!="","",#REF!) ->  | E52: =IF(#REF!="","",#REF!) ->  | F52: =IF(#REF!="","",#REF!) -> 
A54: Sub-Total | B54: =#REF! -> 
A55: Shipping & Handling | B55: =#REF! -> 
A56: Tax | B56: =#REF! -> 
A57: Total | B57: =#REF! -> 

Sheet DatabaseLinks
F2: Database Links | I2: 4
AA3: Project Overhead | AB3: Hard Costs
AA4: CostBreakdownSummary | AB4: Demolition
AA5: GeneralInfo | AB5: Earthwork
AA6: ExecutiveSummary | AB6: Footings
C7: Linked Database | AA7: CustomerBidForm | AB7: WindowWell
C8: C:\Program Files\EstimatorPro\Database\EstimatorProDB.xls | AA8: SubSelect | AB8: Foundation
AA9: Lot | AB9: CMUFoundation
AA10: Permit | AB10: Flatwork
C11: Estimate Number: | D11: EP88817 | AA11: PlansEngineering | AB11: MiscSteel
AB12: GarageDoor
AB13: Windows
AB14: Windows
AB15: Windows
AB16: Windows
AB17: Windows
AB18: Windows
AB19: Windows
AB20: Windows
AB21: Windows
AB22: Windows
AB23: Windows
AB24: Windows
AB25: Windows
AB26: Windows
AB27: Windows
AB28: Windows
AB29: Windows
AB30: HardwareMirror
AB31: Siding
AB32: SoffitFascia
AB33: Gutter
AB34: ExtRailing
AB35: FDNPlaster
AB36: Cleanup
AB37: Landscaping
